Workbook

Sheet StoreConfig
B1: Id | C1: GoodsName | D1: StoreId | E1: Sort | F1: Weight | G1: OpenLv | H1: Goods | I1: PremiumType | J1: Cost | K1: RelatedtoVIP | L1: Limit | M1: IsDiscount | N1: DiscountDegree | O1: NoUse1 | P1: ExtraAdd | Q1: OpenPrivilege | R1: Rebate | S1: ShowRule | T1: BuyRule
B2: int | C2: string | D2: int | E2: int | F2: int | G2: mut,int#int,1 | H2: mut,int#int,2 | I2: int | J2: mut,int#int,2 | K2: int | L2: int | M2: int | N2: int | O2: string | P2: mut,int#int,2 | Q2: mut,int#int,1 | R2: int | S2: mut,int#int,1 | T2: mut,int#int,1
B3: 2 | C3: 2 | D3: 2 | E3: 2 | F3: 4 | G3: 4 | H3: 2 | I3: 2 | J3: 2 | K3: 2 | L3: 2 | M3: 2 | N3: 2 | O3: 0 | P3: 2 | Q3: 2 | R3: 3 | S3: 3 | T3: 2
B4: id | C4: 商品名称 | D4: 商店id | E4: 排序 （栏位显示顺序） | F4: 权重 | G4: 等级开启区间 | H4: 物品id#数量 | I4: 购买溢价类型 1走公式 2走配置数量（第X次购买价格#第X+1次购买价格） | J4: 购买道具|价格公式（ax^3+bx^2+cx+d) （abcd为配置参数，x为购买次数） | K4: 限购次是否和vip关联 0不关联 1关联 | L4: 限购次数 0则为不限购 当限购次数，该列填特权id | M4: 是否折扣 0没有折扣 1折扣 | N4: 折扣力度 5折就写5 | O4: 备注 | P4: 额外加成 1等级控制 2#特权id | Q4: 解锁特权id | R4: 礼包价值 | S4: 商品显示条件 1累充额度达到xx元 | T4: 商品可购买条件 1累充额度达到xx元
A5: 默认值 | B5: 0 | D5: 0 | E5: 0 | F5: 0 | G5: null | H5: null | J5: null | K5: 0 | L5: 0 | M5: 0 | N5: 0
A6: 正确性校对
A7: 校对值
B8: 1 | C8: 雷震子碎片 | D8: 1 | E8: 1 | F8: 100 | G8: 1#200 | H8: 11011#50 | I8: 1 | J8: 26|0#0#0#5000 | L8: 1 | M8: 0 | N8: 0 | O8: 契魂商店
B9: 2 | C9: 孙悟空碎片 | D9: 1 | E9: 2 | F9: 100 | G9: 1#201 | H9: 11023#50 | I9: 1 | J9: 26|0#0#0#5000 | L9: 1 | M9: 0 | N9: 0 | O9: 契魂商店
B10: 3 | C10: 伏羲碎片 | D10: 1 | E10: 3 | F10: 100 | G10: 1#202 | H10: 11001#50 | I10: 1 | J10: 26|0#0#0#5000 | L10: 1 | M10: 0 | N10: 0 | O10: 契魂商店
B11: 4 | C11: 东华帝君碎片 | D11: 1 | E11: 4 | F11: 100 | G11: 1#203 | H11: 11026#50 | I11: 1 | J11: 26|0#0#0#5000 | L11: 1 | M11: 0 | N11: 0 | O11: 契魂商店
B12: 5 | C12: 洛神碎片 | D12: 1 | E12: 5 | F12: 100 | G12: 1#204 | H12: 11002#50 | I12: 1 | J12: 26|0#0#0#4000 | L12: 1 | M12: 0 | N12: 0 | O12: 契魂商店
B13: 6 | C13: 伏虎罗汉碎片 | D13: 1 | E13: 6 | F13: 100 | G13: 1#205 | H13: 11015#50 | I13: 1 | J13: 26|0#0#0#4000 | L13: 1 | M13: 0 | N13: 0 | O13: 契魂商店
B14: 7 | C14: 嫦娥碎片 | D14: 1 | E14: 7 | F14: 100 | G14: 1#206 | H14: 11017#50 | I14: 1 | J14: 26|0#0#0#4000 | L14: 1 | M14: 0 | N14: 0 | O14: 契魂商店
B15: 8 | C15: 九天玄女碎片 | D15: 1 | E15: 8 | F15: 100 | G15: 1#207 | H15: 11042#50 | I15: 1 | J15: 26|0#0#0#4000 | L15: 1 | M15: 0 | N15: 0 | O15: 契魂商店
B16: 9 | C16: 百花仙子碎片 | D16: 1 | E16: 9 | F16: 100 | G16: 1#208 | H16: 11045#50 | I16: 1 | J16: 26|0#0#0#2500 | L16: 1 | M16: 0 | N16: 0 | O16: 契魂商店
B17: 10 | C17: 焚天碎片 | D17: 1 | E17: 10 | F17: 100 | G17: 1#209 | H17: 11030#50 | I17: 1 | J17: 26|0#0#0#2500 | L17: 1 | M17: 0 | N17: 0 | O17: 契魂商店
B18: 11 | C18: 赵公明碎片 | D18: 1 | E18: 11 | F18: 100 | G18: 1#210 | H18: 11036#50 | I18: 1 | J18: 26|0#0#0#2500 | L18: 1 | M18: 0 | N18: 0 | O18: 契魂商店
B19: 12 | C19: 夜叉碎片 | D19: 1 | E19: 12 | F19: 100 | G19: 1#211 | H19: 11038#50 | I19: 1 | J19: 26|0#0#0#2500 | L19: 1 | M19: 0 | N19: 0 | O19: 契魂商店
B20: 51 | C20: 量天尺 | D20: 3 | E20: 1 | F20: 100 | G20: 1#235 | H20: 90001#1 | I20: 1 | J20: 25|0#0#0#200 | L20: 1 | M20: 0 | N20: 0 | O20: 云游商店
B21: 52 | C21: 山河扇 | D21: 3 | E21: 1 | F21: 100 | G21: 1#236 | H21: 90002#1 | I21: 1 | J21: 25|0#0#0#200 | L21: 1 | M21: 0 | N21: 0 | O21: 云游商店
B22: 53 | C22: 八卦镜 | D22: 3 | E22: 2 | F22: 100 | G22: 1#237 | H22: 90003#1 | I22: 1 | J22: 25|0#0#0#200 | L22: 1 | M22: 0 | N22: 0 | O22: 云游商店
B23: 54 | C23: 道经残卷 | D23: 3 | E23: 2 | F23: 100 | G23: 1#238 | H23: 90004#1 | I23: 1 | J23: 25|0#0#0#200 | L23: 1 | M23: 0 | N23: 0 | O23: 云游商店
B24: 55 | C24: 南山砚 | D24: 3 | E24: 2 | F24: 100 | G24: 1#239 | H24: 90005#1 | I24: 1 | J24: 25|0#0#0#200 | L24: 1 | M24: 0 | N24: 0 | O24: 云游商店
B25: 56 | C25: 量天尺 | D25: 3 | E25: 3 | F25: 100 | G25: 1#240 | H25: 90001#1 | I25: 1 | J25: 25|0#0#0#200 | L25: 1 | M25: 0 | N25: 0 | O25: 云游商店
B26: 57 | C26: 山河扇 | D26: 3 | E26: 3 | F26: 100 | G26: 1#241 | H26: 90002#1 | I26: 1 | J26: 25|0#0#0#200 | L26: 1 | M26: 0 | N26: 0 | O26: 云游商店
B27: 58 | C27: 八卦镜 | D27: 3 | E27: 3 | F27: 100 | G27: 1#242 | H27: 90003#1 | I27: 1 | J27: 25|0#0#0#200 | L27: 1 | M27: 0 | N27: 0 | O27: 云游商店
B28: 59 | C28: 道经残卷 | D28: 3 | E28: 3 | F28: 100 | G28: 1#243 | H28: 90004#1 | I28: 1 | J28: 25|0#0#0#200 | L28: 1 | M28: 0 | N28: 0 | O28: 云游商店
B29: 60 | C29: 南山砚 | D29: 3 | E29: 3 | F29: 100 | G29: 1#242 | H29: 90005#1 | I29: 1 | J29: 25|0#0#0#200 | L29: 1 | M29: 0 | N29: 0 | O29: 云游商店
B30: 61 | C30: 破煞金刚杵 | D30: 3 | E30: 3 | F30: 100 | G30: 1#243 | H30: 90201#1 | I30: 1 | J30: 25|0#0#0#1500 | L30: 1 | M30: 0 | N30: 0 | O30: 云游商店
B31: 62 | C31: 紫金铃 | D31: 3 | E31: 3 | F31: 100 | G31: 1#246 | H31: 90202#1 | I31: 1 | J31: 25|0#0#0#1500 | L31: 1 | M31: 0 | N31: 0 | O31: 云游商店
B32: 63 | C32: 蟠龙令 | D32: 3 | E32: 3 | F32: 100 | G32: 1#247 | H32: 90203#1 | I32: 1 | J32: 25|0#0#0#1500 | L32: 1 | M32: 0 | N32: 0 | O32: 云游商店
B33: 64 | C33: 摩尼符 | D33: 3 | E33: 3 | F33: 100 | G33: 1#248 | H33: 90204#1 | I33: 1 | J33: 25|0#0#0#1500 | L33: 1 | M33: 0 | N33: 0 | O33: 云游商店
B34: 65 | C34: 无魔金轮 | D34: 3 | E34: 3 | F34: 100 | G34: 1#249 | H34: 90205#1 | I34: 1 | J34: 25|0#0#0#1500 | L34: 1 | M34: 0 | N34: 0 | O34: 云游商店
B35: 66 | C35: 破煞金刚杵 | D35: 3 | E35: 4 | F35: 100 | G35: 1#250 | H35: 90201#1 | I35: 1 | J35: 25|0#0#0#1500 | L35: 1 | M35: 0 | N35: 0 | O35: 云游商店
B36: 67 | C36: 紫金铃 | D36: 3 | E36: 4 | F36: 100 | G36: 1#251 | H36: 90202#1 | I36: 1 | J36: 25|0#0#0#1500 | L36: 1 | M36: 0 | N36: 0 | O36: 云游商店
B37: 68 | C37: 蟠龙令 | D37: 3 | E37: 5 | F37: 100 | G37: 1#252 | H37: 90203#1 | I37: 1 | J37: 25|0#0#0#1500 | L37: 1 | M37: 0 | N37: 0 | O37: 云游商店
B38: 69 | C38: 摩尼符 | D38: 3 | E38: 5 | F38: 100 | G38: 1#253 | H38: 90204#1 | I38: 1 | J38: 25|0#0#0#1500 | L38: 1 | M38: 0 | N38: 0 | O38: 云游商店
B39: 70 | C39: 无魔金轮 | D39: 3 | E39: 6 | F39: 100 | G39: 1#254 | H39: 90205#1 | I39: 1 | J39: 25|0#0#0#1500 | L39: 1 | M39: 0 | N39: 0 | O39: 云游商店
B40: 71 | C40: 乘风戒指 | D40: 3 | E40: 4 | F40: 0 | G40: 1#255 | H40: 60095#1 | I40: 1 | J40: 25|0#0#0#600 | L40: 1 | M40: 0 | N40: 0 | O40: 云游商店
B41: 72 | C41: 乘风束带 | D41: 3 | E41: 4 | F41: 0 | G41: 1#256 | H41: 60098#1 | I41: 1 | J41: 25|0#0#0#600 | L41: 1 | M41: 0 | N41: 0 | O41: 云游商店
B42: 73 | C42: 斩尘神斧 | D42: 3 | E42: 5 | F42: 0 | G42: 1#257 | H42: 60101#1 | I42: 1 | J42: 25|0#0#0#2400 | L42: 1 | M42: 0 | N42: 0 | O42: 云游商店
B43: 74 | C43: 斩尘神剑 | D43: 3 | E43: 5 | F43: 0 | G43: 1#258 | H43: 60106#1 | I43: 1 | J43: 25|0#0#0#2400 | L43: 1 | M43: 0 | N43: 0 | O43: 云游商店
B44: 75 | C44: 斩尘神杖 | D44: 3 | E44: 5 | F44: 0 | G44: 1#259 | H44: 60111#1 | I44: 1 | J44: 25|0#0#0#2400 | L44: 1 | M44: 0 | N44: 0 | O44: 云游商店
B45: 76 | C45: 斩尘古剑 | D45: 3 | E45: 5 | F45: 0 | G45: 1#260 | H45: 60116#1 | I45: 1 | J45: 25|0#0#0#2400 | L45: 1 | M45: 0 | N45: 0 | O45: 云游商店
B46: 77 | C46: 斩尘圣铃 | D46: 3 | E46: 5 | F46: 0 | G46: 1#261 | H46: 60121#1 | I46: 1 | J46: 25|0#0#0#2400 | L46: 1 | M46: 0 | N46: 0 | O46: 云游商店
B47: 78 | C47: 神凰羽衣 | D47: 3 | E47: 6 | F47: 0 | G47: 1#290 | H47: 60126#1 | I47: 1 | J47: 25|0#0#0#2400 | L47: 1 | M47: 0 | N47: 0 | O47: 云游商店
B48: 79 | C48: 盘龙战甲 | D48: 3 | E48: 7 | F48: 0 | G48: 1#291 | H48: 60131#1 | I48: 1 | J48: 25|0#0#0#2400 | L48: 1 | M48: 0 | N48: 0 | O48: 云游商店
B49: 80 | C49: 神凰战盔 | D49: 3 | E49: 7 | F49: 0 | G49: 1#292 | H49: 60136#1 | I49: 1 | J49: 25|0#0#0#2400 | L49: 1 | M49: 0 | N49: 0 | O49: 云游商店
B50: 81 | C50: 神凰战靴 | D50: 3 | E50: 8 | F50: 0 | G50: 1#293 | H50: 60141#1 | I50: 1 | J50: 25|0#0#0#2400 | L50: 1 | M50: 0 | N50: 0 | O50: 云游商店
B51: 82 | C51: 神凰神戒 | D51: 3 | E51: 6 | F51: 0 | G51: 1#294 | H51: 60146#1 | I51: 1 | J51: 25|0#0#0#2400 | L51: 1 | M51: 0 | N51: 0 | O51: 云游商店
B52: 83 | C52: 神凰束带 | D52: 3 | E52: 6 | F52: 0 | G52: 1#295 | H52: 60151#1 | I52: 1 | J52: 25|0#0#0#2400 | L52: 1 | M52: 0 | N52: 0 | O52: 云游商店
B53: 84 | C53: 戮魔之刃-蓝图 | D53: 3 | E53: 5 | F53: 0 | G53: 1#296 | H53: 3007#1 | I53: 1 | J53: 25|0#0#0#2400 | L53: 1 | M53: 0 | N53: 0 | O53: 云游商店
B54: 85 | C54: 天武之刃-蓝图 | D54: 3 | E54: 5 | F54: 0 | G54: 1#297 | H54: 3008#1 | I54: 1 | J54: 25|0#0#0#2400 | L54: 1 | M54: 0 | N54: 0 | O54: 云游商店
B55: 86 | C55: 戮魔法铃-蓝图 | D55: 3 | E55: 5 | F55: 0 | G55: 1#298 | H55: 3009#1 | I55: 1 | J55: 25|0#0#0#2400 | L55: 1 | M55: 0 | N55: 0 | O55: 云游商店
B56: 87 | C56: 天武法铃-蓝图 | D56: 3 | E56: 5 | F56: 0 | G56: 1#299 | H56: 3010#1 | I56: 1 | J56: 25|0#0#0#2400 | L56: 1 | M56: 0 | N56: 0 | O56: 云游商店
B57: 88 | C57: 修罗战甲-蓝图 | D57: 3 | E57: 6 | F57: 0 | G57: 1#300 | H57: 3011#1 | I57: 1 | J57: 25|0#0#0#2400 | L57: 1 | M57: 0 | N57: 0 | O57: 云游商店
B58: 89 | C58: 修罗战甲-蓝图 | D58: 3 | E58: 6 | F58: 0 | G58: 1#301 | H58: 3012#1 | I58: 1 | J58: 25|0#0#0#2400 | L58: 1 | M58: 0 | N58: 0 | O58: 云游商店
B59: 90 | C59: 红莲战甲-蓝图 | D59: 3 | E59: 6 | F59: 0 | G59: 1#301 | H59: 3013#1 | I59: 1 | J59: 25|0#0#0#2400 | L59: 1 | M59: 0 | N59: 0 | O59: 云游商店
B60: 91 | C60: 红莲战甲-蓝图 | D60: 3 | E60: 6 | F60: 0 | G60: 1#301 | H60: 3014#1 | I60: 1 | J60: 25|0#0#0#2400 | L60: 1 | M60: 0 | N60: 0 | O60: 云游商店
B61: 92 | C61: 修罗战盔-蓝图 | D61: 3 | E61: 6 | F61: 0 | G61: 1#301 | H61: 3015#1 | I61: 1 | J61: 25|0#0#0#2400 | L61: 1 | M61: 0 | N61: 0 | O61: 云游商店
B62: 93 | C62: 红莲战盔-蓝图 | D62: 3 | E62: 6 | F62: 0 | G62: 1#301 | H62: 3016#1 | I62: 1 | J62: 25|0#0#0#2400 | L62: 1 | M62: 0 | N62: 0 | O62: 云游商店
B63: 94 | C63: 修罗战靴-蓝图 | D63: 3 | E63: 6 | F63: 0 | G63: 1#301 | H63: 3017#1 | I63: 1 | J63: 25|0#0#0#2400 | L63: 1 | M63: 0 | N63: 0 | O63: 云游商店
B64: 95 | C64: 红莲战靴-蓝图 | D64: 3 | E64: 6 | F64: 0 | G64: 1#301 | H64: 3018#1 | I64: 1 | J64: 25|0#0#0#2400 | L64: 1 | M64: 0 | N64: 0 | O64: 云游商店
B65: 1005 | C65: 朔方铃 | D65: 5 | E65: 1 | F65: 100 | G65: 1#333 | H65: 6001#1 | I65: 1 | J65: 24|0#0#0#60 | L65: 1 | M65: 0 | N65: 0 | O65: 魂晶商店
B66: 1006 | C66: 狱魔角 | D66: 5 | E66: 1 | F66: 100 | G66: 1#334 | H66: 6002#1 | I66: 1 | J66: 24|0#0#0#60 | L66: 1 | M66: 0 | N66: 0 | O66: 魂晶商店
B67: 1007 | C67: 荒之息 | D67: 5 | E67: 1 | F67: 100 | G67: 1#335 | H67: 6003#1 | I67: 1 | J67: 24|0#0#0#60 | L67: 1 | M67: 0 | N67: 0 | O67: 魂晶商店
B68: 1008 | C68: 桃竹笼 | D68: 5 | E68: 2 | F68: 100 | G68: 1#336 | H68: 6004#1 | I68: 1 | J68: 24|0#0#0#60 | L68: 1 | M68: 0 | N68: 0 | O68: 魂晶商店
B69: 1009 | C69: 玄蒲叶 | D69: 5 | E69: 2 | F69: 100 | G69: 1#337 | H69: 6005#1 | I69: 1 | J69: 24|0#0#0#60 | L69: 1 | M69: 0 | N69: 0 | O69: 魂晶商店
B70: 1010 | C70: 灵隐螭 | D70: 5 | E70: 2 | F70: 100 | G70: 1#338 | H70: 6006#1 | I70: 1 | J70: 24|0#0#0#60 | L70: 1 | M70: 0 | N70: 0 | O70: 魂晶商店
B71: 1011 | C71: 移命杖 | D71: 5 | E71: 3 | F71: 100 | G71: 1#339 | H71: 6007#1 | I71: 1 | J71: 24|0#0#0#60 | L71: 1 | M71: 0 | N71: 0 | O71: 魂晶商店
B72: 1012 | C72: 吉钱冠 | D72: 5 | E72: 3 | F72: 100 | G72: 1#340 | H72: 6008#1 | I72: 1 | J72: 24|0#0#0#60 | L72: 1 | M72: 0 | N72: 0 | O72: 魂晶商店
B73: 1013 | C73: 聚宝坠 | D73: 5 | E73: 3 | F73: 100 | G73: 1#341 | H73: 6009#1 | I73: 1 | J73: 24|0#0#0#60 | L73: 1 | M73: 0 | N73: 0 | O73: 魂晶商店
B74: 1014 | C74: 玲玉笛 | D74: 5 | E74: 4 | F74: 100 | G74: 1#342 | H74: 6010#1 | I74: 1 | J74: 24|0#0#0#60 | L74: 1 | M74: 0 | N74: 0 | O74: 魂晶商店
B75: 1015 | C75: 宿元镜 | D75: 5 | E75: 4 | F75: 100 | G75: 1#343 | H75: 6011#1 | I75: 1 | J75: 24|0#0#0#60 | L75: 1 | M75: 0 | N75: 0 | O75: 魂晶商店
B76: 1016 | C76: 天宁栓 | D76: 5 | E76: 4 | F76: 100 | G76: 1#344 | H76: 6012#1 | I76: 1 | J76: 24|0#0#0#60 | L76: 1 | M76: 0 | N76: 0 | O76: 魂晶商店
B77: 1017 | C77: 九阴刃 | D77: 5 | E77: 5 | F77: 100 | G77: 1#345 | H77: 6025#1 | I77: 1 | J77: 24|0#0#0#180 | L77: 1 | M77: 0 | N77: 0 | O77: 魂晶商店
B78: 1018 | C78: 武藏卷 | D78: 5 | E78: 5 | F78: 100 | G78: 1#346 | H78: 6026#1 | I78: 1 | J78: 24|0#0#0#180 | L78: 1 | M78: 0 | N78: 0 | O78: 魂晶商店
B79: 1019 | C79: 战鬼血 | D79: 5 | E79: 5 | F79: 100 | G79: 1#347 | H79: 6027#1 | I79: 1 | J79: 24|0#0#0#180 | L79: 1 | M79: 0 | N79: 0 | O79: 魂晶商店
B80: 1020 | C80: 四臂骸 | D80: 5 | E80: 5 | F80: 100 | G80: 1#348 | H80: 6028#1 | I80: 1 | J80: 24|0#0#0#180 | L80: 1 | M80: 0 | N80: 0 | O80: 魂晶商店
B81: 1021 | C81: 熠风刀 | D81: 5 | E81: 5 | F81: 100 | G81: 1#349 | H81: 6029#1 | I81: 1 | J81: 24|0#0#0#180 | L81: 1 | M81: 0 | N81: 0 | O81: 魂晶商店
B82: 1022 | C82: 镇魂酒 | D82: 5 | E82: 5 | F82: 100 | G82: 1#350 | H82: 6030#1 | I82: 1 | J82: 24|0#0#0#180 | L82: 1 | M82: 0 | N82: 0 | O82: 魂晶商店
B83: 1023 | C83: 扶桑鼬 | D83: 5 | E83: 5 | F83: 100 | G83: 1#351 | H83: 6031#1 | I83: 1 | J83: 24|0#0#0#180 | L83: 1 | M83: 0 | N83: 0 | O83: 魂晶商店
B84: 1024 | C84: 舞阳纹 | D84: 5 | E84: 5 | F84: 100 | G84: 1#352 | H84: 6032#1 | I84: 1 | J84: 24|0#0#0#180 | L84: 1 | M84: 0 | N84: 0 | O84: 魂晶商店
B85: 1025 | C85: 灵丹 | D85: 5 | E85: 6 | F85: 100 | G85: 1#353 | H85: 5#150 | I85: 1 | J85: 24|0#0#0#15 | L85: 1 | M85: 0 | N85: 0 | O85: 魂晶商店
B86: 2001 | C86: 朔方铃 | D86: 6 | E86: 2 | F86: 100 | G86: 1#355 | H86: 6001#1 | I86: 1 | J86: 22|0#0#0#55 | L86: 1 | M86: 0 | N86: 0 | O86: 秘盒商店
B87: 2002 | C87: 狱魔角 | D87: 6 | E87: 2 | F87: 100 | G87: 1#356 | H87: 6002#1 | I87: 1 | J87: 22|0#0#0#55 | L87: 1 | M87: 0 | N87: 0 | O87: 秘盒商店
B88: 2003 | C88: 荒之息 | D88: 6 | E88: 2 | F88: 100 | G88: 1#357 | H88: 6003#1 | I88: 1 | J88: 22|0#0#0#55 | L88: 1 | M88: 0 | N88: 0 | O88: 秘盒商店
B89: 2004 | C89: 桃竹笼 | D89: 6 | E89: 3 | F89: 100 | G89: 1#358 | H89: 6004#1 | I89: 1 | J89: 22|0#0#0#55 | L89: 1 | M89: 0 | N89: 0 | O89: 秘盒商店
B90: 2005 | C90: 玄蒲叶 | D90: 6 | E90: 3 | F90: 100 | G90: 1#359 | H90: 6005#1 | I90: 1 | J90: 22|0#0#0#55 | L90: 1 | M90: 0 | N90: 0 | O90: 秘盒商店
B91: 2006 | C91: 灵隐螭 | D91: 6 | E91: 3 | F91: 100 | G91: 1#360 | H91: 6006#1 | I91: 1 | J91: 22|0#0#0#55 | L91: 1 | M91: 0 | N91: 0 | O91: 秘盒商店
B92: 2007 | C92: 移命杖 | D92: 6 | E92: 4 | F92: 100 | G92: 1#361 | H92: 6007#1 | I92: 1 | J92: 22|0#0#0#55 | L92: 1 | M92: 0 | N92: 0 | O92: 秘盒商店
B93: 2008 | C93: 吉钱冠 | D93: 6 | E93: 4 | F93: 100 | G93: 1#362 | H93: 6008#1 | I93: 1 | J93: 22|0#0#0#55 | L93: 1 | M93: 0 | N93: 0 | O93: 秘盒商店
B94: 2009 | C94: 聚宝坠 | D94: 6 | E94: 4 | F94: 100 | G94: 1#363 | H94: 6009#1 | I94: 1 | J94: 22|0#0#0#55 | L94: 1 | M94: 0 | N94: 0 | O94: 秘盒商店
B95: 2010 | C95: 玲玉笛 | D95: 6 | E95: 5 | F95: 100 | G95: 1#364 | H95: 6010#1 | I95: 1 | J95: 22|0#0#0#55 | L95: 1 | M95: 0 | N95: 0 | O95: 秘盒商店
B96: 2011 | C96: 宿元镜 | D96: 6 | E96: 5 | F96: 100 | G96: 1#365 | H96: 6011#1 | I96: 1 | J96: 22|0#0#0#55 | L96: 1 | M96: 0 | N96: 0 | O96: 秘盒商店
B97: 2012 | C97: 天宁栓 | D97: 6 | E97: 5 | F97: 100 | G97: 1#366 | H97: 6012#1 | I97: 1 | J97: 22|0#0#0#55 | L97: 1 | M97: 0 | N97: 0 | O97: 秘盒商店
B98: 2013 | C98: 通灵火 | D98: 6 | E98: 6 | F98: 100 | G98: 1#367 | H98: 6013#1 | I98: 1 | J98: 22|0#0#0#180 | L98: 1 | M98: 0 | N98: 0 | O98: 秘盒商店
B99: 2014 | C99: 化形绫 | D99: 6 | E99: 6 | F99: 100 | G99: 1#368 | H99: 6014#1 | I99: 1 | J99: 22|0#0#0#180 | L99: 1 | M99: 0 | N99: 0 | O99: 秘盒商店
B100: 2015 | C100: 缚鼠皮 | D100: 6 | E100: 6 | F100: 100 | G100: 1#369 | H100: 6015#1 | I100: 1 | J100: 22|0#0#0#180 | L100: 1 | M100: 0 | N100: 0 | O100: 秘盒商店
B101: 2016 | C101: 无忌鬃 | D101: 6 | E101: 6 | F101: 100 | G101: 1#370 | H101: 6016#1 | I101: 1 | J101: 22|0#0#0#180 | L101: 1 | M101: 0 | N101: 0 | O101: 秘盒商店
B102: 2017 | C102: 镔烟锅 | D102: 6 | E102: 7 | F102: 100 | G102: 1#371 | H102: 6017#1 | I102: 1 | J102: 22|0#0#0#180 | L102: 1 | M102: 0 | N102: 0 | O102: 秘盒商店
B103: 2018 | C103: 天竺笠 | D103: 6 | E103: 7 | F103: 100 | G103: 1#372 | H103: 6018#1 | I103: 1 | J103: 22|0#0#0#180 | L103: 1 | M103: 0 | N103: 0 | O103: 秘盒商店
B104: 2019 | C104: 那迦珠 | D104: 6 | E104: 7 | F104: 100 | G104: 1#373 | H104: 6019#1 | I104: 1 | J104: 22|0#0#0#180 | L104: 1 | M104: 0 | N104: 0 | O104: 秘盒商店
B105: 2020 | C105: 凝云符 | D105: 6 | E105: 7 | F105: 100 | G105: 1#374 | H105: 6020#1 | I105: 1 | J105: 22|0#0#0#180 | L105: 1 | M105: 0 | N105: 0 | O105: 秘盒商店
B106: 2021 | C106: 笑面谱 | D106: 6 | E106: 8 | F106: 100 | G106: 1#375 | H106: 6021#1 | I106: 1 | J106: 22|0#0#0#180 | L106: 1 | M106: 0 | N106: 0 | O106: 秘盒商店
B107: 2022 | C107: 映心剑 | D107: 6 | E107: 8 | F107: 100 | G107: 1#376 | H107: 6022#1 | I107: 1 | J107: 22|0#0#0#180 | L107: 1 | M107: 0 | N107: 0 | O107: 秘盒商店
B108: 2023 | C108: 渴魂刀 | D108: 6 | E108: 8 | F108: 100 | G108: 1#377 | H108: 6023#1 | I108: 1 | J108: 22|0#0#0#180 | L108: 1 | M108: 0 | N108: 0 | O108: 秘盒商店
B109: 2024 | C109: 魔烟罗 | D109: 6 | E109: 8 | F109: 100 | G109: 1#378 | H109: 6024#1 | I109: 1 | J109: 22|0#0#0#180 | L109: 1 | M109: 0 | N109: 0 | O109: 秘盒商店
B110: 2025 | C110: 九阴刃 | D110: 6 | E110: 9 | F110: 100 | G110: 1#379 | H110: 6025#1 | I110: 1 | J110: 22|0#0#0#180 | L110: 1 | M110: 0 | N110: 0 | O110: 秘盒商店
B111: 2026 | C111: 武藏卷 | D111: 6 | E111: 9 | F111: 100 | G111: 1#380 | H111: 6026#1 | I111: 1 | J111: 22|0#0#0#180 | L111: 1 | M111: 0 | N111: 0 | O111: 秘盒商店
B112: 2027 | C112: 战鬼血 | D112: 6 | E112: 9 | F112: 100 | G112: 1#381 | H112: 6027#1 | I112: 1 | J112: 22|0#0#0#180 | L112: 1 | M112: 0 | N112: 0 | O112: 秘盒商店
B113: 2028 | C113: 四臂骸 | D113: 6 | E113: 9 | F113: 100 | G113: 1#382 | H113: 6028#1 | I113: 1 | J113: 22|0#0#0#180 | L113: 1 | M113: 0 | N113: 0 | O113: 秘盒商店
B114: 2029 | C114: 熠风刀 | D114: 6 | E114: 9 | F114: 100 | G114: 1#383 | H114: 6029#1 | I114: 1 | J114: 22|0#0#0#180 | L114: 1 | M114: 0 | N114: 0 | O114: 秘盒商店
B115: 2030 | C115: 镇魂酒 | D115: 6 | E115: 9 | F115: 100 | G115: 1#384 | H115: 6030#1 | I115: 1 | J115: 22|0#0#0#180 | L115: 1 | M115: 0 | N115: 0 | O115: 秘盒商店
B116: 2031 | C116: 扶桑鼬 | D116: 6 | E116: 9 | F116: 100 | G116: 1#385 | H116: 6031#1 | I116: 1 | J116: 22|0#0#0#180 | L116: 1 | M116: 0 | N116: 0 | O116: 秘盒商店
B117: 2032 | C117: 舞阳纹 | D117: 6 | E117: 9 | F117: 100 | G117: 1#386 | H117: 6032#1 | I117: 1 | J117: 22|0#0#0#180 | L117: 1 | M117: 0 | N117: 0 | O117: 秘盒商店
B118: 2033 | C118: 灵丹 | D118: 6 | E118: 1 | F118: 100 | G118: 1#386 | H118: 5#100 | I118: 1 | J118: 22|0#0#0#10 | L118: 1 | M118: 0 | N118: 0 | O118: 秘盒商店
B119: 10001 | C119: 群英招募单抽 | D119: 7 | E119: 1 | F119: 100 | G119: 1#383 | H119: 19#1 | I119: 1 | J119: 16|0#0#0#250 | L119: 0 | M119: 0 | N119: 0 | O119: 功能商店
B120: 10002 | C120: 群英招募十连抽 | D120: 7 | E120: 2 | F120: 100 | G120: 1#384 | H120: 19#10 | I120: 1 | J120: 16|0#0#0#2500 | L120: 0 | M120: 1 | N120: 9 | O120: 功能商店
B121: 10003 | C121: 幸运探宝券2 | D121: 7 | E121: 3 | F121: 100 | G121: 1#385 | H121: 60#2 | I121: 1 | J121: 16|0#0#0#100 | K121: 1 | L121: 6 | M121: 0 | N121: 0 | O121: 功能商店
B122: 10004 | C122: 幸运探宝券5 | D122: 7 | E122: 4 | F122: 100 | G122: 1#386 | H122: 60#5 | I122: 1 | J122: 16|0#0#0#250 | K122: 1 | L122: 6 | M122: 0 | N122: 0 | O122: 功能商店
B123: 10005 | C123: 购买金币 | D123: 57 | E123: 1 | F123: 100 | G123: 1#387 | H123: 14#25000 | I123: 2 | J123: 16|0#0#0#0 | K123: 1 | L123: 12 | M123: 0 | N123: 0 | O123: 点金功能商店 | P123: 1#0|2#21
B124: 10006 | C124: 购买体力 | D124: 7 | E124: 5 | F124: 100 | G124: 1#388 | H124: 2#100 | I124: 2 | J124: 16|50#50#100#100#150#200#300#400#500 | K124: 1 | L124: 5 | M124: 0 | N124: 0 | O124: 功能商店
B125: 10007 | C125: 购买竞技场挑战券 | D125: 7 | E125: 6 | F125: 100 | G125: 1#389 | H125: 23#1 | I125: 1 | J125: 16|0#0#0#20 | K125: 0 | L125: 0 | M125: 0 | N125: 0 | O125: 功能商店
B126: 10008 | C126: 时光沙漏花费 | D126: 7 | E126: 7 | F126: 100 | G126: 1#390 | H126: 0#0 | I126: 1 | J126: 47|0#0#0#1 | K126: 1 | L126: 0 | M126: 0 | N126: 0 | O126: 功能商店
B127: 10009 | C127: 普通副本次数购买 | D127: 7 | E127: 8 | F127: 100 | G127: 1#391 | H127: 27#1 | I127: 1 | J127: 16|0#0#20#20 | K127: 1 | L127: 7 | M127: 0 | N127: 0 | O127: 功能商店
B128: 10010 | C128: 英雄副本次数购买 | D128: 7 | E128: 9 | F128: 100 | G128: 1#392 | H128: 28#1 | I128: 1 | J128: 16|0#0#150#100 | K128: 1 | L128: 8 | M128: 0 | N128: 0 | O128: 功能商店
B129: 10011 | C129: 天赋树重置花费 | D129: 7 | E129: 10 | F129: 100 | G129: 1#393 | H129: 0#0 | I129: 2 | J129: 16|0#200#400#400#600#600#1000 | K129: 0 | L129: 0 | M129: 0 | N129: 0 | O129: 功能商店
B130: 10012 | C130: 外敌挑战券购买 | D130: 7 | E130: 11 | F130: 100 | G130: 1#393 | H130: 44#1 | I130: 2 | J130: 16|20#20#40#40#60#80#100#120#160#200 | K130: 0 | L130: 0 | M130: 0 | N130: 0 | O130: 功能商店
B131: 10013 | C131: 魂晶妖晶兑换 | D131: 7 | E131: 12 | F131: 100 | G131: 1#393 | H131: 16#10 | I131: 1 | J131: 16|0#0#0#1 | K131: 0 | L131: 0 | M131: 0 | N131: 0 | O131: 功能商店
B132: 10014 | C132: 云梦华羽购买 | D132: 7 | E132: 13 | F132: 100 | G132: 1#393 | H132: 46#1 | I132: 1 | J132: 16|0#0#0#30 | K132: 0 | L132: 0 | M132: 0 | N132: 0 | O132: 功能商店
B133: 10015 | C133: 冒险极速探索妖晶花费 | D133: 7 | E133: 14 | F133: 100 | G133: 1#390 | H133: 0#0 | I133: 2 | J133: 16|50#100#200#200#200#200#200#200#200#200#200 | K133: 1 | L133: 33 | M133: 0 | N133: 0 | O133: 功能商店
B134: 10016 | C134: 行动力 | D134: 7 | E134: 15 | F134: 100 | G134: 1#390 | H134: 1#100 | I134: 1 | J134: 16|0#0#100#150 | K134: 0 | L134: 2 | M134: 0 | N134: 0 | O134: 功能商店
B135: 10017 | C135: 兽潮来袭兽首道具 | D135: 7 | E135: 16 | F135: 100 | G135: 1#388 | H135: 53#1 | I135: 1 | J135: 16|0#0#0#20 | K135: 0 | L135: 0 | M135: 0 | N135: 0 | O135: 功能商店
B136: 10018 | C136: 购买改名卡 | D136: 7 | E136: 17 | F136: 100 | G136: 1#388 | H136: 64#1 | I136: 1 | J136: 16|0#0#0#500 | K136: 0 | L136: 0 | M136: 0 | N136: 0 | O136: 功能商店
B137: 10019 | C137: 魂印占星强制召唤 | D137: 7 | E137: 18 | F137: 100 | G137: 1#388 | H137: 0#0 | I137: 1 | J137: 16|0#0#0#100 | K137: 0 | L137: 0 | M137: 0 | N137: 0 | O137: 功能商店
B138: 10020 | C138: 备用 | D138: 7 | E138: 19 | F138: 100 | G138: 1#388 | H138: 0#0 | I138: 1 | J138: 16|0#0#10#10 | K138: 0 | L138: 0 | M138: 0 | N138: 0 | O138: 功能商店
B139: 10021 | C139: 每日金币副本购买次数 | D139: 7 | E139: 20 | F139: 100 | G139: 1#400 | H139: 90#0 | I139: 1 | J139: 16|0#0#0#50 | K139: 1 | L139: 101 | M139: 0 | N139: 0 | O139: 功能商店 | Q139: 111
B140: 10022 | C140: 每日经验副本购买次数 | D140: 7 | E140: 21 | F140: 100 | G140: 1#400 | H140: 90#0 | I140: 1 | J140: 16|0#0#0#50 | K140: 1 | L140: 102 | M140: 0 | N140: 0 | O140: 功能商店 | Q140: 112
B141: 10023 | C141: 每日角色碎片副本购买次数 | D141: 7 | E141: 22 | F141: 100 | G141: 1#400 | H141: 90#0 | I141: 1 | J141: 16|0#0#0#50 | K141: 1 | L141: 103 | M141: 0 | N141: 0 | O141: 功能商店 | Q141: 113
B142: 10024 | C142: 每日法宝副本购买次数 | D142: 7 | E142: 23 | F142: 100 | G142: 1#400 | H142: 90#0 | I142: 1 | J142: 16|0#0#0#50 | K142: 1 | L142: 104 | M142: 0 | N142: 0 | O142: 功能商店 | Q142: 114
B143: 10025 | C143: 每日魂印副本购买次数 | D143: 7 | E143: 24 | F143: 100 | G143: 1#400 | H143: 90#0 | I143: 1 | J143: 16|0#0#0#50 | K143: 1 | L143: 105 | M143: 0 | N143: 0 | O143: 功能商店 | Q143: 115
B144: 10026 | C144: 中等购买金币 | D144: 57 | E144: 2 | F144: 100 | G144: 1#400 | H144: 14#50000 | I144: 1 | J144: 16|0#0#0#20 | K144: 1 | L144: 51 | M144: 0 | N144: 0 | O144: 点金功能商店 | P144: 1#0|2#21
B145: 10027 | C145: 高等购买金币 | D145: 57 | E145: 3 | F145: 100 | G145: 1#400 | H145: 14#125000 | I145: 1 | J145: 16|0#0#0#50 | K145: 1 | L145: 52 | M145: 0 | N145: 0 | O145: 点金功能商店 | P145: 1#0|2#21
B146: 10028 | C146: 公会技能重置 | D146: 7 | E146: 25 | F146: 100 | G146: 1#400 | H146: 0#0 | I146: 2 | J146: 16|300#500#800#1000 | K146: 0 | L146: 0 | M146: 0 | N146: 0 | O146: 功能商店
B147: 10029 | C147: 回春散购买 | D147: 7 | E147: 26 | F147: 100 | G147: 1#400 | H147: 31#1 | I147: 2 | J147: 16|0#0#0#100 | K147: 0 | L147: 0 | M147: 0 | N147: 0 | O147: 功能商店
B148: 10030 | C148: 每日轩辕秘境购买次数 | D148: 7 | E148: 27 | F148: 100 | G148: 1#400 | H148: 71#0 | I148: 2 | J148: 16|50#100#200#200#200#200#200#200 | K148: 1 | L148: 116 | M148: 0 | N148: 0 | O148: 功能商店 | Q148: 118
B149: 10031 | C149: 公会副本挑战价格 | D149: 7 | E149: 28 | F149: 100 | G149: 1#400 | H149: 72#0 | I149: 2 | J149: 16|20#30#40#60 | K149: 1 | L149: 3012 | M149: 0 | N149: 0 | O149: 功能商店 | Q149: 3011
B150: 501 | C150: 武将经验*100000 | D150: 8 | E150: 1 | F150: 1 | G150: 1#400 | H150: 3#100000 | I150: 1 | J150: 16|0#0#0#100 | K150: 0 | L150: 1 | M150: 1 | N150: 5 | O150: 试炼商店1
B151: 502 | C151: 武将经验*200000 | D151: 8 | E151: 1 | F151: 1 | G151: 1#400 | H151: 3#200000 | I151: 1 | J151: 16|0#0#0#200 | K151: 0 | L151: 1 | M151: 1 | N151: 5 | O151: 试炼商店1
B152: 503 | C152: 武将经验*400000 | D152: 8 | E152: 1 | F152: 1 | G152: 1#400 | H152: 3#400000 | I152: 1 | J152: 16|0#0#0#400 | K152: 0 | L152: 1 | M152: 1 | N152: 5 | O152: 试炼商店1
B153: 510 | C153: 阵营抽*1 | D153: 8 | E153: 1 | F153: 1 | G153: 1#400 | H153: 20#1 | I153: 1 | J153: 16|0#0#0#2500 | K153: 0 | L153: 1 | M153: 1 | N153: 4 | O153: 试炼商店1
B154: 511 | C154: 阵营抽*1 | D154: 8 | E154: 1 | F154: 1 | G154: 1#400 | H154: 20#1 | I154: 1 | J154: 16|0#0#0#2500 | K154: 0 | L154: 1 | M154: 1 | N154: 2 | O154: 试炼商店1
B155: 512 | C155: 高抽*1 | D155: 8 | E155: 1 | F155: 1 | G155: 1#400 | H155: 19#1 | I155: 1 | J155: 16|0#0#0#250 | K155: 0 | L155: 1 | M155: 1 | N155: 6 | O155: 试炼商店1
B156: 513 | C156: 高抽*3 | D156: 8 | E156: 1 | F156: 1 | G156: 1#400 | H156: 19#3 | I156: 1 | J156: 16|0#0#0#750 | K156: 0 | L156: 1 | M156: 1 | N156: 6 | O156: 试炼商店1
B157: 518 | C157: 高抽*5 | D157: 8 | E157: 1 | F157: 1 | G157: 1#400 | H157: 19#5 | I157: 1 | J157: 16|0#0#0#1250 | K157: 0 | L157: 1 | M157: 1 | N157: 6 | O157: 试炼商店1
B158: 519 | C158: 寻宝图*3 | D158: 8 | E158: 1 | F158: 1 | G158: 1#400 | H158: 60#3 | I158: 1 | J158: 16|0#0#0#150 | K158: 0 | L158: 1 | M158: 1 | N158: 6 | O158: 试炼商店1
B159: 520 | C159: 寻宝图*5 | D159: 8 | E159: 1 | F159: 1 | G159: 1#400 | H159: 60#5 | I159: 1 | J159: 16|0#0#0#250 | K159: 0 | L159: 1 | M159: 1 | N159: 6 | O159: 试炼商店1
B160: 521 | C160: 寻宝图*10 | D160: 8 | E160: 1 | F160: 1 | G160: 1#400 | H160: 60#10 | I160: 1 | J160: 16|0#0#0#500 | K160: 0 | L160: 1 | M160: 1 | N160: 6 | O160: 试炼商店1
B161: 522 | C161: 进阶丹*500 | D161: 8 | E161: 1 | F161: 1 | G161: 1#400 | H161: 4#500 | I161: 1 | J161: 16|0#0#0#500 | K161: 0 | L161: 1 | M161: 1 | N161: 5 | O161: 试炼商店1
B162: 523 | C162: 进阶丹*1000 | D162: 8 | E162: 1 | F162: 1 | G162: 1#400 | H162: 4#1000 | I162: 1 | J162: 16|0#0#0#1000 | K162: 0 | L162: 1 | M162: 1 | N162: 5 | O162: 试炼商店1
B163: 524 | C163: 竞技次数*3 | D163: 8 | E163: 1 | F163: 1 | G163: 1#400 | H163: 23#3 | I163: 1 | J163: 16|0#0#0#60 | K163: 0 | L163: 1 | M163: 1 | N163: 6 | O163: 试炼商店1
B164: 525 | C164: 竞技次数*5 | D164: 8 | E164: 1 | F164: 1 | G164: 1#400 | H164: 23#5 | I164: 1 | J164: 16|0#0#0#100 | K164: 0 | L164: 1 | M164: 1 | N164: 6 | O164: 试炼商店1
B165: 526 | C165: 竞技次数*10 | D165: 8 | E165: 1 | F165: 1 | G165: 1#400 | H165: 23#10 | I165: 1 | J165: 16|0#0#0#200 | K165: 0 | L165: 1 | M165: 1 | N165: 6 | O165: 试炼商店1
B166: 527 | C166: 人系5星碎片*50 | D166: 8 | E166: 1 | F166: 1 | G166: 1#400 | H166: 12009#50 | I166: 1 | J166: 16|0#0#0#6000 | K166: 0 | L166: 1 | M166: 1 | N166: 5 | O166: 试炼商店1
B167: 528 | C167: 佛系5星碎片*50 | D167: 8 | E167: 1 | F167: 1 | G167: 1#400 | H167: 12011#50 | I167: 1 | J167: 16|0#0#0#6000 | K167: 0 | L167: 1 | M167: 1 | N167: 5 | O167: 试炼商店1
B168: 529 | C168: 妖系5星碎片*50 | D168: 8 | E168: 1 | F168: 1 | G168: 1#400 | H168: 12008#50 | I168: 1 | J168: 16|0#0#0#6000 | K168: 0 | L168: 1 | M168: 1 | N168: 5 | O168: 试炼商店1
B169: 530 | C169: 道系5星碎片*50 | D169: 8 | E169: 1 | F169: 1 | G169: 1#400 | H169: 12010#50 | I169: 1 | J169: 16|0#0#0#6000 | K169: 0 | L169: 1 | M169: 1 | N169: 5 | O169: 试炼商店1
B170: 531 | C170: 5星碎片*50 | D170: 8 | E170: 1 | F170: 1 | G170: 1#400 | H170: 12013#50 | I170: 1 | J170: 16|0#0#0#6000 | K170: 0 | L170: 1 | M170: 1 | N170: 5 | O170: 试炼商店1
B171: 532 | C171: 武将经验*100000 | D171: 8 | E171: 1 | F171: 1 | G171: 1#400 | H171: 3#100000 | I171: 1 | J171: 14|0#0#0#500000 | K171: 0 | L171: 1 | M171: 1 | N171: 5 | O171: 试炼商店2
B172: 533 | C172: 武将经验*200000 | D172: 8 | E172: 1 | F172: 1 | G172: 1#400 | H172: 3#200000 | I172: 1 | J172: 14|0#0#0#1000000 | K172: 0 | L172: 1 | M172: 1 | N172: 5 | O172: 试炼商店2
B173: 534 | C173: 武将经验*400000 | D173: 8 | E173: 1 | F173: 1 | G173: 1#400 | H173: 3#400000 | I173: 1 | J173: 14|0#0#0#2000000 | K173: 0 | L173: 1 | M173: 1 | N173: 5 | O173: 试炼商店2
B174: 535 | C174: 竞技次数*3 | D174: 8 | E174: 1 | F174: 1 | G174: 1#400 | H174: 23#3 | I174: 1 | J174: 14|0#0#0#300000 | K174: 0 | L174: 1 | M174: 1 | N174: 5 | O174: 试炼商店2
B175: 536 | C175: 竞技次数*5 | D175: 8 | E175: 1 | F175: 1 | G175: 1#400 | H175: 23#5 | I175: 1 | J175: 14|0#0#0#500000 | K175: 0 | L175: 1 | M175: 1 | N175: 5 | O175: 试炼商店2
B176: 537 | C176: 竞技次数*10 | D176: 8 | E176: 1 | F176: 1 | G176: 1#400 | H176: 23#10 | I176: 1 | J176: 14|0#0#0#1000000 | K176: 0 | L176: 1 | M176: 1 | N176: 5 | O176: 试炼商店2
B177: 541 | C177: 进阶丹*500 | D177: 8 | E177: 1 | F177: 1 | G177: 1#400 | H177: 4#500 | I177: 1 | J177: 14|0#0#0#2500000 | K177: 0 | L177: 1 | M177: 1 | N177: 5 | O177: 试炼商店2
B178: 542 | C178: 进阶丹*1000 | D178: 8 | E178: 1 | F178: 1 | G178: 1#400 | H178: 4#1000 | I178: 1 | J178: 14|0#0#0#5000000 | K178: 0 | L178: 1 | M178: 1 | N178: 5 | O178: 试炼商店2
B179: 547 | C179: 武将经验*100000 | D179: 8 | E179: 2 | F179: 1 | G179: 1#400 | H179: 3#100000 | I179: 1 | J179: 16|0#0#0#100 | K179: 0 | L179: 1 | M179: 1 | N179: 5 | O179: 试炼商店1
B180: 548 | C180: 武将经验*200000 | D180: 8 | E180: 2 | F180: 1 | G180: 1#400 | H180: 3#200000 | I180: 1 | J180: 16|0#0#0#200 | K180: 0 | L180: 1 | M180: 1 | N180: 5 | O180: 试炼商店1
B181: 549 | C181: 武将经验*400000 | D181: 8 | E181: 2 | F181: 1 | G181: 1#400 | H181: 3#400000 | I181: 1 | J181: 16|0#0#0#400 | K181: 0 | L181: 1 | M181: 1 | N181: 5 | O181: 试炼商店1
B182: 550 | C182: 阵营抽*1 | D182: 8 | E182: 2 | F182: 1 | G182: 1#400 | H182: 20#1 | I182: 1 | J182: 16|0#0#0#2500 | K182: 0 | L182: 1 | M182: 1 | N182: 4 | O182: 试炼商店1
B183: 551 | C183: 阵营抽*1 | D183: 8 | E183: 2 | F183: 1 | G183: 1#400 | H183: 20#1 | I183: 1 | J183: 16|0#0#0#2500 | K183: 0 | L183: 1 | M183: 1 | N183: 2 | O183: 试炼商店1
B184: 552 | C184: 高抽*1 | D184: 8 | E184: 2 | F184: 1 | G184: 1#400 | H184: 19#1 | I184: 1 | J184: 16|0#0#0#250 | K184: 0 | L184: 1 | M184: 1 | N184: 6 | O184: 试炼商店1
B185: 553 | C185: 高抽*3 | D185: 8 | E185: 2 | F185: 1 | G185: 1#400 | H185: 19#3 | I185: 1 | J185: 16|0#0#0#750 | K185: 0 | L185: 1 | M185: 1 | N185: 6 | O185: 试炼商店1
B186: 554 | C186: 高抽*5 | D186: 8 | E186: 2 | F186: 1 | G186: 1#400 | H186: 19#5 | I186: 1 | J186: 16|0#0#0#1250 | K186: 0 | L186: 1 | M186: 1 | N186: 6 | O186: 试炼商店1
B187: 555 | C187: 寻宝图*3 | D187: 8 | E187: 2 | F187: 1 | G187: 1#400 | H187: 60#3 | I187: 1 | J187: 16|0#0#0#150 | K187: 0 | L187: 1 | M187: 1 | N187: 6 | O187: 试炼商店1
B188: 556 | C188: 寻宝图*5 | D188: 8 | E188: 2 | F188: 1 | G188: 1#400 | H188: 60#5 | I188: 1 | J188: 16|0#0#0#250 | K188: 0 | L188: 1 | M188: 1 | N188: 6 | O188: 试炼商店1
B189: 557 | C189: 寻宝图*10 | D189: 8 | E189: 2 | F189: 1 | G189: 1#400 | H189: 60#10 | I189: 1 | J189: 16|0#0#0#500 | K189: 0 | L189: 1 | M189: 1 | N189: 6 | O189: 试炼商店1
B190: 558 | C190: 进阶丹*500 | D190: 8 | E190: 2 | F190: 1 | G190: 1#400 | H190: 4#500 | I190: 1 | J190: 16|0#0#0#500 | K190: 0 | L190: 1 | M190: 1 | N190: 5 | O190: 试炼商店1
B191: 559 | C191: 进阶丹*1000 | D191: 8 | E191: 2 | F191: 1 | G191: 1#400 | H191: 4#1000 | I191: 1 | J191: 16|0#0#0#1000 | K191: 0 | L191: 1 | M191: 1 | N191: 5 | O191: 试炼商店1
B192: 560 | C192: 竞技次数*3 | D192: 8 | E192: 2 | F192: 1 | G192: 1#400 | H192: 23#3 | I192: 1 | J192: 16|0#0#0#60 | K192: 0 | L192: 1 | M192: 1 | N192: 6 | O192: 试炼商店1
B193: 561 | C193: 竞技次数*5 | D193: 8 | E193: 2 | F193: 1 | G193: 1#400 | H193: 23#5 | I193: 1 | J193: 16|0#0#0#100 | K193: 0 | L193: 1 | M193: 1 | N193: 6 | O193: 试炼商店1
B194: 562 | C194: 竞技次数*10 | D194: 8 | E194: 2 | F194: 1 | G194: 1#400 | H194: 23#10 | I194: 1 | J194: 16|0#0#0#200 | K194: 0 | L194: 1 | M194: 1 | N194: 6 | O194: 试炼商店1
B195: 563 | C195: 1阵营5星碎片*50 | D195: 8 | E195: 2 | F195: 1 | G195: 1#400 | H195: 12009#50 | I195: 1 | J195: 16|0#0#0#6000 | K195: 0 | L195: 1 | M195: 1 | N195: 5 | O195: 试炼商店1
B196: 564 | C196: 2阵营5星碎片*50 | D196: 8 | E196: 2 | F196: 1 | G196: 1#400 | H196: 12011#50 | I196: 1 | J196: 16|0#0#0#6000 | K196: 0 | L196: 1 | M196: 1 | N196: 5 | O196: 试炼商店1
B197: 565 | C197: 3阵营5星碎片*50 | D197: 8 | E197: 2 | F197: 1 | G197: 1#400 | H197: 12008#50 | I197: 1 | J197: 16|0#0#0#6000 | K197: 0 | L197: 1 | M197: 1 | N197: 5 | O197: 试炼商店1
B198: 566 | C198: 4阵营5星碎片*50 | D198: 8 | E198: 2 | F198: 1 | G198: 1#400 | H198: 12010#50 | I198: 1 | J198: 16|0#0#0#6000 | K198: 0 | L198: 1 | M198: 1 | N198: 5 | O198: 试炼商店1
B199: 567 | C199: 5星碎片*50 | D199: 8 | E199: 2 | F199: 1 | G199: 1#400 | H199: 12013#50 | I199: 1 | J199: 16|0#0#0#6000 | K199: 0 | L199: 1 | M199: 1 | N199: 5 | O199: 试炼商店1
B200: 568 | C200: 武将经验*100000 | D200: 8 | E200: 2 | F200: 1 | G200: 1#400 | H200: 3#100000 | I200: 1 | J200: 14|0#0#0#500000 | K200: 0 | L200: 1 | M200: 1 | N200: 5 | O200: 试炼商店2
... 1780 more rows

Sheet Sheet1
V1: ReadingName | W1: Id
V2: string | W2: int
G3: id | H3: 姓名 | I3: 系数 | L3: 碎片id | V3: 3 | W3: 2
F4: 11034 | G4: 10034 | H4: 伏冥 | I4: 6 | K4: 10034 | L4: =K4+1000 -> 11034 | M4: 40 | O4: =[2]!SUMSTRING(L4:M4,"#") ->  | Q4: =H4&"碎片" -> 伏冥碎片 | V4: 角色名（辨识用） | W4: 角色ID
F5: 11035 | G5: 10035 | H5: 司空染 | I5: 6 | K5: 10035 | L5: =K5+1000 -> 11035 | M5: 40 | O5: =[2]!SUMSTRING(L5:M5,"#") ->  | Q5: =H5&"碎片" -> 司空染碎片 | W5: 0
F6: 11044 | G6: 10044 | H6: 姜燧 | I6: 6 | K6: 10044 | L6: 11044 | M6: 40 | O6: =[2]!SUMSTRING(L6:M6,"#") ->  | Q6: 姜燧碎片
F7: 11026 | G7: 10026 | H7: 孙晴 | I7: 5 | K7: 10026 | L7: 11026 | M7: 40 | O7: =[2]!SUMSTRING(L7:M7,"#") ->  | Q7: 孙晴碎片
F8: 11027 | G8: 10027 | H8: 宁月 | I8: 5 | K8: 10027 | L8: 11027 | M8: 40 | O8: =[2]!SUMSTRING(L8:M8,"#") ->  | Q8: 宁月碎片 | V8: 石御霏 | W8: 10001
F9: 11028 | G9: 10028 | H9: 紫川 | I9: 5 | K9: 10028 | L9: 11028 | M9: 40 | O9: =[2]!SUMSTRING(L9:M9,"#") ->  | Q9: 紫川碎片 | V9: 楚恒 | W9: 10002
F10: 11046 | G10: 10046 | H10: 林越 | I10: 5 | K10: 10046 | L10: 11046 | M10: 40 | O10: =[2]!SUMSTRING(L10:M10,"#") ->  | Q10: 林越碎片 | V10: 夏侯鸿天 | W10: 10003
F11: 11029 | G11: 10029 | H11: 晏息 | I11: 4 | K11: 10029 | L11: 11029 | M11: 40 | O11: =[2]!SUMSTRING(L11:M11,"#") ->  | Q11: 晏息碎片 | V11: 应茹 | W11: 10004
F12: 11031 | G12: 10031 | H12: 贾裴武 | I12: 4 | K12: 10031 | L12: 11031 | M12: 40 | O12: =[2]!SUMSTRING(L12:M12,"#") ->  | Q12: 贾裴武碎片 | V12: 端木葵 | W12: 10005
F13: 11032 | G13: 10032 | H13: 雷燕 | I13: 4 | K13: 10032 | L13: 11032 | M13: 40 | O13: =[2]!SUMSTRING(L13:M13,"#") ->  | Q13: 雷燕碎片 | V13: 兰卿 | W13: 10006
F14: 11033 | G14: 10033 | H14: 辛夷 | I14: 4 | K14: 10033 | L14: 11033 | M14: 40 | O14: =[2]!SUMSTRING(L14:M14,"#") ->  | Q14: 辛夷碎片 | V14: 靖之 | W14: 10007
F15: 11036 | G15: 10036 | H15: 解幽 | I15: 3 | K15: 10036 | L15: 11036 | M15: 40 | O15: =[2]!SUMSTRING(L15:M15,"#") ->  | Q15: 解幽碎片 | V15: 白梦凡 | W15: 10008
F16: 11037 | G16: 10037 | H16: 薛苓 | I16: 3 | K16: 10037 | L16: 11037 | M16: 40 | O16: =[2]!SUMSTRING(L16:M16,"#") ->  | Q16: 薛苓碎片 | V16: 祁菲 | W16: 10009
F17: 11039 | G17: 10039 | H17: 呼延腾 | I17: 3 | K17: 10039 | L17: 11039 | M17: 40 | O17: =[2]!SUMSTRING(L17:M17,"#") ->  | Q17: 呼延腾碎片 | V17: 颜祈佳 | W17: 10010
F18: 11043 | G18: 10043 | H18: 乌廉 | I18: 3 | K18: 10043 | L18: 11043 | M18: 40 | O18: =[2]!SUMSTRING(L18:M18,"#") ->  | Q18: 乌廉碎片 | V18: 岳寅 | W18: 10011
F19: 11024 | G19: 10024 | H19: 许槿然 | I19: 2 | K19: 10024 | L19: 11024 | M19: 40 | O19: =[2]!SUMSTRING(L19:M19,"#") ->  | Q19: 许槿然碎片 | V19: 慕容子期 | W19: 10012
F20: 11030 | G20: 10030 | H20: 瑶瑶 | I20: 2 | K20: 10030 | L20: 11030 | M20: 40 | O20: =[2]!SUMSTRING(L20:M20,"#") ->  | Q20: 瑶瑶碎片 | V20: 云灵 | W20: 10013
F21: 11042 | G21: 10042 | H21: 叶辽 | I21: 2 | K21: 10042 | L21: 11042 | M21: 40 | O21: =[2]!SUMSTRING(L21:M21,"#") ->  | Q21: 叶辽碎片 | V21: 耿陶 | W21: 10014
F22: 11045 | G22: 10045 | H22: 苏可 | I22: 2 | K22: 10045 | L22: 11045 | M22: 40 | O22: =[2]!SUMSTRING(L22:M22,"#") ->  | Q22: 苏可碎片 | V22: 云 | W22: 10015
F23: 11025 | G23: 10025 | H23: 唐萱 | I23: 1 | K23: 10025 | L23: 11025 | M23: 40 | O23: =[2]!SUMSTRING(L23:M23,"#") ->  | Q23: 唐萱碎片 | V23: 岑以航 | W23: 10016
F24: 11038 | G24: 10038 | H24: 常申 | I24: 1 | K24: 10038 | L24: 11038 | M24: 40 | O24: =[2]!SUMSTRING(L24:M24,"#") ->  | Q24: 常申碎片 | V24: 影蓟 | W24: 10017
F25: 11040 | G25: 10040 | H25: 冉宜 | I25: 1 | K25: 10040 | L25: 11040 | M25: 40 | O25: =[2]!SUMSTRING(L25:M25,"#") ->  | Q25: 冉宜碎片 | V25: 朱贺 | W25: 10018
F26: 11041 | G26: 10041 | H26: 孟灿 | I26: 1 | K26: 10041 | L26: 11041 | M26: 40 | O26: =[2]!SUMSTRING(L26:M26,"#") ->  | Q26: 孟灿碎片 | V26: 孔谦 | W26: 10019
V27: 颜无雍 | W27: 10020
G28: =VLOOKUP(H28,$V:$W,2,0) -> 10005 | H28: 端木葵 | I28: 7 | K28: =G28+1000 -> 11005 | L28: 50 | O28: =[2]!SUMSTRING(K28:L28,"#") ->  | Q28: 端木葵碎片 | V28: 岑以璇 | W28: 10021
G29: =VLOOKUP(H29,$V:$W,2,0) -> 10006 | H29: 兰卿 | I29: 7 | K29: =G29+1000 -> 11006 | L29: 50 | O29: =[2]!SUMSTRING(K29:L29,"#") ->  | Q29: 兰卿碎片 | V29: 颜无诡 | W29: 10022
G30: 10007 | H30: 靖之 | I30: 7 | K30: 11007 | L30: 50 | O30: =[2]!SUMSTRING(K30:L30,"#") ->  | Q30: 靖之碎片 | V30: 荧荧 | W30: 10023
G31: 10010 | H31: 颜祈佳 | I31: 7 | K31: 11010 | L31: 50 | O31: =[2]!SUMSTRING(K31:L31,"#") ->  | Q31: 颜祈佳碎片 | V31: 许槿然 | W31: 10024
G32: 10011 | H32: 岳寅 | I32: =I28+1 -> 8 | K32: 11011 | L32: 50 | O32: =[2]!SUMSTRING(K32:L32,"#") ->  | Q32: 岳寅碎片 | V32: 唐萱 | W32: 10025
G33: 10013 | H33: 云灵 | I33: =I29+1 -> 8 | K33: 11013 | L33: 50 | O33: =[2]!SUMSTRING(K33:L33,"#") ->  | Q33: 云灵碎片 | V33: 孙晴 | W33: 10026
G34: 10016 | H34: 岑以航 | I34: 8 | K34: 11016 | L34: 50 | O34: =[2]!SUMSTRING(K34:L34,"#") ->  | Q34: 岑以航碎片 | V34: 宁月 | W34: 10027
G35: 10020 | H35: 颜无雍 | I35: 8 | K35: 11020 | L35: 50 | O35: =[2]!SUMSTRING(K35:L35,"#") ->  | Q35: 颜无雍碎片 | V35: 紫川 | W35: 10028
G36: 10021 | H36: 岑以璇 | I36: 9 | K36: 11021 | L36: 50 | O36: =[2]!SUMSTRING(K36:L36,"#") ->  | Q36: 岑以璇碎片 | V36: 晏息 | W36: 10029
G37: 10022 | H37: 颜无诡 | I37: 9 | K37: 11022 | L37: 50 | O37: =[2]!SUMSTRING(K37:L37,"#") ->  | Q37: 颜无诡碎片 | V37: 瑶瑶 | W37: 10030
G38: 10002 | H38: 楚恒 | I38: 9 | K38: 11002 | L38: 50 | O38: =[2]!SUMSTRING(K38:L38,"#") ->  | Q38: 楚恒碎片 | V38: 贾裴武 | W38: 10031
G39: 10003 | H39: 夏侯鸿天 | I39: 9 | K39: 11003 | L39: 50 | O39: =[2]!SUMSTRING(K39:L39,"#") ->  | Q39: 夏侯鸿天碎片 | V39: 雷燕 | W39: 10032
V40: 辛夷 | W40: 10033
V41: 伏冥 | W41: 10034
V42: 司空染 | W42: 10035
V43: 解幽 | W43: 10036
V44: 薛苓 | W44: 10037
V45: 常申 | W45: 10038
C46: 11047 | D46: 30 | E46: =VLOOKUP(C46,[3]ItemConfig!$B:$C,2,0) -> 大火妖碎片 | V46: 呼延腾 | W46: 10039
C47: 11048 | D47: 30 | E47: =VLOOKUP(C47,[3]ItemConfig!$B:$C,2,0) -> 雪女碎片 | V47: 冉宜 | W47: 10040
C48: 11049 | D48: 30 | E48: =VLOOKUP(C48,[3]ItemConfig!$B:$C,2,0) -> 娜迦王碎片 | V48: 孟灿 | W48: 10041
C49: 11050 | D49: 30 | E49: =VLOOKUP(C49,[3]ItemConfig!$B:$C,2,0) -> 摩呼碎片 | V49: 叶辽 | W49: 10042
C50: 11051 | D50: 30 | E50: =VLOOKUP(C50,[3]ItemConfig!$B:$C,2,0) -> 半仙碎片 | V50: 乌廉 | W50: 10043
C51: 11052 | D51: 30 | E51: =VLOOKUP(C51,[3]ItemConfig!$B:$C,2,0) -> 荷莲碎片 | V51: 姜燧 | W51: 10044
C52: 11047 | D52: 30 | E52: =VLOOKUP(C52,[3]ItemConfig!$B:$C,2,0) -> 大火妖碎片 | V52: 苏可 | W52: 10045
C53: 11048 | D53: 30 | E53: =VLOOKUP(C53,[3]ItemConfig!$B:$C,2,0) -> 雪女碎片 | V53: 林越 | W53: 10046
C54: 11049 | D54: 30 | E54: =VLOOKUP(C54,[3]ItemConfig!$B:$C,2,0) -> 娜迦王碎片 | V54: 赤肥肥 | W54: 10047
C55: 11050 | D55: 30 | E55: =VLOOKUP(C55,[3]ItemConfig!$B:$C,2,0) -> 摩呼碎片 | V55: 银肥肥 | W55: 10048
C56: 11051 | D56: 30 | E56: =VLOOKUP(C56,[3]ItemConfig!$B:$C,2,0) -> 半仙碎片 | V56: 苍肥肥 | W56: 10049
C57: 11052 | D57: 30 | E57: =VLOOKUP(C57,[3]ItemConfig!$B:$C,2,0) -> 荷莲碎片 | V57: 金肥肥 | W57: 10050
C58: 11024 | D58: 40 | E58: =VLOOKUP(C58,[3]ItemConfig!$B:$C,2,0) -> 姜子牙碎片 | V58: 阳魔 | W58: 10051
C59: 11025 | D59: 40 | E59: =VLOOKUP(C59,[3]ItemConfig!$B:$C,2,0) -> 道德天尊碎片 | V59: 阴魔 | W59: 10052
C60: 11026 | D60: 40 | E60: =VLOOKUP(C60,[3]ItemConfig!$B:$C,2,0) -> 东华帝君碎片
C61: 11027 | D61: 40 | E61: =VLOOKUP(C61,[3]ItemConfig!$B:$C,2,0) -> 孟婆碎片
C62: 11028 | D62: 40 | E62: =VLOOKUP(C62,[3]ItemConfig!$B:$C,2,0) -> 石矶娘娘碎片
C63: 11029 | D63: 40 | E63: =VLOOKUP(C63,[3]ItemConfig!$B:$C,2,0) -> 月光菩萨碎片
C64: 11030 | D64: 40 | E64: =VLOOKUP(C64,[3]ItemConfig!$B:$C,2,0) -> 梵天碎片
C65: 11031 | D65: 40 | E65: =VLOOKUP(C65,[3]ItemConfig!$B:$C,2,0) -> 红孩儿碎片
C66: 11032 | D66: 40 | E66: =VLOOKUP(C66,[3]ItemConfig!$B:$C,2,0) -> 吴刚碎片
C67: 11033 | D67: 40 | E67: =VLOOKUP(C67,[3]ItemConfig!$B:$C,2,0) -> 净光天女碎片
C68: 11034 | D68: 40 | E68: =VLOOKUP(C68,[3]ItemConfig!$B:$C,2,0) -> 帝释天碎片
C69: 11035 | D69: 40 | E69: =VLOOKUP(C69,[3]ItemConfig!$B:$C,2,0) -> 妈祖碎片
C70: 11036 | D70: 40 | E70: =VLOOKUP(C70,[3]ItemConfig!$B:$C,2,0) -> 赵公明碎片
C71: 11037 | D71: 40 | E71: =VLOOKUP(C71,[3]ItemConfig!$B:$C,2,0) -> 罗刹碎片
C72: 11038 | D72: 40 | E72: =VLOOKUP(C72,[3]ItemConfig!$B:$C,2,0) -> 夜叉碎片
C73: 11039 | D73: 40 | E73: =VLOOKUP(C73,[3]ItemConfig!$B:$C,2,0) -> 普贤菩萨碎片
C74: 11040 | D74: 40 | E74: =VLOOKUP(C74,[3]ItemConfig!$B:$C,2,0) -> 杨戬碎片
C75: 11041 | D75: 40 | E75: =VLOOKUP(C75,[3]ItemConfig!$B:$C,2,0) -> 通天教主碎片
C76: 11042 | D76: 40 | E76: =VLOOKUP(C76,[3]ItemConfig!$B:$C,2,0) -> 九天玄女碎片
C77: 11043 | D77: 40 | E77: =VLOOKUP(C77,[3]ItemConfig!$B:$C,2,0) -> 骊山老祖碎片
C78: 11044 | D78: 40 | E78: =VLOOKUP(C78,[3]ItemConfig!$B:$C,2,0) -> 混世魔王碎片
C79: 11045 | D79: 40 | E79: =VLOOKUP(C79,[3]ItemConfig!$B:$C,2,0) -> 百花仙子碎片
C80: 11046 | D80: 40 | E80: =VLOOKUP(C80,[3]ItemConfig!$B:$C,2,0) -> 女英碎片
C81: 11024 | D81: 40 | E81: =VLOOKUP(C81,[3]ItemConfig!$B:$C,2,0) -> 姜子牙碎片
C82: 11025 | D82: 40 | E82: =VLOOKUP(C82,[3]ItemConfig!$B:$C,2,0) -> 道德天尊碎片
C83: 11026 | D83: 40 | E83: =VLOOKUP(C83,[3]ItemConfig!$B:$C,2,0) -> 东华帝君碎片
C84: 11027 | D84: 40 | E84: =VLOOKUP(C84,[3]ItemConfig!$B:$C,2,0) -> 孟婆碎片
C85: 11028 | D85: 40 | E85: =VLOOKUP(C85,[3]ItemConfig!$B:$C,2,0) -> 石矶娘娘碎片
C86: 11029 | D86: 40 | E86: =VLOOKUP(C86,[3]ItemConfig!$B:$C,2,0) -> 月光菩萨碎片
C87: 11030 | D87: 40 | E87: =VLOOKUP(C87,[3]ItemConfig!$B:$C,2,0) -> 梵天碎片
C88: 11031 | D88: 40 | E88: =VLOOKUP(C88,[3]ItemConfig!$B:$C,2,0) -> 红孩儿碎片
C89: 11032 | D89: 40 | E89: =VLOOKUP(C89,[3]ItemConfig!$B:$C,2,0) -> 吴刚碎片
C90: 11033 | D90: 40 | E90: =VLOOKUP(C90,[3]ItemConfig!$B:$C,2,0) -> 净光天女碎片
C91: 11034 | D91: 40 | E91: =VLOOKUP(C91,[3]ItemConfig!$B:$C,2,0) -> 帝释天碎片
C92: 11035 | D92: 40 | E92: =VLOOKUP(C92,[3]ItemConfig!$B:$C,2,0) -> 妈祖碎片
C93: 11036 | D93: 40 | E93: =VLOOKUP(C93,[3]ItemConfig!$B:$C,2,0) -> 赵公明碎片
C94: 11037 | D94: 40 | E94: =VLOOKUP(C94,[3]ItemConfig!$B:$C,2,0) -> 罗刹碎片
C95: 11038 | D95: 40 | E95: =VLOOKUP(C95,[3]ItemConfig!$B:$C,2,0) -> 夜叉碎片
C96: 11039 | D96: 40 | E96: =VLOOKUP(C96,[3]ItemConfig!$B:$C,2,0) -> 普贤菩萨碎片
C97: 11040 | D97: 40 | E97: =VLOOKUP(C97,[3]ItemConfig!$B:$C,2,0) -> 杨戬碎片
C98: 11041 | D98: 40 | E98: =VLOOKUP(C98,[3]ItemConfig!$B:$C,2,0) -> 通天教主碎片
C99: 11042 | D99: 40 | E99: =VLOOKUP(C99,[3]ItemConfig!$B:$C,2,0) -> 九天玄女碎片
C100: 11043 | D100: 40 | E100: =VLOOKUP(C100,[3]ItemConfig!$B:$C,2,0) -> 骊山老祖碎片
C101: 11044 | D101: 40 | E101: =VLOOKUP(C101,[3]ItemConfig!$B:$C,2,0) -> 混世魔王碎片
C102: 11045 | D102: 40 | E102: =VLOOKUP(C102,[3]ItemConfig!$B:$C,2,0) -> 百花仙子碎片
C103: 11046 | D103: 40 | E103: =VLOOKUP(C103,[3]ItemConfig!$B:$C,2,0) -> 女英碎片
C104: 11047 | D104: 30 | E104: =VLOOKUP(C104,[3]ItemConfig!$B:$C,2,0) -> 大火妖碎片
C105: 11048 | D105: 30 | E105: =VLOOKUP(C105,[3]ItemConfig!$B:$C,2,0) -> 雪女碎片
C106: 11049 | D106: 30 | E106: =VLOOKUP(C106,[3]ItemConfig!$B:$C,2,0) -> 娜迦王碎片
C107: 11050 | D107: 30 | E107: =VLOOKUP(C107,[3]ItemConfig!$B:$C,2,0) -> 摩呼碎片
C108: 11051 | D108: 30 | E108: =VLOOKUP(C108,[3]ItemConfig!$B:$C,2,0) -> 半仙碎片
C109: 11052 | D109: 30 | E109: =VLOOKUP(C109,[3]ItemConfig!$B:$C,2,0) -> 荷莲碎片
C110: 11024 | D110: 40 | E110: =VLOOKUP(C110,[3]ItemConfig!$B:$C,2,0) -> 姜子牙碎片
C111: 11025 | D111: 40 | E111: =VLOOKUP(C111,[3]ItemConfig!$B:$C,2,0) -> 道德天尊碎片
C112: 11026 | D112: 40 | E112: =VLOOKUP(C112,[3]ItemConfig!$B:$C,2,0) -> 东华帝君碎片
C113: 11027 | D113: 40 | E113: =VLOOKUP(C113,[3]ItemConfig!$B:$C,2,0) -> 孟婆碎片
C114: 11028 | D114: 40 | E114: =VLOOKUP(C114,[3]ItemConfig!$B:$C,2,0) -> 石矶娘娘碎片
C115: 11029 | D115: 40 | E115: =VLOOKUP(C115,[3]ItemConfig!$B:$C,2,0) -> 月光菩萨碎片
C116: 11030 | D116: 40 | E116: =VLOOKUP(C116,[3]ItemConfig!$B:$C,2,0) -> 梵天碎片
C117: 11031 | D117: 40 | E117: =VLOOKUP(C117,[3]ItemConfig!$B:$C,2,0) -> 红孩儿碎片
C118: 11032 | D118: 40 | E118: =VLOOKUP(C118,[3]ItemConfig!$B:$C,2,0) -> 吴刚碎片
C119: 11033 | D119: 40 | E119: =VLOOKUP(C119,[3]ItemConfig!$B:$C,2,0) -> 净光天女碎片
C120: 11034 | D120: 40 | E120: =VLOOKUP(C120,[3]ItemConfig!$B:$C,2,0) -> 帝释天碎片
C121: 11035 | D121: 40 | E121: =VLOOKUP(C121,[3]ItemConfig!$B:$C,2,0) -> 妈祖碎片
C122: 11036 | D122: 40 | E122: =VLOOKUP(C122,[3]ItemConfig!$B:$C,2,0) -> 赵公明碎片
C123: 11037 | D123: 40 | E123: =VLOOKUP(C123,[3]ItemConfig!$B:$C,2,0) -> 罗刹碎片
C124: 11038 | D124: 40 | E124: =VLOOKUP(C124,[3]ItemConfig!$B:$C,2,0) -> 夜叉碎片
C125: 11039 | D125: 40 | E125: =VLOOKUP(C125,[3]ItemConfig!$B:$C,2,0) -> 普贤菩萨碎片
C126: 11040 | D126: 40 | E126: =VLOOKUP(C126,[3]ItemConfig!$B:$C,2,0) -> 杨戬碎片
C127: 11041 | D127: 40 | E127: =VLOOKUP(C127,[3]ItemConfig!$B:$C,2,0) -> 通天教主碎片
C128: 11042 | D128: 40 | E128: =VLOOKUP(C128,[3]ItemConfig!$B:$C,2,0) -> 九天玄女碎片
C129: 11043 | D129: 40 | E129: =VLOOKUP(C129,[3]ItemConfig!$B:$C,2,0) -> 骊山老祖碎片
C130: 11044 | D130: 40 | E130: =VLOOKUP(C130,[3]ItemConfig!$B:$C,2,0) -> 混世魔王碎片
C131: 11045 | D131: 40 | E131: =VLOOKUP(C131,[3]ItemConfig!$B:$C,2,0) -> 百花仙子碎片
C132: 11046 | D132: 40 | E132: =VLOOKUP(C132,[3]ItemConfig!$B:$C,2,0) -> 女英碎片
C133: 3 | D133: 75 | E133: =VLOOKUP(C133,[3]ItemConfig!$B:$C,2,0) -> 成长护符
C134: 3 | D134: 150 | E134: =VLOOKUP(C134,[3]ItemConfig!$B:$C,2,0) -> 成长护符
C135: 4 | D135: 3000 | E135: =VLOOKUP(C135,[3]ItemConfig!$B:$C,2,0) -> 九转金丹
C136: 4 | D136: 6000 | E136: =VLOOKUP(C136,[3]ItemConfig!$B:$C,2,0) -> 九转金丹
C137: 3 | D137: 75 | E137: =VLOOKUP(C137,[3]ItemConfig!$B:$C,2,0) -> 成长护符
C138: 3 | D138: 150 | E138: =VLOOKUP(C138,[3]ItemConfig!$B:$C,2,0) -> 成长护符
C139: 4 | D139: 3000 | E139: =VLOOKUP(C139,[3]ItemConfig!$B:$C,2,0) -> 九转金丹
C140: 4 | D140: 6000 | E140: =VLOOKUP(C140,[3]ItemConfig!$B:$C,2,0) -> 九转金丹
C141: 3 | D141: 75 | E141: =VLOOKUP(C141,[3]ItemConfig!$B:$C,2,0) -> 成长护符
C142: 3 | D142: 150 | E142: =VLOOKUP(C142,[3]ItemConfig!$B:$C,2,0) -> 成长护符
C143: 4 | D143: 3000 | E143: =VLOOKUP(C143,[3]ItemConfig!$B:$C,2,0) -> 九转金丹
C144: 4 | D144: 6000 | E144: =VLOOKUP(C144,[3]ItemConfig!$B:$C,2,0) -> 九转金丹
C145: 19 | D145: 10 | E145: =VLOOKUP(C145,[3]ItemConfig!$B:$C,2,0) -> 点将神符

Sheet Sheet2
D2: 8019 | E2: 1 | H2: =[2]!SUMSTRING(D2:E2,"#") ->  | J2: 3023 | K2: =J2&"#"&E2 -> 3023#1 | L2: =VLOOKUP(J2,[3]ItemConfig!$B:$C,2,FALSE) -> 
D3: 8020 | E3: 1 | H3: =[2]!SUMSTRING(D3:E3,"#") ->  | J3: 3024 | K3: =J3&"#"&E3 -> 3024#1 | L3: =VLOOKUP(J3,[3]ItemConfig!$B:$C,2,FALSE) -> 
D4: 8021 | E4: 1 | H4: =[2]!SUMSTRING(D4:E4,"#") ->  | J4: 3025 | K4: 3025#1 | L4: =VLOOKUP(J4,[3]ItemConfig!$B:$C,2,FALSE) -> 
D5: 8022 | E5: 1 | H5: =[2]!SUMSTRING(D5:E5,"#") ->  | J5: 3026 | K5: 3026#1 | L5: =VLOOKUP(J5,[3]ItemConfig!$B:$C,2,FALSE) -> 
D6: 8023 | E6: 1 | H6: =[2]!SUMSTRING(D6:E6,"#") ->  | J6: 3027 | K6: 3027#1 | L6: =VLOOKUP(J6,[3]ItemConfig!$B:$C,2,FALSE) -> 
D7: 8024 | E7: 1 | H7: =[2]!SUMSTRING(D7:E7,"#") ->  | J7: 3028 | K7: 3028#1 | L7: =VLOOKUP(J7,[3]ItemConfig!$B:$C,2,FALSE) -> 
D8: 8031 | E8: 1 | H8: =[2]!SUMSTRING(D8:E8,"#") ->  | J8: 3029 | K8: 3029#1 | L8: =VLOOKUP(J8,[3]ItemConfig!$B:$C,2,FALSE) -> 
D9: 8032 | E9: 1 | H9: =[2]!SUMSTRING(D9:E9,"#") ->  | J9: 3030 | K9: 3030#1 | L9: =VLOOKUP(J9,[3]ItemConfig!$B:$C,2,FALSE) -> 
D10: 8033 | E10: 1 | H10: =[2]!SUMSTRING(D10:E10,"#") ->  | J10: 3031 | K10: 3031#1 | L10: =VLOOKUP(J10,[3]ItemConfig!$B:$C,2,FALSE) -> 
D11: 8034 | E11: 1 | H11: =[2]!SUMSTRING(D11:E11,"#") ->  | J11: 3032 | K11: 3032#1 | L11: =VLOOKUP(J11,[3]ItemConfig!$B:$C,2,FALSE) -> 
D12: 8035 | E12: 1 | H12: =[2]!SUMSTRING(D12:E12,"#") ->  | J12: 3033 | K12: 3033#1 | L12: =VLOOKUP(J12,[3]ItemConfig!$B:$C,2,FALSE) -> 
D13: 8036 | E13: 1 | H13: =[2]!SUMSTRING(D13:E13,"#") ->  | J13: 3034 | K13: 3034#1 | L13: =VLOOKUP(J13,[3]ItemConfig!$B:$C,2,FALSE) -> 
D14: 8037 | E14: 1 | H14: =[2]!SUMSTRING(D14:E14,"#") ->  | J14: 3035 | K14: 3035#1 | L14: =VLOOKUP(J14,[3]ItemConfig!$B:$C,2,FALSE) -> 
D15: 8038 | E15: 1 | H15: =[2]!SUMSTRING(D15:E15,"#") ->  | J15: 3036 | K15: 3036#1 | L15: =VLOOKUP(J15,[3]ItemConfig!$B:$C,2,FALSE) -> 
D16: 8039 | E16: 1 | H16: =[2]!SUMSTRING(D16:E16,"#") ->  | J16: 3037 | K16: 3037#1 | L16: =VLOOKUP(J16,[3]ItemConfig!$B:$C,2,FALSE) -> 
D17: 8040 | E17: 1 | H17: =[2]!SUMSTRING(D17:E17,"#") ->  | J17: 3038 | K17: 3038#1 | L17: =VLOOKUP(J17,[3]ItemConfig!$B:$C,2,FALSE) -> 
D18: 8041 | E18: 1 | H18: =[2]!SUMSTRING(D18:E18,"#") ->  | J18: 3039 | K18: 3039#1 | L18: =VLOOKUP(J18,[3]ItemConfig!$B:$C,2,FALSE) -> 
D19: 8042 | E19: 1 | H19: =[2]!SUMSTRING(D19:E19,"#") ->  | J19: 3040 | K19: 3040#1 | L19: =VLOOKUP(J19,[3]ItemConfig!$B:$C,2,FALSE) -> 
D20: 8043 | E20: 1 | H20: =[2]!SUMSTRING(D20:E20,"#") ->  | J20: 55234 | K20: 55234#1 | L20: =VLOOKUP(J20,[3]ItemConfig!$B:$C,2,FALSE) -> 
D21: 8044 | E21: 1 | H21: =[2]!SUMSTRING(D21:E21,"#") ->  | J21: 55252 | K21: 55252#1 | L21: =VLOOKUP(J21,[3]ItemConfig!$B:$C,2,FALSE) -> 
D22: 8045 | E22: 1 | H22: =[2]!SUMSTRING(D22:E22,"#") ->  | J22: 55181 | K22: 55181#1 | L22: =VLOOKUP(J22,[3]ItemConfig!$B:$C,2,FALSE) ->  | N22: =SUM(N23:N25) -> 200
D23: 8046 | E23: 1 | H23: =[2]!SUMSTRING(D23:E23,"#") ->  | J23: 55182 | K23: 55182#1 | L23: =VLOOKUP(J23,[3]ItemConfig!$B:$C,2,FALSE) ->  | N23: 95 | O23: =N23/$N$22 -> 47.5%
D24: 8047 | E24: 1 | H24: =[2]!SUMSTRING(D24:E24,"#") ->  | J24: 55199 | K24: 55199#1 | L24: =VLOOKUP(J24,[3]ItemConfig!$B:$C,2,FALSE) ->  | N24: 95 | O24: =N24/$N$22 -> 47.5% | Q24: 4 | R24: =Q24*5 -> 20
D25: 8048 | E25: 1 | H25: =[2]!SUMSTRING(D25:E25,"#") ->  | J25: 55200 | K25: 55200#1 | L25: =VLOOKUP(J25,[3]ItemConfig!$B:$C,2,FALSE) ->  | N25: 10 | O25: =N25/$N$22 -> 5.0% | P25: =6*O25 -> 0.3 | Q25: =P25*Q24 -> 1.2
E26: 1 | J26: 55217 | K26: 55217#1 | L26: =VLOOKUP(J26,[3]ItemConfig!$B:$C,2,FALSE) ->  | P26: =O25*Q26 -> 1 | Q26: 20
E27: 1 | J27: 55218 | K27: 55218#1 | L27: =VLOOKUP(J27,[3]ItemConfig!$B:$C,2,FALSE) -> 
E28: 1 | J28: 55235 | K28: 55235#1 | L28: =VLOOKUP(J28,[3]ItemConfig!$B:$C,2,FALSE) ->  | O28: =0.33*6 -> 1.98 | P28: =O28*2.5 -> 4.95
E29: 1 | J29: 55236 | K29: 55236#1 | L29: =VLOOKUP(J29,[3]ItemConfig!$B:$C,2,FALSE) -> 
E30: 1 | J30: 55253 | K30: 55253#1 | L30: =VLOOKUP(J30,[3]ItemConfig!$B:$C,2,FALSE) ->  | O30: =O25*24 -> 1.2
E31: 1 | J31: 55254 | K31: 55254#1 | L31: =VLOOKUP(J31,[3]ItemConfig!$B:$C,2,FALSE) -> 
E32: 1 | J32: 55183 | K32: 55183#1 | L32: =VLOOKUP(J32,[3]ItemConfig!$B:$C,2,FALSE) -> 
E33: 1 | J33: 55201 | K33: 55201#1 | L33: =VLOOKUP(J33,[3]ItemConfig!$B:$C,2,FALSE) -> 
E34: 1 | J34: 55219 | K34: 55219#1 | L34: =VLOOKUP(J34,[3]ItemConfig!$B:$C,2,FALSE) -> 
E35: 1 | J35: 55237 | K35: 55237#1 | L35: =VLOOKUP(J35,[3]ItemConfig!$B:$C,2,FALSE) -> 
E36: 1 | J36: 55255 | K36: 55255#1 | L36: =VLOOKUP(J36,[3]ItemConfig!$B:$C,2,FALSE) -> 
E37: 1 | J37: 55184 | K37: 55184#1 | L37: =VLOOKUP(J37,[3]ItemConfig!$B:$C,2,FALSE) -> 
E38: 1 | J38: 55185 | K38: 55185#1 | L38: =VLOOKUP(J38,[3]ItemConfig!$B:$C,2,FALSE) -> 
E39: 1 | J39: 55202 | K39: 55202#1 | L39: =VLOOKUP(J39,[3]ItemConfig!$B:$C,2,FALSE) -> 
E40: 1 | J40: 55203 | K40: 55203#1 | L40: =VLOOKUP(J40,[3]ItemConfig!$B:$C,2,FALSE) -> 
E41: 1 | J41: 55220 | K41: 55220#1 | L41: =VLOOKUP(J41,[3]ItemConfig!$B:$C,2,FALSE) -> 
E42: 1 | J42: 55221 | K42: 55221#1 | L42: =VLOOKUP(J42,[3]ItemConfig!$B:$C,2,FALSE) -> 
E43: 1 | J43: 55238 | K43: 55238#1 | L43: =VLOOKUP(J43,[3]ItemConfig!$B:$C,2,FALSE) -> 
E44: 1 | J44: 55239 | K44: 55239#1 | L44: =VLOOKUP(J44,[3]ItemConfig!$B:$C,2,FALSE) -> 
E45: 1 | J45: 55256 | K45: 55256#1 | L45: =VLOOKUP(J45,[3]ItemConfig!$B:$C,2,FALSE) -> 
E46: 1 | J46: 55257 | K46: 55257#1 | L46: =VLOOKUP(J46,[3]ItemConfig!$B:$C,2,FALSE) -> 
E47: 1 | J47: 55189 | K47: 55189#1 | L47: =VLOOKUP(J47,[3]ItemConfig!$B:$C,2,FALSE) -> 
E48: 1 | J48: 55207 | K48: 55207#1 | L48: =VLOOKUP(J48,[3]ItemConfig!$B:$C,2,FALSE) -> 
E49: 1 | J49: 55225 | K49: 55225#1 | L49: =VLOOKUP(J49,[3]ItemConfig!$B:$C,2,FALSE) -> 
E50: 1 | J50: 55243 | K50: 55243#1 | L50: =VLOOKUP(J50,[3]ItemConfig!$B:$C,2,FALSE) -> 
E51: 1 | J51: 55261 | K51: 55261#1 | L51: =VLOOKUP(J51,[3]ItemConfig!$B:$C,2,FALSE) -> 
E52: 1 | J52: 55190 | K52: 55190#1 | L52: =VLOOKUP(J52,[3]ItemConfig!$B:$C,2,FALSE) -> 
E53: 1 | J53: 55191 | K53: 55191#1 | L53: =VLOOKUP(J53,[3]ItemConfig!$B:$C,2,FALSE) -> 
E54: 1 | J54: 55192 | K54: 55192#1 | L54: =VLOOKUP(J54,[3]ItemConfig!$B:$C,2,FALSE) -> 
E55: 1 | J55: 55208 | K55: 55208#1 | L55: =VLOOKUP(J55,[3]ItemConfig!$B:$C,2,FALSE) -> 
E56: 1 | J56: 55209 | K56: 55209#1 | L56: =VLOOKUP(J56,[3]ItemConfig!$B:$C,2,FALSE) -> 
E57: 1 | J57: 55210 | K57: 55210#1 | L57: =VLOOKUP(J57,[3]ItemConfig!$B:$C,2,FALSE) -> 
E58: 1 | J58: 55226 | K58: 55226#1 | L58: =VLOOKUP(J58,[3]ItemConfig!$B:$C,2,FALSE) -> 
E59: 1 | J59: 55227 | K59: 55227#1 | L59: =VLOOKUP(J59,[3]ItemConfig!$B:$C,2,FALSE) -> 
E60: 1 | J60: 55228 | K60: 55228#1 | L60: =VLOOKUP(J60,[3]ItemConfig!$B:$C,2,FALSE) -> 
E61: 1 | J61: 55244 | K61: 55244#1 | L61: =VLOOKUP(J61,[3]ItemConfig!$B:$C,2,FALSE) -> 
E62: 1 | J62: 55245 | K62: 55245#1 | L62: =VLOOKUP(J62,[3]ItemConfig!$B:$C,2,FALSE) -> 
E63: 1 | J63: 55246 | K63: 55246#1 | L63: =VLOOKUP(J63,[3]ItemConfig!$B:$C,2,FALSE) -> 
E64: 1 | J64: 55262 | K64: 55262#1 | L64: =VLOOKUP(J64,[3]ItemConfig!$B:$C,2,FALSE) -> 
E65: 1 | J65: 55263 | K65: 55263#1 | L65: =VLOOKUP(J65,[3]ItemConfig!$B:$C,2,FALSE) -> 
E66: 1 | J66: 55264 | K66: 55264#1 | L66: =VLOOKUP(J66,[3]ItemConfig!$B:$C,2,FALSE) -> 

Sheet 竞技场商店
C2: id | D2: 数量 | E2: 消耗
B3: 高级招募券 | C3: 19 | D3: 10
B4: 妖魂魔戒 | C4: 21 | D4: 10
B5: 五星万能碎片（4系） | D5: 50 | E5: 1000
B6: 橙色符文1 | C6: 8019 | D6: 1 | F6: =_xlfn.TEXTJOIN("#",TRUE,C6:D6) -> 8019#1
B7: 橙色符文2 | C7: 8020 | D7: =D6 -> 1 | F7: 8020#1
B8: 橙色符文3 | C8: 8021 | D8: =D7 -> 1 | F8: 8021#1
C9: 8022 | D9: =D8 -> 1 | F9: 8022#1
C10: 8023 | D10: =D9 -> 1 | F10: 8023#1
C11: 8024 | D11: =D10 -> 1 | F11: 8024#1

Sheet 商店
Q1: Id | R1: Name | S1: Id
Q2: int | R2: string | S2: int
Q3: 2 | R3: 2 | S3: 2
E4: 试炼商店 | Q4: 道具id | R4: 道具名 | S4: 道具id
E5: 5星随机碎片 | F5: 50 | G5: 3000 | I5: =VLOOKUP(E5,$R:$S,2,FALSE) -> 12013 | J5: =I5&"#"&F5 -> 12013#50 | K5: 16|0#0#0# | L5: =K5&G5 -> 16|0#0#0#3000 | Q5: 0 | R5: ="" ->  | S5: 0
E6: 梦魇妖壶 | F6: 1000 | G6: 1000 | I6: 4 | J6: 4#1000 | K6: 16|0#0#0# | L6: =K6&G6 -> 16|0#0#0#1000
E7: 成长护符 | F7: 300000 | G7: 750 | I7: 3 | J7: 3#300000 | K7: 16|0#0#0# | L7: 16|0#0#0#750
E8: 挑战券 | F8: 10 | G8: 100 | I8: 23 | J8: 23#10 | K8: 16|0#0#0# | L8: 16|0#0#0#100 | Q8: 1 | R8: 行动力 | S8: 1
E9: 聚灵神戒 | F9: 10 | G9: 2100 | I9: 19 | J9: 19#10 | K9: 16|0#0#0# | L9: 16|0#0#0#2100 | Q9: 2 | R9: 体力 | S9: 2
E10: 妖魂魔戒 | F10: 5 | G10: 900 | I10: 21 | J10: 21#5 | K10: 16|0#0#0# | L10: 16|0#0#0#900 | Q10: 3 | R10: 成长护符 | S10: 3
E11: 元素神戒 | F11: 1 | G11: 500 | I11: 20 | J11: 20#1 | K11: 16|0#0#0# | L11: 16|0#0#0#500 | Q11: 4 | R11: 梦魇妖壶 | S11: 4
D12: 6001 | E12: 魔铃 | F12: 1 | G12: 600 | I12: =D12 -> 6001 | J12: 6001#1 | K12: 16|0#0#0# | L12: 16|0#0#0#600 | Q12: 5 | R12: 灵丹 | S12: 5
D13: 6002 | E13: 牛魔 | F13: 1 | G13: 600 | I13: =D13 -> 6002 | J13: =I13&"#"&F13 -> 6002#1 | K13: 16|0#0#0# | L13: 16|0#0#0#600 | Q13: 6 | R13: 归元髓液 | S13: 6
D14: 6003 | E14: 破狼刃 | F14: 1 | G14: 600 | I14: 6003 | J14: 6003#1 | K14: 16|0#0#0# | L14: 16|0#0#0#600 | Q14: 14 | R14: 金币 | S14: 14
D15: 6004 | E15: 叶青 | F15: 1 | G15: 600 | I15: 6004 | J15: 6004#1 | K15: 16|0#0#0# | L15: 16|0#0#0#600 | Q15: 15 | R15: 魂晶 | S15: 15
D16: 6005 | E16: 饕餮 | F16: 1 | G16: 600 | I16: 6005 | J16: 6005#1 | K16: 16|0#0#0# | L16: 16|0#0#0#600 | Q16: 16 | R16: 妖晶 | S16: 16
D17: 6006 | E17: 嗜魂虎 | F17: 1 | G17: 600 | I17: 6006 | J17: 6006#1 | K17: 16|0#0#0# | L17: 16|0#0#0#600 | Q17: 17 | R17: 经验(玩家) | S17: 17
D18: 6007 | E18: 散财 | F18: 1 | G18: 600 | I18: 6007 | J18: 6007#1 | K18: 16|0#0#0# | L18: 16|0#0#0#600 | Q18: 18 | R18: vip经验 | S18: 18
D19: 6008 | E19: 狐云 | F19: 1 | G19: 600 | I19: 6008 | J19: 6008#1 | K19: 16|0#0#0# | L19: 16|0#0#0#600 | Q19: 19 | R19: 聚灵神戒 | S19: 19
D20: 6009 | E20: 鳞波甲 | F20: 1 | G20: 600 | I20: 6009 | J20: 6009#1 | K20: 16|0#0#0# | L20: 16|0#0#0#600 | Q20: 20 | R20: 元素神戒 | S20: 20
D21: 6013 | E21: 不尽木 | F21: 1 | G21: 2000 | I21: 6013 | J21: =I21&"#"&F21 -> 6013#1 | K21: 16|0#0#0# | L21: 16|0#0#0#2000 | Q21: 21 | R21: 妖魂魔戒 | S21: 21
D22: 6014 | E22: 灼炎 | F22: 1 | G22: 2000 | I22: 6014 | J22: 6014#1 | K22: 16|0#0#0# | L22: 16|0#0#0#2000 | Q22: 22 | R22: 妖灵玉 | S22: 22
D23: 6015 | E23: 火浣纹 | F23: 1 | G23: 2000 | I23: 6015 | J23: 6015#1 | K23: 16|0#0#0# | L23: 16|0#0#0#2000 | Q23: 23 | R23: 挑战券 | S23: 23
D24: 6016 | E24: 赤瞳 | F24: 1 | G24: 2000 | I24: 6016 | J24: 6016#1 | K24: 16|0#0#0# | L24: 16|0#0#0#2000 | Q24: 24 | R24: 荣耀徽章 | S24: 24
D25: 6017 | E25: 飞云 | F25: 1 | G25: 2000 | I25: 6017 | J25: 6017#1 | K25: 16|0#0#0# | L25: 16|0#0#0#2000 | Q25: 25 | R25: 精英证明 | S25: 25
D26: 6018 | E26: 无善念珠 | F26: 1 | G26: 2000 | I26: 6018 | J26: 6018#1 | K26: 16|0#0#0# | L26: 16|0#0#0#2000 | Q26: 26 | R26: 心火明晶 | S26: 26
D27: 6019 | E27: 非雾 | F27: 1 | G27: 2000 | I27: 6019 | J27: 6019#1 | K27: 16|0#0#0# | L27: 16|0#0#0#2000 | Q27: 27 | R27: 普通入场券 | S27: 27
D28: 6020 | E28: 流苏 | F28: 1 | G28: 2000 | I28: 6020 | J28: 6020#1 | K28: 16|0#0#0# | L28: 16|0#0#0#2000 | Q28: 28 | R28: 精英入场券 | S28: 28
D29: 6021 | E29: 锋刃 | F29: 1 | G29: 2000 | I29: 6021 | J29: 6021#1 | K29: 16|0#0#0# | L29: 16|0#0#0#2000 | Q29: 29 | R29: 深渊魔石 | S29: 29
D30: 6022 | E30: 狂刀 | F30: 1 | G30: 2000 | I30: 6022 | J30: 6022#1 | K30: 16|0#0#0# | L30: 16|0#0#0#2000 | Q30: 30 | R30: 远古妖魂宝箱 | S30: 30
D31: 6023 | E31: 幽芒 | F31: 1 | G31: 2000 | I31: 6023 | J31: 6023#1 | K31: 16|0#0#0# | L31: 16|0#0#0#2000 | Q31: 31 | R31: 不朽妖魂宝箱 | S31: 31
D32: 6024 | E32: 不仁 | F32: 1 | G32: 2000 | I32: 6024 | J32: 6024#1 | K32: 16|0#0#0# | L32: 16|0#0#0#2000 | Q32: 32 | R32: 刀劳鬼妖魂箱 | S32: 32
D33: 6025 | E33: 霸刀 | F33: 1 | G33: 2000 | I33: 6025 | J33: 6025#1 | K33: 16|0#0#0# | L33: 16|0#0#0#2000 | Q33: 33 | R33: 蒸笼仔妖魂箱 | S33: 33
D34: 6026 | E34: 铁甲 | F34: 1 | G34: 2000 | I34: 6026 | J34: 6026#1 | K34: 16|0#0#0# | L34: 16|0#0#0#2000 | Q34: 34 | R34: 拘魂姬妖魂箱 | S34: 34
D35: 6027 | E35: 魔尊 | F35: 1 | G35: 2000 | I35: 6027 | J35: 6027#1 | K35: 16|0#0#0# | L35: 16|0#0#0#2000 | Q35: 35 | R35: 横公妖魂箱 | S35: 35
D36: 6028 | E36: 血锈 | F36: 1 | G36: 2000 | I36: 6028 | J36: 6028#1 | K36: 16|0#0#0# | L36: 16|0#0#0#2000 | Q36: 36 | R36: 孙龙妖魂箱 | S36: 36
D37: 6029 | E37: 瞳玉 | F37: 1 | G37: 2000 | I37: 6029 | J37: 6029#1 | K37: 16|0#0#0# | L37: 16|0#0#0#2000 | Q37: 37 | R37: 陌刀妖魂箱 | S37: 37
D38: 6030 | E38: 风行 | F38: 1 | G38: 2000 | I38: 6030 | J38: 6030#1 | K38: 16|0#0#0# | L38: 16|0#0#0#2000 | Q38: 38 | R38: 火鼠妖魂箱 | S38: 38
D39: 6031 | E39: 铁骨 | F39: 1 | G39: 2000 | I39: 6031 | J39: 6031#1 | K39: 16|0#0#0# | L39: 16|0#0#0#2000 | Q39: 39 | R39: 拦面叟妖魂箱 | S39: 39
D40: 6032 | E40: 伤药葫芦 | F40: 1 | G40: 2000 | I40: 6032 | J40: 6032#1 | K40: 16|0#0#0# | L40: 16|0#0#0#2000 | Q40: 40 | R40: 风狸妖魂箱 | S40: 40
Q41: 41 | R41: 天麟妖魂箱 | S41: 41
Q42: 42 | R42: 神秘妖魂宝箱 | S42: 42
Q43: 43 | R43: 次元炸弹 | S43: 43
Q44: 44 | R44: 外敌挑战券 | S44: 44
Q45: 45 | R45: 试炼币 | S45: 45
D46: 杂货店 | Q46: 46 | R46: 光辉灵戒 | S46: 46
E47: 归元髓液 | Q47: 47 | R47: 时光沙漏 | S47: 47
E48: 聚灵神戒 | Q48: 48 | R48: 蒸笼仔妖魂箱 | S48: 48
E49: 元素神戒 | Q49: 49 | R49: 拘魂姬妖魂箱 | S49: 49
E50: 成长护符 | Q50: 50 | R50: 天麟妖魂箱 | S50: 50
E51: 梦魇妖壶 | Q51: 51 | R51: 火鼠妖魂箱 | S51: 51
E52: 成长护符 | Q52: 52 | R52: 风狸妖魂箱 | S52: 52
E53: 梦魇妖壶 | Q53: 1001 | R53: 铁矿石 | S53: 1001
E54: 3星角色碎片 | Q54: 1002 | R54: 金矿石（未使用） | S54: 1002
E55: 3星角色碎片 | Q55: 1003 | R55: 灵石（未使用） | S55: 1003
E56: 4星角色碎片 | Q56: 1004 | R56: 赤血石（未使用） | S56: 1004
E57: 4星角色碎片 | Q57: 1005 | R57: 皮革（未使用） | S57: 1005
Q58: 1006 | R58: 月影水晶（未使用） | S58: 1006
Q59: 1007 | R59: 铁锭 | S59: 1007
Q60: 1008 | R60: 秘钢锭 | S60: 1008
Q61: 1009 | R61: 玄金锭 | S61: 1009
Q62: 1010 | R62: 小型铁矿堆（未使用） | S62: 1010
Q63: 1011 | R63: 中型铁矿堆（未使用） | S63: 1011
Q64: 1012 | R64: 大型铁矿堆（未使用） | S64: 1012
Q65: 1013 | R65: 超大型铁矿堆（未使用） | S65: 1013
Q66: 1014 | R66: 小型灵石堆（未使用） | S66: 1014
Q67: 1015 | R67: 中型灵石堆（未使用） | S67: 1015
Q68: 1016 | R68: 大型灵石堆（未使用） | S68: 1016
Q69: 1017 | R69: 超大型灵石堆（未使用） | S69: 1017
Q70: 1018 | R70: 小型金矿堆（未使用） | S70: 1018
Q71: 1019 | R71: 中型金矿堆（未使用） | S71: 1019
Q72: 1020 | R72: 大型金矿堆（未使用） | S72: 1020
Q73: 1021 | R73: 超大型金矿堆（未使用） | S73: 1021
Q74: 1501 | R74: 遁地符（未使用） | S74: 1501
Q75: 1502 | R75: 照妖镜（未使用） | S75: 1502
Q76: 1503 | R76: 镐头（未使用） | S76: 1503
Q77: 1504 | R77: 藏宝图碎片 | S77: 1504
Q78: 1505 | R78: 太初藏宝图碎片 | S78: 1505
Q79: 1506 | R79: 藏宝图 | S79: 1506
Q80: 1507 | R80: 太初藏宝图 | S80: 1507
Q81: 1508 | R81: 绿色装备 | S81: 1508
Q82: 1509 | R82: 蓝色装备 | S82: 1509
Q83: 1510 | R83: 紫色装备 | S83: 1510
Q84: 1511 | R84: 橙色装备 | S84: 1511
Q85: 1520 | R85: 迷魂之心 | S85: 1520
Q86: 1521 | R86: 阵石 | S86: 1521
Q87: 1522 | R87: 妖兽精血 | S87: 1522
Q88: 1523 | R88: 刻笔 | S88: 1523
Q89: 1524 | R89: 阵石 | S89: 1524
Q90: 1525 | R90: 破损的兵器 | S90: 1525
Q91: 1526 | R91: 记忆碎片 | S91: 1526
Q92: 1527 | R92: 木材 | S92: 1527
Q93: 1528 | R93: 藏宝图 | S93: 1528
Q94: 1529 | R94: 半卷藏宝图 | S94: 1529
Q95: 1530 | R95: 淡水 | S95: 1530
Q96: 1531 | R96: 兽肉 | S96: 1531
Q97: 1532 | R97: 幻魂草 | S97: 1532
Q98: 1533 | R98: 平民的财物 | S98: 1533
Q99: 1534 | R99: 法阵灵石 | S99: 1534
Q100: 1535 | R100: 长青叶 | S100: 1535
Q101: 1536 | R101: 止血散 | S101: 1536
Q102: 1537 | R102: 精纯精血 | S102: 1537
Q103: 1538 | R103: 忠义之心 | S103: 1538
Q104: 1539 | R104: 仁慈之心 | S104: 1539
Q105: 1540 | R105: 坚毅之心 | S105: 1540
Q106: 1541 | R106: 羁绊之心 | S106: 1541
Q107: 1542 | R107: 耳目之石 | S107: 1542
Q108: 1543 | R108: 饕餮之津 | S108: 1543
Q109: 1544 | R109: 生死之悟 | S109: 1544
Q110: 1545 | R110: 七叶草 | S110: 1545
Q111: 1546 | R111: 兽骨 | S111: 1546
Q112: 1547 | R112: 天山雪莲 | S112: 1547
Q113: 1548 | R113: 妖兽毛皮 | S113: 1548
Q114: 1549 | R114: 墓穴宝石 | S114: 1549
Q115: 1550 | R115: 请帖 | S115: 1550
Q116: 1551 | R116: 气息结晶 | S116: 1551
Q117: 1552 | R117: 大块气息结晶 | S117: 1552
Q118: 1553 | R118: 透镜 | S118: 1553
Q119: 1554 | R119: 母亲的信物 | S119: 1554
Q120: 1555 | R120: 史诗装备宝箱 | S120: 1555
Q121: 1556 | R121: 传说装备宝箱 | S121: 1556
Q122: 3001 | R122: 戮魔短杖-蓝图 | S122: 3001
Q123: 3002 | R123: 天武短杖-蓝图 | S123: 3002
Q124: 3003 | R124: 戮魔之刺-蓝图 | S124: 3003
Q125: 3004 | R125: 天武之刺-蓝图 | S125: 3004
Q126: 3005 | R126: 戮魔战斧-蓝图 | S126: 3005
Q127: 3006 | R127: 天武战斧-蓝图 | S127: 3006
Q128: 3007 | R128: 戮魔之刃-蓝图 | S128: 3007
Q129: 3008 | R129: 天武之刃-蓝图 | S129: 3008
Q130: 3009 | R130: 戮魔法铃-蓝图 | S130: 3009
Q131: 3010 | R131: 天武法铃-蓝图 | S131: 3010
Q132: 3011 | R132: 修罗战甲-蓝图 | S132: 3011
Q133: 3012 | R133: 修罗战甲-蓝图 | S133: 3012
Q134: 3013 | R134: 红莲战甲-蓝图 | S134: 3013
Q135: 3014 | R135: 红莲战甲-蓝图 | S135: 3014
Q136: 3015 | R136: 修罗战盔-蓝图 | S136: 3015
Q137: 3016 | R137: 红莲战盔-蓝图 | S137: 3016
Q138: 3017 | R138: 修罗战靴-蓝图 | S138: 3017
Q139: 3018 | R139: 红莲战靴-蓝图 | S139: 3018
Q140: 3019 | R140: 修罗戒指-蓝图 | S140: 3019
Q141: 3020 | R141: 红莲戒指-蓝图 | S141: 3020
Q142: 3021 | R142: 修罗束带-蓝图 | S142: 3021
Q143: 3022 | R143: 红莲腰带-蓝图 | S143: 3022
Q144: 3023 | R144: 无为神杖-蓝图 | S144: 3023
Q145: 3024 | R145: 悯生神杖-蓝图 | S145: 3024
Q146: 3025 | R146: 无为神剑-蓝图 | S146: 3025
Q147: 3026 | R147: 悯生神剑-蓝图 | S147: 3026
Q148: 3027 | R148: 无为神斧-蓝图 | S148: 3027
Q149: 3028 | R149: 悯生神斧-蓝图 | S149: 3028
Q150: 3029 | R150: 无为之刃-蓝图 | S150: 3029
Q151: 3030 | R151: 悯生之刃-蓝图 | S151: 3030
Q152: 3031 | R152: 无为圣铃-蓝图 | S152: 3031
Q153: 3032 | R153: 悯生圣铃-蓝图 | S153: 3032
Q154: 3033 | R154: 七星神甲-蓝图 | S154: 3033
Q155: 3034 | R155: 七星神甲-蓝图 | S155: 3034
Q156: 3035 | R156: 紫微神甲-蓝图 | S156: 3035
Q157: 3036 | R157: 紫微神甲-蓝图 | S157: 3036
Q158: 3037 | R158: 七星战盔-蓝图 | S158: 3037
Q159: 3038 | R159: 紫微战盔-蓝图 | S159: 3038
Q160: 3039 | R160: 七星战靴-蓝图 | S160: 3039
Q161: 3040 | R161: 紫微战靴-蓝图 | S161: 3040
Q162: 3041 | R162: 七星戒指-蓝图 | S162: 3041
Q163: 3042 | R163: 紫微戒指-蓝图 | S163: 3042
Q164: 3043 | R164: 七星玉带-蓝图 | S164: 3043
Q165: 3044 | R165: 紫微束带-蓝图 | S165: 3044
Q166: 3045 | R166: 藏雷短杖-蓝图 | S166: 3045
Q167: 3046 | R167: 藏雷长剑-蓝图 | S167: 3046
Q168: 3047 | R168: 藏雷战斧-蓝图 | S168: 3047
Q169: 3048 | R169: 藏雷之刃-蓝图 | S169: 3048
Q170: 3049 | R170: 藏雷法铃-蓝图 | S170: 3049
Q171: 3050 | R171: 洞察战甲-蓝图 | S171: 3050
Q172: 3051 | R172: 洞察战甲-蓝图 | S172: 3051
Q173: 3052 | R173: 洞察战盔-蓝图 | S173: 3052
Q174: 3053 | R174: 洞察战靴-蓝图 | S174: 3053
Q175: 3054 | R175: 洞察戒指-蓝图 | S175: 3054
Q176: 3055 | R176: 洞察束带-蓝图 | S176: 3055
Q177: 3056 | R177: 刹那神杖-蓝图 | S177: 3056
Q178: 3057 | R178: 刹那神刺-蓝图 | S178: 3057
Q179: 3058 | R179: 刹那神戟-蓝图 | S179: 3058
Q180: 3059 | R180: 刹那古剑-蓝图 | S180: 3059
Q181: 3060 | R181: 刹那圣铃-蓝图 | S181: 3060
Q182: 3061 | R182: 玄冥战甲-蓝图 | S182: 3061
Q183: 3062 | R183: 玄冥战甲-蓝图 | S183: 3062
Q184: 3063 | R184: 玄冥战盔-蓝图 | S184: 3063
Q185: 3064 | R185: 玄冥战靴-蓝图 | S185: 3064
Q186: 3065 | R186: 玄冥神戒-蓝图 | S186: 3065
Q187: 3066 | R187: 玄冥束带-蓝图 | S187: 3066
Q188: 3067 | R188: 史诗装备蓝图宝箱 | S188: 3067
Q189: 3068 | R189: 传说装备蓝图宝箱 | S189: 3068
Q190: 6001 | R190: 魔铃 | S190: 6001
Q191: 6002 | R191: 牛魔 | S191: 6002
Q192: 6003 | R192: 破狼刃 | S192: 6003
Q193: 6004 | R193: 叶青 | S193: 6004
Q194: 6005 | R194: 饕餮 | S194: 6005
Q195: 6006 | R195: 嗜魂虎 | S195: 6006
Q196: 6007 | R196: 散财 | S196: 6007
Q197: 6008 | R197: 狐云 | S197: 6008
Q198: 6009 | R198: 鳞波甲 | S198: 6009
Q199: 6010 | R199: 触魔 | S199: 6010
Q200: 6011 | R200: 回音 | S200: 6011
... 1536 more rows

Sheet Sheet3
F4: 1 | G4: 10006 | H4: 10506 | I4: 风伯 | K4: =G4+1000 -> 11006 | M4: =K4&"#40" -> 11006#40 | N4: 碎片 | O4: =I4&N4 -> 风伯碎片
F5: 2 | G5: 10016 | H5: 10516 | I5: 李靖 | K5: 11016 | M5: =K5&"#40" -> 11016#40 | N5: 碎片 | O5: =I5&N5 -> 李靖碎片
F6: 2 | G6: 10020 | H6: 10520 | I6: 女魃 | K6: 11020 | M6: 11020#40 | N6: 碎片 | O6: 女魃碎片
F7: 3 | G7: 10002 | H7: 10502 | I7: 雨师 | K7: 11002 | M7: 11002#40 | N7: 碎片 | O7: 雨师碎片
F8: 3 | G8: 10008 | H8: 10508 | I8: 摩昂太子 | K8: 11008 | M8: 11008#40 | N8: 碎片 | O8: 摩昂太子碎片
F9: 4 | G9: 10019 | H9: 10519 | I9: 织女 | K9: 11019 | M9: 11019#40 | N9: 碎片 | O9: 织女碎片
F10: 4 | G10: 10022 | H10: 10522 | I10: 邓婵玉 | K10: 11022 | M10: 11022#40 | N10: 碎片 | O10: 邓婵玉碎片
F11: 5 | G11: 10001 | H11: 10501 | I11: 吴刚 | K11: =G11+1000 -> 11001 | M11: 11001#40 | N11: 碎片 | O11: 吴刚碎片
F12: 5 | G12: 10007 | H12: 10507 | I12: 姜子牙 | K12: 11007 | M12: 11007#40 | N12: 碎片 | O12: 姜子牙碎片
F13: 5 | G13: 10009 | H13: 10509 | I13: 夜叉 | K13: 11009 | M13: 11009#40 | N13: 碎片 | O13: 夜叉碎片
F14: 6 | G14: 10017 | H14: 10517 | I14: 黑无常 | K14: 11017 | M14: 11017#40 | N14: 碎片 | O14: 黑无常碎片
F15: 6 | G15: 10023 | H15: 10523 | I15: 敖丙 | K15: 11023 | M15: 11023#40 | N15: 碎片 | O15: 敖丙碎片
F16: 7 | G16: 10003 | H16: 10503 | I16: 黄飞虎 | K16: 11003 | M16: 11003#40 | N16: 碎片 | O16: 黄飞虎碎片
F17: 7 | G17: 10005 | H17: 10505 | I17: 石矶 | K17: 11005 | M17: 11005#40 | N17: 碎片 | O17: 石矶碎片
F18: 7 | G18: 10013 | H18: 10532 | I18: 黄天化 | K18: 11013 | M18: 11013#40 | N18: 碎片 | O18: 黄天化碎片
F19: 8 | G19: 10018 | H19: 10518 | I19: 何仙姑 | K19: 11018 | M19: 11018#40 | N19: 碎片 | O19: 何仙姑碎片
F20: 8 | G20: 10021 | H20: 10521 | I20: 精卫 | K20: 11021 | M20: 11021#40 | N20: 碎片 | O20: 精卫碎片
F21: 9 | G21: 10010 | H21: 10510 | I21: 龙吉公主 | K21: 11010 | M21: =K21&"#50" -> 11010#50 | N21: 碎片 | O21: 龙吉公主碎片

Sheet 商店表查询
A2: 道具名称 | B2: 雷震子碎片 | C2: ="商品数量"&COUNTIF(StoreConfig!C:C,B2) -> 商品数量3 | D2: 商店名称 | E2: 栏位显示顺序 | F2: 价格 （ax^3+bx^2+cx+d) （abcd为配置参数，x为购买次数） | G2: 购买所需道具 | H2: 物品发放开启等级 | I2: 关闭等级 | J2: 限购次数 | L2: 商店 | N2: 消耗的货币
D3: =IF($B$2=StoreConfig!C8,StoreConfig!O8,"") -> 契魂商店 | E3: =IF($B$2=StoreConfig!C8,StoreConfig!E8,"") -> 1 | F3: =IF($B$2=StoreConfig!C8,RIGHT(StoreConfig!J8,LEN(StoreConfig!J8)-FIND("|",StoreConfig!J8)),"") -> 0#0#0#5000 | G3: =IFERROR(VLOOKUP(--IF($B$2=StoreConfig!C8,LEFT(StoreConfig!J8,FIND("|",StoreConfig!J8)-1),""),$Q$4:$R$20,2,FALSE),"") -> 仙缘余尘 | H3: =IF($B$2=StoreConfig!C8,LEFT(StoreConfig!G8,FIND("#",StoreConfig!G8)-1),"") -> 1 | I3: =IF($B$2=StoreConfig!C8,RIGHT(StoreConfig!G8,LEN(StoreConfig!G8)-FIND("#",StoreConfig!G8)),"") -> 200 | J3: =IF($B$2=StoreConfig!C8,IF(StoreConfig!L8=0,"不限购",StoreConfig!L8&"次"),"") -> 1次 | L3: 契魂商店 | M3: 26 | N3: =VLOOKUP(M3,Q:R,2,FALSE) -> 仙缘余尘
D4: =IF($B$2=StoreConfig!C9,StoreConfig!O9,"") ->  | E4: =IF($B$2=StoreConfig!C9,StoreConfig!E9,"") ->  | F4: =IF($B$2=StoreConfig!C9,RIGHT(StoreConfig!J9,LEN(StoreConfig!J9)-FIND("|",StoreConfig!J9)),"") ->  | G4: =IFERROR(VLOOKUP(--IF($B$2=StoreConfig!C9,LEFT(StoreConfig!J9,FIND("|",StoreConfig!J9)-1),""),$Q$4:$R$20,2,FALSE),"") ->  | H4: =IF($B$2=StoreConfig!C9,LEFT(StoreConfig!G9,FIND("#",StoreConfig!G9)-1),"") ->  | I4: =IF($B$2=StoreConfig!C9,RIGHT(StoreConfig!G9,LEN(StoreConfig!G9)-FIND("#",StoreConfig!G9)),"") ->  | J4: =IF($B$2=StoreConfig!C9,IF(StoreConfig!L9=0,"不限购",StoreConfig!L9&"次"),"") ->  | L4: 云游商店 | M4: 25 | N4: =VLOOKUP(M4,Q:R,2,FALSE) -> 无此道具 | Q4: 道具id | R4: 物品名称
D5: =IF($B$2=StoreConfig!C10,StoreConfig!O10,"") ->  | E5: =IF($B$2=StoreConfig!C10,StoreConfig!E10,"") ->  | F5: =IF($B$2=StoreConfig!C10,RIGHT(StoreConfig!J10,LEN(StoreConfig!J10)-FIND("|",StoreConfig!J10)),"") ->  | G5: =IFERROR(VLOOKUP(--IF($B$2=StoreConfig!C10,LEFT(StoreConfig!J10,FIND("|",StoreConfig!J10)-1),""),$Q$4:$R$20,2,FALSE),"") ->  | H5: =IF($B$2=StoreConfig!C10,LEFT(StoreConfig!G10,FIND("#",StoreConfig!G10)-1),"") ->  | I5: =IF($B$2=StoreConfig!C10,RIGHT(StoreConfig!G10,LEN(StoreConfig!G10)-FIND("#",StoreConfig!G10)),"") ->  | J5: =IF($B$2=StoreConfig!C10,IF(StoreConfig!L10=0,"不限购",StoreConfig!L10&"次"),"") ->  | L5: 魂晶商店 | M5: 24 | N5: 逐胜徽章 | Q5: 26 | R5: 仙缘余尘
D6: =IF($B$2=StoreConfig!C11,StoreConfig!O11,"") ->  | E6: =IF($B$2=StoreConfig!C11,StoreConfig!E11,"") ->  | F6: =IF($B$2=StoreConfig!C11,RIGHT(StoreConfig!J11,LEN(StoreConfig!J11)-FIND("|",StoreConfig!J11)),"") ->  | G6: =IFERROR(VLOOKUP(--IF($B$2=StoreConfig!C11,LEFT(StoreConfig!J11,FIND("|",StoreConfig!J11)-1),""),$Q$4:$R$20,2,FALSE),"") ->  | H6: =IF($B$2=StoreConfig!C11,LEFT(StoreConfig!G11,FIND("#",StoreConfig!G11)-1),"") ->  | I6: =IF($B$2=StoreConfig!C11,RIGHT(StoreConfig!G11,LEN(StoreConfig!G11)-FIND("#",StoreConfig!G11)),"") ->  | J6: =IF($B$2=StoreConfig!C11,IF(StoreConfig!L11=0,"不限购",StoreConfig!L11&"次"),"") ->  | L6: 秘盒商店 | M6: 22 | N6: 妖灵玉 | Q6: 25 | R6: 无此道具
D7: =IF($B$2=StoreConfig!C12,StoreConfig!O12,"") ->  | E7: =IF($B$2=StoreConfig!C12,StoreConfig!E12,"") ->  | F7: =IF($B$2=StoreConfig!C12,RIGHT(StoreConfig!J12,LEN(StoreConfig!J12)-FIND("|",StoreConfig!J12)),"") ->  | G7: =IFERROR(VLOOKUP(--IF($B$2=StoreConfig!C12,LEFT(StoreConfig!J12,FIND("|",StoreConfig!J12)-1),""),$Q$4:$R$20,2,FALSE),"") ->  | H7: =IF($B$2=StoreConfig!C12,LEFT(StoreConfig!G12,FIND("#",StoreConfig!G12)-1),"") ->  | I7: =IF($B$2=StoreConfig!C12,RIGHT(StoreConfig!G12,LEN(StoreConfig!G12)-FIND("#",StoreConfig!G12)),"") ->  | J7: =IF($B$2=StoreConfig!C12,IF(StoreConfig!L12=0,"不限购",StoreConfig!L12&"次"),"") ->  | L7: 功能商店 | M7: 16 | N7: 妖晶 | Q7: 24 | R7: 逐胜徽章
D8: =IF($B$2=StoreConfig!C13,StoreConfig!O13,"") ->  | E8: =IF($B$2=StoreConfig!C13,StoreConfig!E13,"") ->  | F8: =IF($B$2=StoreConfig!C13,RIGHT(StoreConfig!J13,LEN(StoreConfig!J13)-FIND("|",StoreConfig!J13)),"") ->  | G8: =IFERROR(VLOOKUP(--IF($B$2=StoreConfig!C13,LEFT(StoreConfig!J13,FIND("|",StoreConfig!J13)-1),""),$Q$4:$R$20,2,FALSE),"") ->  | H8: =IF($B$2=StoreConfig!C13,LEFT(StoreConfig!G13,FIND("#",StoreConfig!G13)-1),"") ->  | I8: =IF($B$2=StoreConfig!C13,RIGHT(StoreConfig!G13,LEN(StoreConfig!G13)-FIND("#",StoreConfig!G13)),"") ->  | J8: =IF($B$2=StoreConfig!C13,IF(StoreConfig!L13=0,"不限购",StoreConfig!L13&"次"),"") ->  | L8: 点金功能商店 | M8: 16 | N8: 妖晶 | Q8: 22 | R8: 妖灵玉
D9: =IF($B$2=StoreConfig!C14,StoreConfig!O14,"") ->  | E9: =IF($B$2=StoreConfig!C14,StoreConfig!E14,"") ->  | F9: =IF($B$2=StoreConfig!C14,RIGHT(StoreConfig!J14,LEN(StoreConfig!J14)-FIND("|",StoreConfig!J14)),"") ->  | G9: =IFERROR(VLOOKUP(--IF($B$2=StoreConfig!C14,LEFT(StoreConfig!J14,FIND("|",StoreConfig!J14)-1),""),$Q$4:$R$20,2,FALSE),"") ->  | H9: =IF($B$2=StoreConfig!C14,LEFT(StoreConfig!G14,FIND("#",StoreConfig!G14)-1),"") ->  | I9: =IF($B$2=StoreConfig!C14,RIGHT(StoreConfig!G14,LEN(StoreConfig!G14)-FIND("#",StoreConfig!G14)),"") ->  | J9: =IF($B$2=StoreConfig!C14,IF(StoreConfig!L14=0,"不限购",StoreConfig!L14&"次"),"") ->  | L9: 功能商店 | M9: 47 | N9: 时光沙漏 | Q9: 16 | R9: 妖晶
D10: =IF($B$2=StoreConfig!C15,StoreConfig!O15,"") ->  | E10: =IF($B$2=StoreConfig!C15,StoreConfig!E15,"") ->  | F10: =IF($B$2=StoreConfig!C15,RIGHT(StoreConfig!J15,LEN(StoreConfig!J15)-FIND("|",StoreConfig!J15)),"") ->  | G10: =IFERROR(VLOOKUP(--IF($B$2=StoreConfig!C15,LEFT(StoreConfig!J15,FIND("|",StoreConfig!J15)-1),""),$Q$4:$R$20,2,FALSE),"") ->  | H10: =IF($B$2=StoreConfig!C15,LEFT(StoreConfig!G15,FIND("#",StoreConfig!G15)-1),"") ->  | I10: =IF($B$2=StoreConfig!C15,RIGHT(StoreConfig!G15,LEN(StoreConfig!G15)-FIND("#",StoreConfig!G15)),"") ->  | J10: =IF($B$2=StoreConfig!C15,IF(StoreConfig!L15=0,"不限购",StoreConfig!L15&"次"),"") ->  | L10: 功能商店 | M10: 15 | N10: 魂晶 | Q10: 47 | R10: 时光沙漏
D11: =IF($B$2=StoreConfig!C16,StoreConfig!O16,"") ->  | E11: =IF($B$2=StoreConfig!C16,StoreConfig!E16,"") ->  | F11: =IF($B$2=StoreConfig!C16,RIGHT(StoreConfig!J16,LEN(StoreConfig!J16)-FIND("|",StoreConfig!J16)),"") ->  | G11: =IFERROR(VLOOKUP(--IF($B$2=StoreConfig!C16,LEFT(StoreConfig!J16,FIND("|",StoreConfig!J16)-1),""),$Q$4:$R$20,2,FALSE),"") ->  | H11: =IF($B$2=StoreConfig!C16,LEFT(StoreConfig!G16,FIND("#",StoreConfig!G16)-1),"") ->  | I11: =IF($B$2=StoreConfig!C16,RIGHT(StoreConfig!G16,LEN(StoreConfig!G16)-FIND("#",StoreConfig!G16)),"") ->  | J11: =IF($B$2=StoreConfig!C16,IF(StoreConfig!L16=0,"不限购",StoreConfig!L16&"次"),"") ->  | L11: 试炼商店1 | M11: 16 | N11: 妖晶 | Q11: 15 | R11: 魂晶
D12: =IF($B$2=StoreConfig!C17,StoreConfig!O17,"") ->  | E12: =IF($B$2=StoreConfig!C17,StoreConfig!E17,"") ->  | F12: =IF($B$2=StoreConfig!C17,RIGHT(StoreConfig!J17,LEN(StoreConfig!J17)-FIND("|",StoreConfig!J17)),"") ->  | G12: =IFERROR(VLOOKUP(--IF($B$2=StoreConfig!C17,LEFT(StoreConfig!J17,FIND("|",StoreConfig!J17)-1),""),$Q$4:$R$20,2,FALSE),"") ->  | H12: =IF($B$2=StoreConfig!C17,LEFT(StoreConfig!G17,FIND("#",StoreConfig!G17)-1),"") ->  | I12: =IF($B$2=StoreConfig!C17,RIGHT(StoreConfig!G17,LEN(StoreConfig!G17)-FIND("#",StoreConfig!G17)),"") ->  | J12: =IF($B$2=StoreConfig!C17,IF(StoreConfig!L17=0,"不限购",StoreConfig!L17&"次"),"") ->  | L12: 试炼商店2 | M12: 14 | N12: 金币 | Q12: 14 | R12: 金币
D13: =IF($B$2=StoreConfig!C18,StoreConfig!O18,"") ->  | E13: =IF($B$2=StoreConfig!C18,StoreConfig!E18,"") ->  | F13: =IF($B$2=StoreConfig!C18,RIGHT(StoreConfig!J18,LEN(StoreConfig!J18)-FIND("|",StoreConfig!J18)),"") ->  | G13: =IFERROR(VLOOKUP(--IF($B$2=StoreConfig!C18,LEFT(StoreConfig!J18,FIND("|",StoreConfig!J18)-1),""),$Q$4:$R$20,2,FALSE),"") ->  | H13: =IF($B$2=StoreConfig!C18,LEFT(StoreConfig!G18,FIND("#",StoreConfig!G18)-1),"") ->  | I13: =IF($B$2=StoreConfig!C18,RIGHT(StoreConfig!G18,LEN(StoreConfig!G18)-FIND("#",StoreConfig!G18)),"") ->  | J13: =IF($B$2=StoreConfig!C18,IF(StoreConfig!L18=0,"不限购",StoreConfig!L18&"次"),"") ->  | L13: 竞技场商店 | M13: 24 | N13: 逐胜徽章 | Q13: 86 | R13: 巅峰之证
D14: =IF($B$2=StoreConfig!C19,StoreConfig!O19,"") ->  | E14: =IF($B$2=StoreConfig!C19,StoreConfig!E19,"") ->  | F14: =IF($B$2=StoreConfig!C19,RIGHT(StoreConfig!J19,LEN(StoreConfig!J19)-FIND("|",StoreConfig!J19)),"") ->  | G14: =IFERROR(VLOOKUP(--IF($B$2=StoreConfig!C19,LEFT(StoreConfig!J19,FIND("|",StoreConfig!J19)-1),""),$Q$4:$R$20,2,FALSE),"") ->  | H14: =IF($B$2=StoreConfig!C19,LEFT(StoreConfig!G19,FIND("#",StoreConfig!G19)-1),"") ->  | I14: =IF($B$2=StoreConfig!C19,RIGHT(StoreConfig!G19,LEN(StoreConfig!G19)-FIND("#",StoreConfig!G19)),"") ->  | J14: =IF($B$2=StoreConfig!C19,IF(StoreConfig!L19=0,"不限购",StoreConfig!L19&"次"),"") ->  | L14: 巅峰赛商店 | M14: 86 | N14: 巅峰之证 | Q14: 67 | R14: 神州令
D15: =IF($B$2=StoreConfig!C20,StoreConfig!O20,"") ->  | E15: =IF($B$2=StoreConfig!C20,StoreConfig!E20,"") ->  | F15: =IF($B$2=StoreConfig!C20,RIGHT(StoreConfig!J20,LEN(StoreConfig!J20)-FIND("|",StoreConfig!J20)),"") ->  | G15: =IFERROR(VLOOKUP(--IF($B$2=StoreConfig!C20,LEFT(StoreConfig!J20,FIND("|",StoreConfig!J20)-1),""),$Q$4:$R$20,2,FALSE),"") ->  | H15: =IF($B$2=StoreConfig!C20,LEFT(StoreConfig!G20,FIND("#",StoreConfig!G20)-1),"") ->  | I15: =IF($B$2=StoreConfig!C20,RIGHT(StoreConfig!G20,LEN(StoreConfig!G20)-FIND("#",StoreConfig!G20)),"") ->  | J15: =IF($B$2=StoreConfig!C20,IF(StoreConfig!L20=0,"不限购",StoreConfig!L20&"次"),"") ->  | L15: 活动礼包 | M15: 15 | N15: 魂晶 | Q15: 65 | R15: 公会御令
D16: =IF($B$2=StoreConfig!C21,StoreConfig!O21,"") ->  | E16: =IF($B$2=StoreConfig!C21,StoreConfig!E21,"") ->  | F16: =IF($B$2=StoreConfig!C21,RIGHT(StoreConfig!J21,LEN(StoreConfig!J21)-FIND("|",StoreConfig!J21)),"") ->  | G16: =IFERROR(VLOOKUP(--IF($B$2=StoreConfig!C21,LEFT(StoreConfig!J21,FIND("|",StoreConfig!J21)-1),""),$Q$4:$R$20,2,FALSE),"") ->  | H16: =IF($B$2=StoreConfig!C21,LEFT(StoreConfig!G21,FIND("#",StoreConfig!G21)-1),"") ->  | I16: =IF($B$2=StoreConfig!C21,RIGHT(StoreConfig!G21,LEN(StoreConfig!G21)-FIND("#",StoreConfig!G21)),"") ->  | J16: =IF($B$2=StoreConfig!C21,IF(StoreConfig!L21=0,"不限购",StoreConfig!L21&"次"),"") ->  | L16: 活动礼包 | M16: 16 | N16: 妖晶 | Q16: 1201 | R16: 上古钱币
D17: =IF($B$2=StoreConfig!C22,StoreConfig!O22,"") ->  | E17: =IF($B$2=StoreConfig!C22,StoreConfig!E22,"") ->  | F17: =IF($B$2=StoreConfig!C22,RIGHT(StoreConfig!J22,LEN(StoreConfig!J22)-FIND("|",StoreConfig!J22)),"") ->  | G17: =IFERROR(VLOOKUP(--IF($B$2=StoreConfig!C22,LEFT(StoreConfig!J22,FIND("|",StoreConfig!J22)-1),""),$Q$4:$R$20,2,FALSE),"") ->  | H17: =IF($B$2=StoreConfig!C22,LEFT(StoreConfig!G22,FIND("#",StoreConfig!G22)-1),"") ->  | I17: =IF($B$2=StoreConfig!C22,RIGHT(StoreConfig!G22,LEN(StoreConfig!G22)-FIND("#",StoreConfig!G22)),"") ->  | J17: =IF($B$2=StoreConfig!C22,IF(StoreConfig!L22=0,"不限购",StoreConfig!L22&"次"),"") ->  | L17: 每日超值 | M17: 15 | N17: 魂晶 | Q17: 93 | R17: 战功
D18: =IF($B$2=StoreConfig!C23,StoreConfig!O23,"") ->  | E18: =IF($B$2=StoreConfig!C23,StoreConfig!E23,"") ->  | F18: =IF($B$2=StoreConfig!C23,RIGHT(StoreConfig!J23,LEN(StoreConfig!J23)-FIND("|",StoreConfig!J23)),"") ->  | G18: =IFERROR(VLOOKUP(--IF($B$2=StoreConfig!C23,LEFT(StoreConfig!J23,FIND("|",StoreConfig!J23)-1),""),$Q$4:$R$20,2,FALSE),"") ->  | H18: =IF($B$2=StoreConfig!C23,LEFT(StoreConfig!G23,FIND("#",StoreConfig!G23)-1),"") ->  | I18: =IF($B$2=StoreConfig!C23,RIGHT(StoreConfig!G23,LEN(StoreConfig!G23)-FIND("#",StoreConfig!G23)),"") ->  | J18: =IF($B$2=StoreConfig!C23,IF(StoreConfig!L23=0,"不限购",StoreConfig!L23&"次"),"") ->  | L18: 特权商城 | M18: 16 | N18: 妖晶 | Q18: 66 | R18: 星魂
D19: =IF($B$2=StoreConfig!C24,StoreConfig!O24,"") ->  | E19: =IF($B$2=StoreConfig!C24,StoreConfig!E24,"") ->  | F19: =IF($B$2=StoreConfig!C24,RIGHT(StoreConfig!J24,LEN(StoreConfig!J24)-FIND("|",StoreConfig!J24)),"") ->  | G19: =IFERROR(VLOOKUP(--IF($B$2=StoreConfig!C24,LEFT(StoreConfig!J24,FIND("|",StoreConfig!J24)-1),""),$Q$4:$R$20,2,FALSE),"") ->  | H19: =IF($B$2=StoreConfig!C24,LEFT(StoreConfig!G24,FIND("#",StoreConfig!G24)-1),"") ->  | I19: =IF($B$2=StoreConfig!C24,RIGHT(StoreConfig!G24,LEN(StoreConfig!G24)-FIND("#",StoreConfig!G24)),"") ->  | J19: =IF($B$2=StoreConfig!C24,IF(StoreConfig!L24=0,"不限购",StoreConfig!L24&"次"),"") ->  | L19: 七日狂欢商店 | M19: 16 | N19: 妖晶 | Q19: 74 | R19: 元神玉
D20: =IF($B$2=StoreConfig!C25,StoreConfig!O25,"") ->  | E20: =IF($B$2=StoreConfig!C25,StoreConfig!E25,"") ->  | F20: =IF($B$2=StoreConfig!C25,RIGHT(StoreConfig!J25,LEN(StoreConfig!J25)-FIND("|",StoreConfig!J25)),"") ->  | G20: =IFERROR(VLOOKUP(--IF($B$2=StoreConfig!C25,LEFT(StoreConfig!J25,FIND("|",StoreConfig!J25)-1),""),$Q$4:$R$20,2,FALSE),"") ->  | H20: =IF($B$2=StoreConfig!C25,LEFT(StoreConfig!G25,FIND("#",StoreConfig!G25)-1),"") ->  | I20: =IF($B$2=StoreConfig!C25,RIGHT(StoreConfig!G25,LEN(StoreConfig!G25)-FIND("#",StoreConfig!G25)),"") ->  | J20: =IF($B$2=StoreConfig!C25,IF(StoreConfig!L25=0,"不限购",StoreConfig!L25&"次"),"") ->  | L20: 活动商店2 | M20: 67 | N20: 神州令 | Q20: 1003 | R20: 乾坤令
D21: =IF($B$2=StoreConfig!C26,StoreConfig!O26,"") ->  | E21: =IF($B$2=StoreConfig!C26,StoreConfig!E26,"") ->  | F21: =IF($B$2=StoreConfig!C26,RIGHT(StoreConfig!J26,LEN(StoreConfig!J26)-FIND("|",StoreConfig!J26)),"") ->  | G21: =IFERROR(VLOOKUP(--IF($B$2=StoreConfig!C26,LEFT(StoreConfig!J26,FIND("|",StoreConfig!J26)-1),""),$Q$4:$R$20,2,FALSE),"") ->  | H21: =IF($B$2=StoreConfig!C26,LEFT(StoreConfig!G26,FIND("#",StoreConfig!G26)-1),"") ->  | I21: =IF($B$2=StoreConfig!C26,RIGHT(StoreConfig!G26,LEN(StoreConfig!G26)-FIND("#",StoreConfig!G26)),"") ->  | J21: =IF($B$2=StoreConfig!C26,IF(StoreConfig!L26=0,"不限购",StoreConfig!L26&"次"),"") ->  | L21: 活动商店3 | M21: 67 | N21: 神州令
D22: =IF($B$2=StoreConfig!C27,StoreConfig!O27,"") ->  | E22: =IF($B$2=StoreConfig!C27,StoreConfig!E27,"") ->  | F22: =IF($B$2=StoreConfig!C27,RIGHT(StoreConfig!J27,LEN(StoreConfig!J27)-FIND("|",StoreConfig!J27)),"") ->  | G22: =IFERROR(VLOOKUP(--IF($B$2=StoreConfig!C27,LEFT(StoreConfig!J27,FIND("|",StoreConfig!J27)-1),""),$Q$4:$R$20,2,FALSE),"") ->  | H22: =IF($B$2=StoreConfig!C27,LEFT(StoreConfig!G27,FIND("#",StoreConfig!G27)-1),"") ->  | I22: =IF($B$2=StoreConfig!C27,RIGHT(StoreConfig!G27,LEN(StoreConfig!G27)-FIND("#",StoreConfig!G27)),"") ->  | J22: =IF($B$2=StoreConfig!C27,IF(StoreConfig!L27=0,"不限购",StoreConfig!L27&"次"),"") ->  | L22: 活动商店4 | M22: 67 | N22: 神州令
D23: =IF($B$2=StoreConfig!C28,StoreConfig!O28,"") ->  | E23: =IF($B$2=StoreConfig!C28,StoreConfig!E28,"") ->  | F23: =IF($B$2=StoreConfig!C28,RIGHT(StoreConfig!J28,LEN(StoreConfig!J28)-FIND("|",StoreConfig!J28)),"") ->  | G23: =IFERROR(VLOOKUP(--IF($B$2=StoreConfig!C28,LEFT(StoreConfig!J28,FIND("|",StoreConfig!J28)-1),""),$Q$4:$R$20,2,FALSE),"") ->  | H23: =IF($B$2=StoreConfig!C28,LEFT(StoreConfig!G28,FIND("#",StoreConfig!G28)-1),"") ->  | I23: =IF($B$2=StoreConfig!C28,RIGHT(StoreConfig!G28,LEN(StoreConfig!G28)-FIND("#",StoreConfig!G28)),"") ->  | J23: =IF($B$2=StoreConfig!C28,IF(StoreConfig!L28=0,"不限购",StoreConfig!L28&"次"),"") ->  | L23: 公会商店 | M23: 65 | N23: 公会御令
D24: =IF($B$2=StoreConfig!C29,StoreConfig!O29,"") ->  | E24: =IF($B$2=StoreConfig!C29,StoreConfig!E29,"") ->  | F24: =IF($B$2=StoreConfig!C29,RIGHT(StoreConfig!J29,LEN(StoreConfig!J29)-FIND("|",StoreConfig!J29)),"") ->  | G24: =IFERROR(VLOOKUP(--IF($B$2=StoreConfig!C29,LEFT(StoreConfig!J29,FIND("|",StoreConfig!J29)-1),""),$Q$4:$R$20,2,FALSE),"") ->  | H24: =IF($B$2=StoreConfig!C29,LEFT(StoreConfig!G29,FIND("#",StoreConfig!G29)-1),"") ->  | I24: =IF($B$2=StoreConfig!C29,RIGHT(StoreConfig!G29,LEN(StoreConfig!G29)-FIND("#",StoreConfig!G29)),"") ->  | J24: =IF($B$2=StoreConfig!C29,IF(StoreConfig!L29=0,"不限购",StoreConfig!L29&"次"),"") ->  | L24: 无尽商店 | M24: 1201 | N24: 上古钱币
D25: =IF($B$2=StoreConfig!C30,StoreConfig!O30,"") ->  | E25: =IF($B$2=StoreConfig!C30,StoreConfig!E30,"") ->  | F25: =IF($B$2=StoreConfig!C30,RIGHT(StoreConfig!J30,LEN(StoreConfig!J30)-FIND("|",StoreConfig!J30)),"") ->  | G25: =IFERROR(VLOOKUP(--IF($B$2=StoreConfig!C30,LEFT(StoreConfig!J30,FIND("|",StoreConfig!J30)-1),""),$Q$4:$R$20,2,FALSE),"") ->  | H25: =IF($B$2=StoreConfig!C30,LEFT(StoreConfig!G30,FIND("#",StoreConfig!G30)-1),"") ->  | I25: =IF($B$2=StoreConfig!C30,RIGHT(StoreConfig!G30,LEN(StoreConfig!G30)-FIND("#",StoreConfig!G30)),"") ->  | J25: =IF($B$2=StoreConfig!C30,IF(StoreConfig!L30=0,"不限购",StoreConfig!L30&"次"),"") ->  | L25: 无尽商店2 | M25: 1201 | N25: 上古钱币
D26: =IF($B$2=StoreConfig!C31,StoreConfig!O31,"") ->  | E26: =IF($B$2=StoreConfig!C31,StoreConfig!E31,"") ->  | F26: =IF($B$2=StoreConfig!C31,RIGHT(StoreConfig!J31,LEN(StoreConfig!J31)-FIND("|",StoreConfig!J31)),"") ->  | G26: =IFERROR(VLOOKUP(--IF($B$2=StoreConfig!C31,LEFT(StoreConfig!J31,FIND("|",StoreConfig!J31)-1),""),$Q$4:$R$20,2,FALSE),"") ->  | H26: =IF($B$2=StoreConfig!C31,LEFT(StoreConfig!G31,FIND("#",StoreConfig!G31)-1),"") ->  | I26: =IF($B$2=StoreConfig!C31,RIGHT(StoreConfig!G31,LEN(StoreConfig!G31)-FIND("#",StoreConfig!G31)),"") ->  | J26: =IF($B$2=StoreConfig!C31,IF(StoreConfig!L31=0,"不限购",StoreConfig!L31&"次"),"") ->  | L26: 天宫商店 | M26: 93 | N26: 战功
D27: =IF($B$2=StoreConfig!C32,StoreConfig!O32,"") ->  | E27: =IF($B$2=StoreConfig!C32,StoreConfig!E32,"") ->  | F27: =IF($B$2=StoreConfig!C32,RIGHT(StoreConfig!J32,LEN(StoreConfig!J32)-FIND("|",StoreConfig!J32)),"") ->  | G27: =IFERROR(VLOOKUP(--IF($B$2=StoreConfig!C32,LEFT(StoreConfig!J32,FIND("|",StoreConfig!J32)-1),""),$Q$4:$R$20,2,FALSE),"") ->  | H27: =IF($B$2=StoreConfig!C32,LEFT(StoreConfig!G32,FIND("#",StoreConfig!G32)-1),"") ->  | I27: =IF($B$2=StoreConfig!C32,RIGHT(StoreConfig!G32,LEN(StoreConfig!G32)-FIND("#",StoreConfig!G32)),"") ->  | J27: =IF($B$2=StoreConfig!C32,IF(StoreConfig!L32=0,"不限购",StoreConfig!L32&"次"),"") ->  | L27: 新手礼包 | M27: 15 | N27: 魂晶
D28: =IF($B$2=StoreConfig!C33,StoreConfig!O33,"") ->  | E28: =IF($B$2=StoreConfig!C33,StoreConfig!E33,"") ->  | F28: =IF($B$2=StoreConfig!C33,RIGHT(StoreConfig!J33,LEN(StoreConfig!J33)-FIND("|",StoreConfig!J33)),"") ->  | G28: =IFERROR(VLOOKUP(--IF($B$2=StoreConfig!C33,LEFT(StoreConfig!J33,FIND("|",StoreConfig!J33)-1),""),$Q$4:$R$20,2,FALSE),"") ->  | H28: =IF($B$2=StoreConfig!C33,LEFT(StoreConfig!G33,FIND("#",StoreConfig!G33)-1),"") ->  | I28: =IF($B$2=StoreConfig!C33,RIGHT(StoreConfig!G33,LEN(StoreConfig!G33)-FIND("#",StoreConfig!G33)),"") ->  | J28: =IF($B$2=StoreConfig!C33,IF(StoreConfig!L33=0,"不限购",StoreConfig!L33&"次"),"") ->  | L28: 成长礼包 | M28: 16 | N28: 妖晶
D29: =IF($B$2=StoreConfig!C34,StoreConfig!O34,"") ->  | E29: =IF($B$2=StoreConfig!C34,StoreConfig!E34,"") ->  | F29: =IF($B$2=StoreConfig!C34,RIGHT(StoreConfig!J34,LEN(StoreConfig!J34)-FIND("|",StoreConfig!J34)),"") ->  | G29: =IFERROR(VLOOKUP(--IF($B$2=StoreConfig!C34,LEFT(StoreConfig!J34,FIND("|",StoreConfig!J34)-1),""),$Q$4:$R$20,2,FALSE),"") ->  | H29: =IF($B$2=StoreConfig!C34,LEFT(StoreConfig!G34,FIND("#",StoreConfig!G34)-1),"") ->  | I29: =IF($B$2=StoreConfig!C34,RIGHT(StoreConfig!G34,LEN(StoreConfig!G34)-FIND("#",StoreConfig!G34)),"") ->  | J29: =IF($B$2=StoreConfig!C34,IF(StoreConfig!L34=0,"不限购",StoreConfig!L34&"次"),"") ->  | L29: 杂货商店 | M29: 16 | N29: 妖晶
D30: =IF($B$2=StoreConfig!C35,StoreConfig!O35,"") ->  | E30: =IF($B$2=StoreConfig!C35,StoreConfig!E35,"") ->  | F30: =IF($B$2=StoreConfig!C35,RIGHT(StoreConfig!J35,LEN(StoreConfig!J35)-FIND("|",StoreConfig!J35)),"") ->  | G30: =IFERROR(VLOOKUP(--IF($B$2=StoreConfig!C35,LEFT(StoreConfig!J35,FIND("|",StoreConfig!J35)-1),""),$Q$4:$R$20,2,FALSE),"") ->  | H30: =IF($B$2=StoreConfig!C35,LEFT(StoreConfig!G35,FIND("#",StoreConfig!G35)-1),"") ->  | I30: =IF($B$2=StoreConfig!C35,RIGHT(StoreConfig!G35,LEN(StoreConfig!G35)-FIND("#",StoreConfig!G35)),"") ->  | J30: =IF($B$2=StoreConfig!C35,IF(StoreConfig!L35=0,"不限购",StoreConfig!L35&"次"),"") ->  | L30: 杂货商店 | M30: 14 | N30: 金币
D31: =IF($B$2=StoreConfig!C36,StoreConfig!O36,"") ->  | E31: =IF($B$2=StoreConfig!C36,StoreConfig!E36,"") ->  | F31: =IF($B$2=StoreConfig!C36,RIGHT(StoreConfig!J36,LEN(StoreConfig!J36)-FIND("|",StoreConfig!J36)),"") ->  | G31: =IFERROR(VLOOKUP(--IF($B$2=StoreConfig!C36,LEFT(StoreConfig!J36,FIND("|",StoreConfig!J36)-1),""),$Q$4:$R$20,2,FALSE),"") ->  | H31: =IF($B$2=StoreConfig!C36,LEFT(StoreConfig!G36,FIND("#",StoreConfig!G36)-1),"") ->  | I31: =IF($B$2=StoreConfig!C36,RIGHT(StoreConfig!G36,LEN(StoreConfig!G36)-FIND("#",StoreConfig!G36)),"") ->  | J31: =IF($B$2=StoreConfig!C36,IF(StoreConfig!L36=0,"不限购",StoreConfig!L36&"次"),"") ->  | L31: 魂印商店 | M31: 66 | N31: 星魂
D32: =IF($B$2=StoreConfig!C37,StoreConfig!O37,"") ->  | E32: =IF($B$2=StoreConfig!C37,StoreConfig!E37,"") ->  | F32: =IF($B$2=StoreConfig!C37,RIGHT(StoreConfig!J37,LEN(StoreConfig!J37)-FIND("|",StoreConfig!J37)),"") ->  | G32: =IFERROR(VLOOKUP(--IF($B$2=StoreConfig!C37,LEFT(StoreConfig!J37,FIND("|",StoreConfig!J37)-1),""),$Q$4:$R$20,2,FALSE),"") ->  | H32: =IF($B$2=StoreConfig!C37,LEFT(StoreConfig!G37,FIND("#",StoreConfig!G37)-1),"") ->  | I32: =IF($B$2=StoreConfig!C37,RIGHT(StoreConfig!G37,LEN(StoreConfig!G37)-FIND("#",StoreConfig!G37)),"") ->  | J32: =IF($B$2=StoreConfig!C37,IF(StoreConfig!L37=0,"不限购",StoreConfig!L37&"次"),"") ->  | L32: 魂印商店 | M32: 16 | N32: 妖晶
D33: =IF($B$2=StoreConfig!C38,StoreConfig!O38,"") ->  | E33: =IF($B$2=StoreConfig!C38,StoreConfig!E38,"") ->  | F33: =IF($B$2=StoreConfig!C38,RIGHT(StoreConfig!J38,LEN(StoreConfig!J38)-FIND("|",StoreConfig!J38)),"") ->  | G33: =IFERROR(VLOOKUP(--IF($B$2=StoreConfig!C38,LEFT(StoreConfig!J38,FIND("|",StoreConfig!J38)-1),""),$Q$4:$R$20,2,FALSE),"") ->  | H33: =IF($B$2=StoreConfig!C38,LEFT(StoreConfig!G38,FIND("#",StoreConfig!G38)-1),"") ->  | I33: =IF($B$2=StoreConfig!C38,RIGHT(StoreConfig!G38,LEN(StoreConfig!G38)-FIND("#",StoreConfig!G38)),"") ->  | J33: =IF($B$2=StoreConfig!C38,IF(StoreConfig!L38=0,"不限购",StoreConfig!L38&"次"),"") ->  | L33: 混沌商店 | M33: 74 | N33: 元神玉
D34: =IF($B$2=StoreConfig!C39,StoreConfig!O39,"") ->  | E34: =IF($B$2=StoreConfig!C39,StoreConfig!E39,"") ->  | F34: =IF($B$2=StoreConfig!C39,RIGHT(StoreConfig!J39,LEN(StoreConfig!J39)-FIND("|",StoreConfig!J39)),"") ->  | G34: =IFERROR(VLOOKUP(--IF($B$2=StoreConfig!C39,LEFT(StoreConfig!J39,FIND("|",StoreConfig!J39)-1),""),$Q$4:$R$20,2,FALSE),"") ->  | H34: =IF($B$2=StoreConfig!C39,LEFT(StoreConfig!G39,FIND("#",StoreConfig!G39)-1),"") ->  | I34: =IF($B$2=StoreConfig!C39,RIGHT(StoreConfig!G39,LEN(StoreConfig!G39)-FIND("#",StoreConfig!G39)),"") ->  | J34: =IF($B$2=StoreConfig!C39,IF(StoreConfig!L39=0,"不限购",StoreConfig!L39&"次"),"") ->  | L34: 猎妖之路商店节点 | M34: 16 | N34: 妖晶
D35: =IF($B$2=StoreConfig!C40,StoreConfig!O40,"") ->  | E35: =IF($B$2=StoreConfig!C40,StoreConfig!E40,"") ->  | F35: =IF($B$2=StoreConfig!C40,RIGHT(StoreConfig!J40,LEN(StoreConfig!J40)-FIND("|",StoreConfig!J40)),"") ->  | G35: =IFERROR(VLOOKUP(--IF($B$2=StoreConfig!C40,LEFT(StoreConfig!J40,FIND("|",StoreConfig!J40)-1),""),$Q$4:$R$20,2,FALSE),"") ->  | H35: =IF($B$2=StoreConfig!C40,LEFT(StoreConfig!G40,FIND("#",StoreConfig!G40)-1),"") ->  | I35: =IF($B$2=StoreConfig!C40,RIGHT(StoreConfig!G40,LEN(StoreConfig!G40)-FIND("#",StoreConfig!G40)),"") ->  | J35: =IF($B$2=StoreConfig!C40,IF(StoreConfig!L40=0,"不限购",StoreConfig!L40&"次"),"") ->  | L35: 乾坤商店 | M35: 1003 | N35: 乾坤令
D36: =IF($B$2=StoreConfig!C41,StoreConfig!O41,"") ->  | E36: =IF($B$2=StoreConfig!C41,StoreConfig!E41,"") ->  | F36: =IF($B$2=StoreConfig!C41,RIGHT(StoreConfig!J41,LEN(StoreConfig!J41)-FIND("|",StoreConfig!J41)),"") ->  | G36: =IFERROR(VLOOKUP(--IF($B$2=StoreConfig!C41,LEFT(StoreConfig!J41,FIND("|",StoreConfig!J41)-1),""),$Q$4:$R$20,2,FALSE),"") ->  | H36: =IF($B$2=StoreConfig!C41,LEFT(StoreConfig!G41,FIND("#",StoreConfig!G41)-1),"") ->  | I36: =IF($B$2=StoreConfig!C41,RIGHT(StoreConfig!G41,LEN(StoreConfig!G41)-FIND("#",StoreConfig!G41)),"") ->  | J36: =IF($B$2=StoreConfig!C41,IF(StoreConfig!L41=0,"不限购",StoreConfig!L41&"次"),"") -> 
D37: =IF($B$2=StoreConfig!C42,StoreConfig!O42,"") ->  | E37: =IF($B$2=StoreConfig!C42,StoreConfig!E42,"") ->  | F37: =IF($B$2=StoreConfig!C42,RIGHT(StoreConfig!J42,LEN(StoreConfig!J42)-FIND("|",StoreConfig!J42)),"") ->  | G37: =IFERROR(VLOOKUP(--IF($B$2=StoreConfig!C42,LEFT(StoreConfig!J42,FIND("|",StoreConfig!J42)-1),""),$Q$4:$R$20,2,FALSE),"") ->  | H37: =IF($B$2=StoreConfig!C42,LEFT(StoreConfig!G42,FIND("#",StoreConfig!G42)-1),"") ->  | I37: =IF($B$2=StoreConfig!C42,RIGHT(StoreConfig!G42,LEN(StoreConfig!G42)-FIND("#",StoreConfig!G42)),"") ->  | J37: =IF($B$2=StoreConfig!C42,IF(StoreConfig!L42=0,"不限购",StoreConfig!L42&"次"),"") -> 
D38: =IF($B$2=StoreConfig!C43,StoreConfig!O43,"") ->  | E38: =IF($B$2=StoreConfig!C43,StoreConfig!E43,"") ->  | F38: =IF($B$2=StoreConfig!C43,RIGHT(StoreConfig!J43,LEN(StoreConfig!J43)-FIND("|",StoreConfig!J43)),"") ->  | G38: =IFERROR(VLOOKUP(--IF($B$2=StoreConfig!C43,LEFT(StoreConfig!J43,FIND("|",StoreConfig!J43)-1),""),$Q$4:$R$20,2,FALSE),"") ->  | H38: =IF($B$2=StoreConfig!C43,LEFT(StoreConfig!G43,FIND("#",StoreConfig!G43)-1),"") ->  | I38: =IF($B$2=StoreConfig!C43,RIGHT(StoreConfig!G43,LEN(StoreConfig!G43)-FIND("#",StoreConfig!G43)),"") ->  | J38: =IF($B$2=StoreConfig!C43,IF(StoreConfig!L43=0,"不限购",StoreConfig!L43&"次"),"") -> 
D39: =IF($B$2=StoreConfig!C44,StoreConfig!O44,"") ->  | E39: =IF($B$2=StoreConfig!C44,StoreConfig!E44,"") ->  | F39: =IF($B$2=StoreConfig!C44,RIGHT(StoreConfig!J44,LEN(StoreConfig!J44)-FIND("|",StoreConfig!J44)),"") ->  | G39: =IFERROR(VLOOKUP(--IF($B$2=StoreConfig!C44,LEFT(StoreConfig!J44,FIND("|",StoreConfig!J44)-1),""),$Q$4:$R$20,2,FALSE),"") ->  | H39: =IF($B$2=StoreConfig!C44,LEFT(StoreConfig!G44,FIND("#",StoreConfig!G44)-1),"") ->  | I39: =IF($B$2=StoreConfig!C44,RIGHT(StoreConfig!G44,LEN(StoreConfig!G44)-FIND("#",StoreConfig!G44)),"") ->  | J39: =IF($B$2=StoreConfig!C44,IF(StoreConfig!L44=0,"不限购",StoreConfig!L44&"次"),"") -> 
D40: =IF($B$2=StoreConfig!C45,StoreConfig!O45,"") ->  | E40: =IF($B$2=StoreConfig!C45,StoreConfig!E45,"") ->  | F40: =IF($B$2=StoreConfig!C45,RIGHT(StoreConfig!J45,LEN(StoreConfig!J45)-FIND("|",StoreConfig!J45)),"") ->  | G40: =IFERROR(VLOOKUP(--IF($B$2=StoreConfig!C45,LEFT(StoreConfig!J45,FIND("|",StoreConfig!J45)-1),""),$Q$4:$R$20,2,FALSE),"") ->  | H40: =IF($B$2=StoreConfig!C45,LEFT(StoreConfig!G45,FIND("#",StoreConfig!G45)-1),"") ->  | I40: =IF($B$2=StoreConfig!C45,RIGHT(StoreConfig!G45,LEN(StoreConfig!G45)-FIND("#",StoreConfig!G45)),"") ->  | J40: =IF($B$2=StoreConfig!C45,IF(StoreConfig!L45=0,"不限购",StoreConfig!L45&"次"),"") -> 
D41: =IF($B$2=StoreConfig!C46,StoreConfig!O46,"") ->  | E41: =IF($B$2=StoreConfig!C46,StoreConfig!E46,"") ->  | F41: =IF($B$2=StoreConfig!C46,RIGHT(StoreConfig!J46,LEN(StoreConfig!J46)-FIND("|",StoreConfig!J46)),"") ->  | G41: =IFERROR(VLOOKUP(--IF($B$2=StoreConfig!C46,LEFT(StoreConfig!J46,FIND("|",StoreConfig!J46)-1),""),$Q$4:$R$20,2,FALSE),"") ->  | H41: =IF($B$2=StoreConfig!C46,LEFT(StoreConfig!G46,FIND("#",StoreConfig!G46)-1),"") ->  | I41: =IF($B$2=StoreConfig!C46,RIGHT(StoreConfig!G46,LEN(StoreConfig!G46)-FIND("#",StoreConfig!G46)),"") ->  | J41: =IF($B$2=StoreConfig!C46,IF(StoreConfig!L46=0,"不限购",StoreConfig!L46&"次"),"") -> 
D42: =IF($B$2=StoreConfig!C47,StoreConfig!O47,"") ->  | E42: =IF($B$2=StoreConfig!C47,StoreConfig!E47,"") ->  | F42: =IF($B$2=StoreConfig!C47,RIGHT(StoreConfig!J47,LEN(StoreConfig!J47)-FIND("|",StoreConfig!J47)),"") ->  | G42: =IFERROR(VLOOKUP(--IF($B$2=StoreConfig!C47,LEFT(StoreConfig!J47,FIND("|",StoreConfig!J47)-1),""),$Q$4:$R$20,2,FALSE),"") ->  | H42: =IF($B$2=StoreConfig!C47,LEFT(StoreConfig!G47,FIND("#",StoreConfig!G47)-1),"") ->  | I42: =IF($B$2=StoreConfig!C47,RIGHT(StoreConfig!G47,LEN(StoreConfig!G47)-FIND("#",StoreConfig!G47)),"") ->  | J42: =IF($B$2=StoreConfig!C47,IF(StoreConfig!L47=0,"不限购",StoreConfig!L47&"次"),"") -> 
D43: =IF($B$2=StoreConfig!C48,StoreConfig!O48,"") ->  | E43: =IF($B$2=StoreConfig!C48,StoreConfig!E48,"") ->  | F43: =IF($B$2=StoreConfig!C48,RIGHT(StoreConfig!J48,LEN(StoreConfig!J48)-FIND("|",StoreConfig!J48)),"") ->  | G43: =IFERROR(VLOOKUP(--IF($B$2=StoreConfig!C48,LEFT(StoreConfig!J48,FIND("|",StoreConfig!J48)-1),""),$Q$4:$R$20,2,FALSE),"") ->  | H43: =IF($B$2=StoreConfig!C48,LEFT(StoreConfig!G48,FIND("#",StoreConfig!G48)-1),"") ->  | I43: =IF($B$2=StoreConfig!C48,RIGHT(StoreConfig!G48,LEN(StoreConfig!G48)-FIND("#",StoreConfig!G48)),"") ->  | J43: =IF($B$2=StoreConfig!C48,IF(StoreConfig!L48=0,"不限购",StoreConfig!L48&"次"),"") -> 
D44: =IF($B$2=StoreConfig!C49,StoreConfig!O49,"") ->  | E44: =IF($B$2=StoreConfig!C49,StoreConfig!E49,"") ->  | F44: =IF($B$2=StoreConfig!C49,RIGHT(StoreConfig!J49,LEN(StoreConfig!J49)-FIND("|",StoreConfig!J49)),"") ->  | G44: =IFERROR(VLOOKUP(--IF($B$2=StoreConfig!C49,LEFT(StoreConfig!J49,FIND("|",StoreConfig!J49)-1),""),$Q$4:$R$20,2,FALSE),"") ->  | H44: =IF($B$2=StoreConfig!C49,LEFT(StoreConfig!G49,FIND("#",StoreConfig!G49)-1),"") ->  | I44: =IF($B$2=StoreConfig!C49,RIGHT(StoreConfig!G49,LEN(StoreConfig!G49)-FIND("#",StoreConfig!G49)),"") ->  | J44: =IF($B$2=StoreConfig!C49,IF(StoreConfig!L49=0,"不限购",StoreConfig!L49&"次"),"") -> 
D45: =IF($B$2=StoreConfig!C50,StoreConfig!O50,"") ->  | E45: =IF($B$2=StoreConfig!C50,StoreConfig!E50,"") ->  | F45: =IF($B$2=StoreConfig!C50,RIGHT(StoreConfig!J50,LEN(StoreConfig!J50)-FIND("|",StoreConfig!J50)),"") ->  | G45: =IFERROR(VLOOKUP(--IF($B$2=StoreConfig!C50,LEFT(StoreConfig!J50,FIND("|",StoreConfig!J50)-1),""),$Q$4:$R$20,2,FALSE),"") ->  | H45: =IF($B$2=StoreConfig!C50,LEFT(StoreConfig!G50,FIND("#",StoreConfig!G50)-1),"") ->  | I45: =IF($B$2=StoreConfig!C50,RIGHT(StoreConfig!G50,LEN(StoreConfig!G50)-FIND("#",StoreConfig!G50)),"") ->  | J45: =IF($B$2=StoreConfig!C50,IF(StoreConfig!L50=0,"不限购",StoreConfig!L50&"次"),"") -> 
D46: =IF($B$2=StoreConfig!C51,StoreConfig!O51,"") ->  | E46: =IF($B$2=StoreConfig!C51,StoreConfig!E51,"") ->  | F46: =IF($B$2=StoreConfig!C51,RIGHT(StoreConfig!J51,LEN(StoreConfig!J51)-FIND("|",StoreConfig!J51)),"") ->  | G46: =IFERROR(VLOOKUP(--IF($B$2=StoreConfig!C51,LEFT(StoreConfig!J51,FIND("|",StoreConfig!J51)-1),""),$Q$4:$R$20,2,FALSE),"") ->  | H46: =IF($B$2=StoreConfig!C51,LEFT(StoreConfig!G51,FIND("#",StoreConfig!G51)-1),"") ->  | I46: =IF($B$2=StoreConfig!C51,RIGHT(StoreConfig!G51,LEN(StoreConfig!G51)-FIND("#",StoreConfig!G51)),"") ->  | J46: =IF($B$2=StoreConfig!C51,IF(StoreConfig!L51=0,"不限购",StoreConfig!L51&"次"),"") -> 
D47: =IF($B$2=StoreConfig!C52,StoreConfig!O52,"") ->  | E47: =IF($B$2=StoreConfig!C52,StoreConfig!E52,"") ->  | F47: =IF($B$2=StoreConfig!C52,RIGHT(StoreConfig!J52,LEN(StoreConfig!J52)-FIND("|",StoreConfig!J52)),"") ->  | G47: =IFERROR(VLOOKUP(--IF($B$2=StoreConfig!C52,LEFT(StoreConfig!J52,FIND("|",StoreConfig!J52)-1),""),$Q$4:$R$20,2,FALSE),"") ->  | H47: =IF($B$2=StoreConfig!C52,LEFT(StoreConfig!G52,FIND("#",StoreConfig!G52)-1),"") ->  | I47: =IF($B$2=StoreConfig!C52,RIGHT(StoreConfig!G52,LEN(StoreConfig!G52)-FIND("#",StoreConfig!G52)),"") ->  | J47: =IF($B$2=StoreConfig!C52,IF(StoreConfig!L52=0,"不限购",StoreConfig!L52&"次"),"") -> 
D48: =IF($B$2=StoreConfig!C53,StoreConfig!O53,"") ->  | E48: =IF($B$2=StoreConfig!C53,StoreConfig!E53,"") ->  | F48: =IF($B$2=StoreConfig!C53,RIGHT(StoreConfig!J53,LEN(StoreConfig!J53)-FIND("|",StoreConfig!J53)),"") ->  | G48: =IFERROR(VLOOKUP(--IF($B$2=StoreConfig!C53,LEFT(StoreConfig!J53,FIND("|",StoreConfig!J53)-1),""),$Q$4:$R$20,2,FALSE),"") ->  | H48: =IF($B$2=StoreConfig!C53,LEFT(StoreConfig!G53,FIND("#",StoreConfig!G53)-1),"") ->  | I48: =IF($B$2=StoreConfig!C53,RIGHT(StoreConfig!G53,LEN(StoreConfig!G53)-FIND("#",StoreConfig!G53)),"") ->  | J48: =IF($B$2=StoreConfig!C53,IF(StoreConfig!L53=0,"不限购",StoreConfig!L53&"次"),"") -> 
D49: =IF($B$2=StoreConfig!C54,StoreConfig!O54,"") ->  | E49: =IF($B$2=StoreConfig!C54,StoreConfig!E54,"") ->  | F49: =IF($B$2=StoreConfig!C54,RIGHT(StoreConfig!J54,LEN(StoreConfig!J54)-FIND("|",StoreConfig!J54)),"") ->  | G49: =IFERROR(VLOOKUP(--IF($B$2=StoreConfig!C54,LEFT(StoreConfig!J54,FIND("|",StoreConfig!J54)-1),""),$Q$4:$R$20,2,FALSE),"") ->  | H49: =IF($B$2=StoreConfig!C54,LEFT(StoreConfig!G54,FIND("#",StoreConfig!G54)-1),"") ->  | I49: =IF($B$2=StoreConfig!C54,RIGHT(StoreConfig!G54,LEN(StoreConfig!G54)-FIND("#",StoreConfig!G54)),"") ->  | J49: =IF($B$2=StoreConfig!C54,IF(StoreConfig!L54=0,"不限购",StoreConfig!L54&"次"),"") -> 
D50: =IF($B$2=StoreConfig!C55,StoreConfig!O55,"") ->  | E50: =IF($B$2=StoreConfig!C55,StoreConfig!E55,"") ->  | F50: =IF($B$2=StoreConfig!C55,RIGHT(StoreConfig!J55,LEN(StoreConfig!J55)-FIND("|",StoreConfig!J55)),"") ->  | G50: =IFERROR(VLOOKUP(--IF($B$2=StoreConfig!C55,LEFT(StoreConfig!J55,FIND("|",StoreConfig!J55)-1),""),$Q$4:$R$20,2,FALSE),"") ->  | H50: =IF($B$2=StoreConfig!C55,LEFT(StoreConfig!G55,FIND("#",StoreConfig!G55)-1),"") ->  | I50: =IF($B$2=StoreConfig!C55,RIGHT(StoreConfig!G55,LEN(StoreConfig!G55)-FIND("#",StoreConfig!G55)),"") ->  | J50: =IF($B$2=StoreConfig!C55,IF(StoreConfig!L55=0,"不限购",StoreConfig!L55&"次"),"") -> 
D51: =IF($B$2=StoreConfig!C56,StoreConfig!O56,"") ->  | E51: =IF($B$2=StoreConfig!C56,StoreConfig!E56,"") ->  | F51: =IF($B$2=StoreConfig!C56,RIGHT(StoreConfig!J56,LEN(StoreConfig!J56)-FIND("|",StoreConfig!J56)),"") ->  | G51: =IFERROR(VLOOKUP(--IF($B$2=StoreConfig!C56,LEFT(StoreConfig!J56,FIND("|",StoreConfig!J56)-1),""),$Q$4:$R$20,2,FALSE),"") ->  | H51: =IF($B$2=StoreConfig!C56,LEFT(StoreConfig!G56,FIND("#",StoreConfig!G56)-1),"") ->  | I51: =IF($B$2=StoreConfig!C56,RIGHT(StoreConfig!G56,LEN(StoreConfig!G56)-FIND("#",StoreConfig!G56)),"") ->  | J51: =IF($B$2=StoreConfig!C56,IF(StoreConfig!L56=0,"不限购",StoreConfig!L56&"次"),"") -> 
D52: =IF($B$2=StoreConfig!C57,StoreConfig!O57,"") ->  | E52: =IF($B$2=StoreConfig!C57,StoreConfig!E57,"") ->  | F52: =IF($B$2=StoreConfig!C57,RIGHT(StoreConfig!J57,LEN(StoreConfig!J57)-FIND("|",StoreConfig!J57)),"") ->  | G52: =IFERROR(VLOOKUP(--IF($B$2=StoreConfig!C57,LEFT(StoreConfig!J57,FIND("|",StoreConfig!J57)-1),""),$Q$4:$R$20,2,FALSE),"") ->  | H52: =IF($B$2=StoreConfig!C57,LEFT(StoreConfig!G57,FIND("#",StoreConfig!G57)-1),"") ->  | I52: =IF($B$2=StoreConfig!C57,RIGHT(StoreConfig!G57,LEN(StoreConfig!G57)-FIND("#",StoreConfig!G57)),"") ->  | J52: =IF($B$2=StoreConfig!C57,IF(StoreConfig!L57=0,"不限购",StoreConfig!L57&"次"),"") -> 
D53: =IF($B$2=StoreConfig!C58,StoreConfig!O58,"") ->  | E53: =IF($B$2=StoreConfig!C58,StoreConfig!E58,"") ->  | F53: =IF($B$2=StoreConfig!C58,RIGHT(StoreConfig!J58,LEN(StoreConfig!J58)-FIND("|",StoreConfig!J58)),"") ->  | G53: =IFERROR(VLOOKUP(--IF($B$2=StoreConfig!C58,LEFT(StoreConfig!J58,FIND("|",StoreConfig!J58)-1),""),$Q$4:$R$20,2,FALSE),"") ->  | H53: =IF($B$2=StoreConfig!C58,LEFT(StoreConfig!G58,FIND("#",StoreConfig!G58)-1),"") ->  | I53: =IF($B$2=StoreConfig!C58,RIGHT(StoreConfig!G58,LEN(StoreConfig!G58)-FIND("#",StoreConfig!G58)),"") ->  | J53: =IF($B$2=StoreConfig!C58,IF(StoreConfig!L58=0,"不限购",StoreConfig!L58&"次"),"") -> 
D54: =IF($B$2=StoreConfig!C59,StoreConfig!O59,"") ->  | E54: =IF($B$2=StoreConfig!C59,StoreConfig!E59,"") ->  | F54: =IF($B$2=StoreConfig!C59,RIGHT(StoreConfig!J59,LEN(StoreConfig!J59)-FIND("|",StoreConfig!J59)),"") ->  | G54: =IFERROR(VLOOKUP(--IF($B$2=StoreConfig!C59,LEFT(StoreConfig!J59,FIND("|",StoreConfig!J59)-1),""),$Q$4:$R$20,2,FALSE),"") ->  | H54: =IF($B$2=StoreConfig!C59,LEFT(StoreConfig!G59,FIND("#",StoreConfig!G59)-1),"") ->  | I54: =IF($B$2=StoreConfig!C59,RIGHT(StoreConfig!G59,LEN(StoreConfig!G59)-FIND("#",StoreConfig!G59)),"") ->  | J54: =IF($B$2=StoreConfig!C59,IF(StoreConfig!L59=0,"不限购",StoreConfig!L59&"次"),"") -> 
D55: =IF($B$2=StoreConfig!C60,StoreConfig!O60,"") ->  | E55: =IF($B$2=StoreConfig!C60,StoreConfig!E60,"") ->  | F55: =IF($B$2=StoreConfig!C60,RIGHT(StoreConfig!J60,LEN(StoreConfig!J60)-FIND("|",StoreConfig!J60)),"") ->  | G55: =IFERROR(VLOOKUP(--IF($B$2=StoreConfig!C60,LEFT(StoreConfig!J60,FIND("|",StoreConfig!J60)-1),""),$Q$4:$R$20,2,FALSE),"") ->  | H55: =IF($B$2=StoreConfig!C60,LEFT(StoreConfig!G60,FIND("#",StoreConfig!G60)-1),"") ->  | I55: =IF($B$2=StoreConfig!C60,RIGHT(StoreConfig!G60,LEN(StoreConfig!G60)-FIND("#",StoreConfig!G60)),"") ->  | J55: =IF($B$2=StoreConfig!C60,IF(StoreConfig!L60=0,"不限购",StoreConfig!L60&"次"),"") -> 
D56: =IF($B$2=StoreConfig!C61,StoreConfig!O61,"") ->  | E56: =IF($B$2=StoreConfig!C61,StoreConfig!E61,"") ->  | F56: =IF($B$2=StoreConfig!C61,RIGHT(StoreConfig!J61,LEN(StoreConfig!J61)-FIND("|",StoreConfig!J61)),"") ->  | G56: =IFERROR(VLOOKUP(--IF($B$2=StoreConfig!C61,LEFT(StoreConfig!J61,FIND("|",StoreConfig!J61)-1),""),$Q$4:$R$20,2,FALSE),"") ->  | H56: =IF($B$2=StoreConfig!C61,LEFT(StoreConfig!G61,FIND("#",StoreConfig!G61)-1),"") ->  | I56: =IF($B$2=StoreConfig!C61,RIGHT(StoreConfig!G61,LEN(StoreConfig!G61)-FIND("#",StoreConfig!G61)),"") ->  | J56: =IF($B$2=StoreConfig!C61,IF(StoreConfig!L61=0,"不限购",StoreConfig!L61&"次"),"") -> 
D57: =IF($B$2=StoreConfig!C62,StoreConfig!O62,"") ->  | E57: =IF($B$2=StoreConfig!C62,StoreConfig!E62,"") ->  | F57: =IF($B$2=StoreConfig!C62,RIGHT(StoreConfig!J62,LEN(StoreConfig!J62)-FIND("|",StoreConfig!J62)),"") ->  | G57: =IFERROR(VLOOKUP(--IF($B$2=StoreConfig!C62,LEFT(StoreConfig!J62,FIND("|",StoreConfig!J62)-1),""),$Q$4:$R$20,2,FALSE),"") ->  | H57: =IF($B$2=StoreConfig!C62,LEFT(StoreConfig!G62,FIND("#",StoreConfig!G62)-1),"") ->  | I57: =IF($B$2=StoreConfig!C62,RIGHT(StoreConfig!G62,LEN(StoreConfig!G62)-FIND("#",StoreConfig!G62)),"") ->  | J57: =IF($B$2=StoreConfig!C62,IF(StoreConfig!L62=0,"不限购",StoreConfig!L62&"次"),"") -> 
D58: =IF($B$2=StoreConfig!C63,StoreConfig!O63,"") ->  | E58: =IF($B$2=StoreConfig!C63,StoreConfig!E63,"") ->  | F58: =IF($B$2=StoreConfig!C63,RIGHT(StoreConfig!J63,LEN(StoreConfig!J63)-FIND("|",StoreConfig!J63)),"") ->  | G58: =IFERROR(VLOOKUP(--IF($B$2=StoreConfig!C63,LEFT(StoreConfig!J63,FIND("|",StoreConfig!J63)-1),""),$Q$4:$R$20,2,FALSE),"") ->  | H58: =IF($B$2=StoreConfig!C63,LEFT(StoreConfig!G63,FIND("#",StoreConfig!G63)-1),"") ->  | I58: =IF($B$2=StoreConfig!C63,RIGHT(StoreConfig!G63,LEN(StoreConfig!G63)-FIND("#",StoreConfig!G63)),"") ->  | J58: =IF($B$2=StoreConfig!C63,IF(StoreConfig!L63=0,"不限购",StoreConfig!L63&"次"),"") -> 
D59: =IF($B$2=StoreConfig!C64,StoreConfig!O64,"") ->  | E59: =IF($B$2=StoreConfig!C64,StoreConfig!E64,"") ->  | F59: =IF($B$2=StoreConfig!C64,RIGHT(StoreConfig!J64,LEN(StoreConfig!J64)-FIND("|",StoreConfig!J64)),"") ->  | G59: =IFERROR(VLOOKUP(--IF($B$2=StoreConfig!C64,LEFT(StoreConfig!J64,FIND("|",StoreConfig!J64)-1),""),$Q$4:$R$20,2,FALSE),"") ->  | H59: =IF($B$2=StoreConfig!C64,LEFT(StoreConfig!G64,FIND("#",StoreConfig!G64)-1),"") ->  | I59: =IF($B$2=StoreConfig!C64,RIGHT(StoreConfig!G64,LEN(StoreConfig!G64)-FIND("#",StoreConfig!G64)),"") ->  | J59: =IF($B$2=StoreConfig!C64,IF(StoreConfig!L64=0,"不限购",StoreConfig!L64&"次"),"") -> 
D60: =IF($B$2=StoreConfig!C65,StoreConfig!O65,"") ->  | E60: =IF($B$2=StoreConfig!C65,StoreConfig!E65,"") ->  | F60: =IF($B$2=StoreConfig!C65,RIGHT(StoreConfig!J65,LEN(StoreConfig!J65)-FIND("|",StoreConfig!J65)),"") ->  | G60: =IFERROR(VLOOKUP(--IF($B$2=StoreConfig!C65,LEFT(StoreConfig!J65,FIND("|",StoreConfig!J65)-1),""),$Q$4:$R$20,2,FALSE),"") ->  | H60: =IF($B$2=StoreConfig!C65,LEFT(StoreConfig!G65,FIND("#",StoreConfig!G65)-1),"") ->  | I60: =IF($B$2=StoreConfig!C65,RIGHT(StoreConfig!G65,LEN(StoreConfig!G65)-FIND("#",StoreConfig!G65)),"") ->  | J60: =IF($B$2=StoreConfig!C65,IF(StoreConfig!L65=0,"不限购",StoreConfig!L65&"次"),"") -> 
D61: =IF($B$2=StoreConfig!C66,StoreConfig!O66,"") ->  | E61: =IF($B$2=StoreConfig!C66,StoreConfig!E66,"") ->  | F61: =IF($B$2=StoreConfig!C66,RIGHT(StoreConfig!J66,LEN(StoreConfig!J66)-FIND("|",StoreConfig!J66)),"") ->  | G61: =IFERROR(VLOOKUP(--IF($B$2=StoreConfig!C66,LEFT(StoreConfig!J66,FIND("|",StoreConfig!J66)-1),""),$Q$4:$R$20,2,FALSE),"") ->  | H61: =IF($B$2=StoreConfig!C66,LEFT(StoreConfig!G66,FIND("#",StoreConfig!G66)-1),"") ->  | I61: =IF($B$2=StoreConfig!C66,RIGHT(StoreConfig!G66,LEN(StoreConfig!G66)-FIND("#",StoreConfig!G66)),"") ->  | J61: =IF($B$2=StoreConfig!C66,IF(StoreConfig!L66=0,"不限购",StoreConfig!L66&"次"),"") -> 
D62: =IF($B$2=StoreConfig!C67,StoreConfig!O67,"") ->  | E62: =IF($B$2=StoreConfig!C67,StoreConfig!E67,"") ->  | F62: =IF($B$2=StoreConfig!C67,RIGHT(StoreConfig!J67,LEN(StoreConfig!J67)-FIND("|",StoreConfig!J67)),"") ->  | G62: =IFERROR(VLOOKUP(--IF($B$2=StoreConfig!C67,LEFT(StoreConfig!J67,FIND("|",StoreConfig!J67)-1),""),$Q$4:$R$20,2,FALSE),"") ->  | H62: =IF($B$2=StoreConfig!C67,LEFT(StoreConfig!G67,FIND("#",StoreConfig!G67)-1),"") ->  | I62: =IF($B$2=StoreConfig!C67,RIGHT(StoreConfig!G67,LEN(StoreConfig!G67)-FIND("#",StoreConfig!G67)),"") ->  | J62: =IF($B$2=StoreConfig!C67,IF(StoreConfig!L67=0,"不限购",StoreConfig!L67&"次"),"") -> 
D63: =IF($B$2=StoreConfig!C68,StoreConfig!O68,"") ->  | E63: =IF($B$2=StoreConfig!C68,StoreConfig!E68,"") ->  | F63: =IF($B$2=StoreConfig!C68,RIGHT(StoreConfig!J68,LEN(StoreConfig!J68)-FIND("|",StoreConfig!J68)),"") ->  | G63: =IFERROR(VLOOKUP(--IF($B$2=StoreConfig!C68,LEFT(StoreConfig!J68,FIND("|",StoreConfig!J68)-1),""),$Q$4:$R$20,2,FALSE),"") ->  | H63: =IF($B$2=StoreConfig!C68,LEFT(StoreConfig!G68,FIND("#",StoreConfig!G68)-1),"") ->  | I63: =IF($B$2=StoreConfig!C68,RIGHT(StoreConfig!G68,LEN(StoreConfig!G68)-FIND("#",StoreConfig!G68)),"") ->  | J63: =IF($B$2=StoreConfig!C68,IF(StoreConfig!L68=0,"不限购",StoreConfig!L68&"次"),"") -> 
D64: =IF($B$2=StoreConfig!C69,StoreConfig!O69,"") ->  | E64: =IF($B$2=StoreConfig!C69,StoreConfig!E69,"") ->  | F64: =IF($B$2=StoreConfig!C69,RIGHT(StoreConfig!J69,LEN(StoreConfig!J69)-FIND("|",StoreConfig!J69)),"") ->  | G64: =IFERROR(VLOOKUP(--IF($B$2=StoreConfig!C69,LEFT(StoreConfig!J69,FIND("|",StoreConfig!J69)-1),""),$Q$4:$R$20,2,FALSE),"") ->  | H64: =IF($B$2=StoreConfig!C69,LEFT(StoreConfig!G69,FIND("#",StoreConfig!G69)-1),"") ->  | I64: =IF($B$2=StoreConfig!C69,RIGHT(StoreConfig!G69,LEN(StoreConfig!G69)-FIND("#",StoreConfig!G69)),"") ->  | J64: =IF($B$2=StoreConfig!C69,IF(StoreConfig!L69=0,"不限购",StoreConfig!L69&"次"),"") -> 
D65: =IF($B$2=StoreConfig!C70,StoreConfig!O70,"") ->  | E65: =IF($B$2=StoreConfig!C70,StoreConfig!E70,"") ->  | F65: =IF($B$2=StoreConfig!C70,RIGHT(StoreConfig!J70,LEN(StoreConfig!J70)-FIND("|",StoreConfig!J70)),"") ->  | G65: =IFERROR(VLOOKUP(--IF($B$2=StoreConfig!C70,LEFT(StoreConfig!J70,FIND("|",StoreConfig!J70)-1),""),$Q$4:$R$20,2,FALSE),"") ->  | H65: =IF($B$2=StoreConfig!C70,LEFT(StoreConfig!G70,FIND("#",StoreConfig!G70)-1),"") ->  | I65: =IF($B$2=StoreConfig!C70,RIGHT(StoreConfig!G70,LEN(StoreConfig!G70)-FIND("#",StoreConfig!G70)),"") ->  | J65: =IF($B$2=StoreConfig!C70,IF(StoreConfig!L70=0,"不限购",StoreConfig!L70&"次"),"") -> 
D66: =IF($B$2=StoreConfig!C71,StoreConfig!O71,"") ->  | E66: =IF($B$2=StoreConfig!C71,StoreConfig!E71,"") ->  | F66: =IF($B$2=StoreConfig!C71,RIGHT(StoreConfig!J71,LEN(StoreConfig!J71)-FIND("|",StoreConfig!J71)),"") ->  | G66: =IFERROR(VLOOKUP(--IF($B$2=StoreConfig!C71,LEFT(StoreConfig!J71,FIND("|",StoreConfig!J71)-1),""),$Q$4:$R$20,2,FALSE),"") ->  | H66: =IF($B$2=StoreConfig!C71,LEFT(StoreConfig!G71,FIND("#",StoreConfig!G71)-1),"") ->  | I66: =IF($B$2=StoreConfig!C71,RIGHT(StoreConfig!G71,LEN(StoreConfig!G71)-FIND("#",StoreConfig!G71)),"") ->  | J66: =IF($B$2=StoreConfig!C71,IF(StoreConfig!L71=0,"不限购",StoreConfig!L71&"次"),"") -> 
D67: =IF($B$2=StoreConfig!C72,StoreConfig!O72,"") ->  | E67: =IF($B$2=StoreConfig!C72,StoreConfig!E72,"") ->  | F67: =IF($B$2=StoreConfig!C72,RIGHT(StoreConfig!J72,LEN(StoreConfig!J72)-FIND("|",StoreConfig!J72)),"") ->  | G67: =IFERROR(VLOOKUP(--IF($B$2=StoreConfig!C72,LEFT(StoreConfig!J72,FIND("|",StoreConfig!J72)-1),""),$Q$4:$R$20,2,FALSE),"") ->  | H67: =IF($B$2=StoreConfig!C72,LEFT(StoreConfig!G72,FIND("#",StoreConfig!G72)-1),"") ->  | I67: =IF($B$2=StoreConfig!C72,RIGHT(StoreConfig!G72,LEN(StoreConfig!G72)-FIND("#",StoreConfig!G72)),"") ->  | J67: =IF($B$2=StoreConfig!C72,IF(StoreConfig!L72=0,"不限购",StoreConfig!L72&"次"),"") -> 
D68: =IF($B$2=StoreConfig!C73,StoreConfig!O73,"") ->  | E68: =IF($B$2=StoreConfig!C73,StoreConfig!E73,"") ->  | F68: =IF($B$2=StoreConfig!C73,RIGHT(StoreConfig!J73,LEN(StoreConfig!J73)-FIND("|",StoreConfig!J73)),"") ->  | G68: =IFERROR(VLOOKUP(--IF($B$2=StoreConfig!C73,LEFT(StoreConfig!J73,FIND("|",StoreConfig!J73)-1),""),$Q$4:$R$20,2,FALSE),"") ->  | H68: =IF($B$2=StoreConfig!C73,LEFT(StoreConfig!G73,FIND("#",StoreConfig!G73)-1),"") ->  | I68: =IF($B$2=StoreConfig!C73,RIGHT(StoreConfig!G73,LEN(StoreConfig!G73)-FIND("#",StoreConfig!G73)),"") ->  | J68: =IF($B$2=StoreConfig!C73,IF(StoreConfig!L73=0,"不限购",StoreConfig!L73&"次"),"") -> 
D69: =IF($B$2=StoreConfig!C74,StoreConfig!O74,"") ->  | E69: =IF($B$2=StoreConfig!C74,StoreConfig!E74,"") ->  | F69: =IF($B$2=StoreConfig!C74,RIGHT(StoreConfig!J74,LEN(StoreConfig!J74)-FIND("|",StoreConfig!J74)),"") ->  | G69: =IFERROR(VLOOKUP(--IF($B$2=StoreConfig!C74,LEFT(StoreConfig!J74,FIND("|",StoreConfig!J74)-1),""),$Q$4:$R$20,2,FALSE),"") ->  | H69: =IF($B$2=StoreConfig!C74,LEFT(StoreConfig!G74,FIND("#",StoreConfig!G74)-1),"") ->  | I69: =IF($B$2=StoreConfig!C74,RIGHT(StoreConfig!G74,LEN(StoreConfig!G74)-FIND("#",StoreConfig!G74)),"") ->  | J69: =IF($B$2=StoreConfig!C74,IF(StoreConfig!L74=0,"不限购",StoreConfig!L74&"次"),"") -> 
D70: =IF($B$2=StoreConfig!C75,StoreConfig!O75,"") ->  | E70: =IF($B$2=StoreConfig!C75,StoreConfig!E75,"") ->  | F70: =IF($B$2=StoreConfig!C75,RIGHT(StoreConfig!J75,LEN(StoreConfig!J75)-FIND("|",StoreConfig!J75)),"") ->  | G70: =IFERROR(VLOOKUP(--IF($B$2=StoreConfig!C75,LEFT(StoreConfig!J75,FIND("|",StoreConfig!J75)-1),""),$Q$4:$R$20,2,FALSE),"") ->  | H70: =IF($B$2=StoreConfig!C75,LEFT(StoreConfig!G75,FIND("#",StoreConfig!G75)-1),"") ->  | I70: =IF($B$2=StoreConfig!C75,RIGHT(StoreConfig!G75,LEN(StoreConfig!G75)-FIND("#",StoreConfig!G75)),"") ->  | J70: =IF($B$2=StoreConfig!C75,IF(StoreConfig!L75=0,"不限购",StoreConfig!L75&"次"),"") -> 
D71: =IF($B$2=StoreConfig!C76,StoreConfig!O76,"") ->  | E71: =IF($B$2=StoreConfig!C76,StoreConfig!E76,"") ->  | F71: =IF($B$2=StoreConfig!C76,RIGHT(StoreConfig!J76,LEN(StoreConfig!J76)-FIND("|",StoreConfig!J76)),"") ->  | G71: =IFERROR(VLOOKUP(--IF($B$2=StoreConfig!C76,LEFT(StoreConfig!J76,FIND("|",StoreConfig!J76)-1),""),$Q$4:$R$20,2,FALSE),"") ->  | H71: =IF($B$2=StoreConfig!C76,LEFT(StoreConfig!G76,FIND("#",StoreConfig!G76)-1),"") ->  | I71: =IF($B$2=StoreConfig!C76,RIGHT(StoreConfig!G76,LEN(StoreConfig!G76)-FIND("#",StoreConfig!G76)),"") ->  | J71: =IF($B$2=StoreConfig!C76,IF(StoreConfig!L76=0,"不限购",StoreConfig!L76&"次"),"") -> 
D72: =IF($B$2=StoreConfig!C77,StoreConfig!O77,"") ->  | E72: =IF($B$2=StoreConfig!C77,StoreConfig!E77,"") ->  | F72: =IF($B$2=StoreConfig!C77,RIGHT(StoreConfig!J77,LEN(StoreConfig!J77)-FIND("|",StoreConfig!J77)),"") ->  | G72: =IFERROR(VLOOKUP(--IF($B$2=StoreConfig!C77,LEFT(StoreConfig!J77,FIND("|",StoreConfig!J77)-1),""),$Q$4:$R$20,2,FALSE),"") ->  | H72: =IF($B$2=StoreConfig!C77,LEFT(StoreConfig!G77,FIND("#",StoreConfig!G77)-1),"") ->  | I72: =IF($B$2=StoreConfig!C77,RIGHT(StoreConfig!G77,LEN(StoreConfig!G77)-FIND("#",StoreConfig!G77)),"") ->  | J72: =IF($B$2=StoreConfig!C77,IF(StoreConfig!L77=0,"不限购",StoreConfig!L77&"次"),"") -> 
D73: =IF($B$2=StoreConfig!C78,StoreConfig!O78,"") ->  | E73: =IF($B$2=StoreConfig!C78,StoreConfig!E78,"") ->  | F73: =IF($B$2=StoreConfig!C78,RIGHT(StoreConfig!J78,LEN(StoreConfig!J78)-FIND("|",StoreConfig!J78)),"") ->  | G73: =IFERROR(VLOOKUP(--IF($B$2=StoreConfig!C78,LEFT(StoreConfig!J78,FIND("|",StoreConfig!J78)-1),""),$Q$4:$R$20,2,FALSE),"") ->  | H73: =IF($B$2=StoreConfig!C78,LEFT(StoreConfig!G78,FIND("#",StoreConfig!G78)-1),"") ->  | I73: =IF($B$2=StoreConfig!C78,RIGHT(StoreConfig!G78,LEN(StoreConfig!G78)-FIND("#",StoreConfig!G78)),"") ->  | J73: =IF($B$2=StoreConfig!C78,IF(StoreConfig!L78=0,"不限购",StoreConfig!L78&"次"),"") -> 
D74: =IF($B$2=StoreConfig!C79,StoreConfig!O79,"") ->  | E74: =IF($B$2=StoreConfig!C79,StoreConfig!E79,"") ->  | F74: =IF($B$2=StoreConfig!C79,RIGHT(StoreConfig!J79,LEN(StoreConfig!J79)-FIND("|",StoreConfig!J79)),"") ->  | G74: =IFERROR(VLOOKUP(--IF($B$2=StoreConfig!C79,LEFT(StoreConfig!J79,FIND("|",StoreConfig!J79)-1),""),$Q$4:$R$20,2,FALSE),"") ->  | H74: =IF($B$2=StoreConfig!C79,LEFT(StoreConfig!G79,FIND("#",StoreConfig!G79)-1),"") ->  | I74: =IF($B$2=StoreConfig!C79,RIGHT(StoreConfig!G79,LEN(StoreConfig!G79)-FIND("#",StoreConfig!G79)),"") ->  | J74: =IF($B$2=StoreConfig!C79,IF(StoreConfig!L79=0,"不限购",StoreConfig!L79&"次"),"") -> 
D75: =IF($B$2=StoreConfig!C80,StoreConfig!O80,"") ->  | E75: =IF($B$2=StoreConfig!C80,StoreConfig!E80,"") ->  | F75: =IF($B$2=StoreConfig!C80,RIGHT(StoreConfig!J80,LEN(StoreConfig!J80)-FIND("|",StoreConfig!J80)),"") ->  | G75: =IFERROR(VLOOKUP(--IF($B$2=StoreConfig!C80,LEFT(StoreConfig!J80,FIND("|",StoreConfig!J80)-1),""),$Q$4:$R$20,2,FALSE),"") ->  | H75: =IF($B$2=StoreConfig!C80,LEFT(StoreConfig!G80,FIND("#",StoreConfig!G80)-1),"") ->  | I75: =IF($B$2=StoreConfig!C80,RIGHT(StoreConfig!G80,LEN(StoreConfig!G80)-FIND("#",StoreConfig!G80)),"") ->  | J75: =IF($B$2=StoreConfig!C80,IF(StoreConfig!L80=0,"不限购",StoreConfig!L80&"次"),"") -> 
D76: =IF($B$2=StoreConfig!C81,StoreConfig!O81,"") ->  | E76: =IF($B$2=StoreConfig!C81,StoreConfig!E81,"") ->  | F76: =IF($B$2=StoreConfig!C81,RIGHT(StoreConfig!J81,LEN(StoreConfig!J81)-FIND("|",StoreConfig!J81)),"") ->  | G76: =IFERROR(VLOOKUP(--IF($B$2=StoreConfig!C81,LEFT(StoreConfig!J81,FIND("|",StoreConfig!J81)-1),""),$Q$4:$R$20,2,FALSE),"") ->  | H76: =IF($B$2=StoreConfig!C81,LEFT(StoreConfig!G81,FIND("#",StoreConfig!G81)-1),"") ->  | I76: =IF($B$2=StoreConfig!C81,RIGHT(StoreConfig!G81,LEN(StoreConfig!G81)-FIND("#",StoreConfig!G81)),"") ->  | J76: =IF($B$2=StoreConfig!C81,IF(StoreConfig!L81=0,"不限购",StoreConfig!L81&"次"),"") -> 
D77: =IF($B$2=StoreConfig!C82,StoreConfig!O82,"") ->  | E77: =IF($B$2=StoreConfig!C82,StoreConfig!E82,"") ->  | F77: =IF($B$2=StoreConfig!C82,RIGHT(StoreConfig!J82,LEN(StoreConfig!J82)-FIND("|",StoreConfig!J82)),"") ->  | G77: =IFERROR(VLOOKUP(--IF($B$2=StoreConfig!C82,LEFT(StoreConfig!J82,FIND("|",StoreConfig!J82)-1),""),$Q$4:$R$20,2,FALSE),"") ->  | H77: =IF($B$2=StoreConfig!C82,LEFT(StoreConfig!G82,FIND("#",StoreConfig!G82)-1),"") ->  | I77: =IF($B$2=StoreConfig!C82,RIGHT(StoreConfig!G82,LEN(StoreConfig!G82)-FIND("#",StoreConfig!G82)),"") ->  | J77: =IF($B$2=StoreConfig!C82,IF(StoreConfig!L82=0,"不限购",StoreConfig!L82&"次"),"") -> 
D78: =IF($B$2=StoreConfig!C83,StoreConfig!O83,"") ->  | E78: =IF($B$2=StoreConfig!C83,StoreConfig!E83,"") ->  | F78: =IF($B$2=StoreConfig!C83,RIGHT(StoreConfig!J83,LEN(StoreConfig!J83)-FIND("|",StoreConfig!J83)),"") ->  | G78: =IFERROR(VLOOKUP(--IF($B$2=StoreConfig!C83,LEFT(StoreConfig!J83,FIND("|",StoreConfig!J83)-1),""),$Q$4:$R$20,2,FALSE),"") ->  | H78: =IF($B$2=StoreConfig!C83,LEFT(StoreConfig!G83,FIND("#",StoreConfig!G83)-1),"") ->  | I78: =IF($B$2=StoreConfig!C83,RIGHT(StoreConfig!G83,LEN(StoreConfig!G83)-FIND("#",StoreConfig!G83)),"") ->  | J78: =IF($B$2=StoreConfig!C83,IF(StoreConfig!L83=0,"不限购",StoreConfig!L83&"次"),"") -> 
D79: =IF($B$2=StoreConfig!C84,StoreConfig!O84,"") ->  | E79: =IF($B$2=StoreConfig!C84,StoreConfig!E84,"") ->  | F79: =IF($B$2=StoreConfig!C84,RIGHT(StoreConfig!J84,LEN(StoreConfig!J84)-FIND("|",StoreConfig!J84)),"") ->  | G79: =IFERROR(VLOOKUP(--IF($B$2=StoreConfig!C84,LEFT(StoreConfig!J84,FIND("|",StoreConfig!J84)-1),""),$Q$4:$R$20,2,FALSE),"") ->  | H79: =IF($B$2=StoreConfig!C84,LEFT(StoreConfig!G84,FIND("#",StoreConfig!G84)-1),"") ->  | I79: =IF($B$2=StoreConfig!C84,RIGHT(StoreConfig!G84,LEN(StoreConfig!G84)-FIND("#",StoreConfig!G84)),"") ->  | J79: =IF($B$2=StoreConfig!C84,IF(StoreConfig!L84=0,"不限购",StoreConfig!L84&"次"),"") -> 
D80: =IF($B$2=StoreConfig!C85,StoreConfig!O85,"") ->  | E80: =IF($B$2=StoreConfig!C85,StoreConfig!E85,"") ->  | F80: =IF($B$2=StoreConfig!C85,RIGHT(StoreConfig!J85,LEN(StoreConfig!J85)-FIND("|",StoreConfig!J85)),"") ->  | G80: =IFERROR(VLOOKUP(--IF($B$2=StoreConfig!C85,LEFT(StoreConfig!J85,FIND("|",StoreConfig!J85)-1),""),$Q$4:$R$20,2,FALSE),"") ->  | H80: =IF($B$2=StoreConfig!C85,LEFT(StoreConfig!G85,FIND("#",StoreConfig!G85)-1),"") ->  | I80: =IF($B$2=StoreConfig!C85,RIGHT(StoreConfig!G85,LEN(StoreConfig!G85)-FIND("#",StoreConfig!G85)),"") ->  | J80: =IF($B$2=StoreConfig!C85,IF(StoreConfig!L85=0,"不限购",StoreConfig!L85&"次"),"") -> 
D81: =IF($B$2=StoreConfig!C86,StoreConfig!O86,"") ->  | E81: =IF($B$2=StoreConfig!C86,StoreConfig!E86,"") ->  | F81: =IF($B$2=StoreConfig!C86,RIGHT(StoreConfig!J86,LEN(StoreConfig!J86)-FIND("|",StoreConfig!J86)),"") ->  | G81: =IFERROR(VLOOKUP(--IF($B$2=StoreConfig!C86,LEFT(StoreConfig!J86,FIND("|",StoreConfig!J86)-1),""),$Q$4:$R$20,2,FALSE),"") ->  | H81: =IF($B$2=StoreConfig!C86,LEFT(StoreConfig!G86,FIND("#",StoreConfig!G86)-1),"") ->  | I81: =IF($B$2=StoreConfig!C86,RIGHT(StoreConfig!G86,LEN(StoreConfig!G86)-FIND("#",StoreConfig!G86)),"") ->  | J81: =IF($B$2=StoreConfig!C86,IF(StoreConfig!L86=0,"不限购",StoreConfig!L86&"次"),"") -> 
D82: =IF($B$2=StoreConfig!C87,StoreConfig!O87,"") ->  | E82: =IF($B$2=StoreConfig!C87,StoreConfig!E87,"") ->  | F82: =IF($B$2=StoreConfig!C87,RIGHT(StoreConfig!J87,LEN(StoreConfig!J87)-FIND("|",StoreConfig!J87)),"") ->  | G82: =IFERROR(VLOOKUP(--IF($B$2=StoreConfig!C87,LEFT(StoreConfig!J87,FIND("|",StoreConfig!J87)-1),""),$Q$4:$R$20,2,FALSE),"") ->  | H82: =IF($B$2=StoreConfig!C87,LEFT(StoreConfig!G87,FIND("#",StoreConfig!G87)-1),"") ->  | I82: =IF($B$2=StoreConfig!C87,RIGHT(StoreConfig!G87,LEN(StoreConfig!G87)-FIND("#",StoreConfig!G87)),"") ->  | J82: =IF($B$2=StoreConfig!C87,IF(StoreConfig!L87=0,"不限购",StoreConfig!L87&"次"),"") -> 
D83: =IF($B$2=StoreConfig!C88,StoreConfig!O88,"") ->  | E83: =IF($B$2=StoreConfig!C88,StoreConfig!E88,"") ->  | F83: =IF($B$2=StoreConfig!C88,RIGHT(StoreConfig!J88,LEN(StoreConfig!J88)-FIND("|",StoreConfig!J88)),"") ->  | G83: =IFERROR(VLOOKUP(--IF($B$2=StoreConfig!C88,LEFT(StoreConfig!J88,FIND("|",StoreConfig!J88)-1),""),$Q$4:$R$20,2,FALSE),"") ->  | H83: =IF($B$2=StoreConfig!C88,LEFT(StoreConfig!G88,FIND("#",StoreConfig!G88)-1),"") ->  | I83: =IF($B$2=StoreConfig!C88,RIGHT(StoreConfig!G88,LEN(StoreConfig!G88)-FIND("#",StoreConfig!G88)),"") ->  | J83: =IF($B$2=StoreConfig!C88,IF(StoreConfig!L88=0,"不限购",StoreConfig!L88&"次"),"") -> 
D84: =IF($B$2=StoreConfig!C89,StoreConfig!O89,"") ->  | E84: =IF($B$2=StoreConfig!C89,StoreConfig!E89,"") ->  | F84: =IF($B$2=StoreConfig!C89,RIGHT(StoreConfig!J89,LEN(StoreConfig!J89)-FIND("|",StoreConfig!J89)),"") ->  | G84: =IFERROR(VLOOKUP(--IF($B$2=StoreConfig!C89,LEFT(StoreConfig!J89,FIND("|",StoreConfig!J89)-1),""),$Q$4:$R$20,2,FALSE),"") ->  | H84: =IF($B$2=StoreConfig!C89,LEFT(StoreConfig!G89,FIND("#",StoreConfig!G89)-1),"") ->  | I84: =IF($B$2=StoreConfig!C89,RIGHT(StoreConfig!G89,LEN(StoreConfig!G89)-FIND("#",StoreConfig!G89)),"") ->  | J84: =IF($B$2=StoreConfig!C89,IF(StoreConfig!L89=0,"不限购",StoreConfig!L89&"次"),"") -> 
D85: =IF($B$2=StoreConfig!C90,StoreConfig!O90,"") ->  | E85: =IF($B$2=StoreConfig!C90,StoreConfig!E90,"") ->  | F85: =IF($B$2=StoreConfig!C90,RIGHT(StoreConfig!J90,LEN(StoreConfig!J90)-FIND("|",StoreConfig!J90)),"") ->  | G85: =IFERROR(VLOOKUP(--IF($B$2=StoreConfig!C90,LEFT(StoreConfig!J90,FIND("|",StoreConfig!J90)-1),""),$Q$4:$R$20,2,FALSE),"") ->  | H85: =IF($B$2=StoreConfig!C90,LEFT(StoreConfig!G90,FIND("#",StoreConfig!G90)-1),"") ->  | I85: =IF($B$2=StoreConfig!C90,RIGHT(StoreConfig!G90,LEN(StoreConfig!G90)-FIND("#",StoreConfig!G90)),"") ->  | J85: =IF($B$2=StoreConfig!C90,IF(StoreConfig!L90=0,"不限购",StoreConfig!L90&"次"),"") -> 
D86: =IF($B$2=StoreConfig!C91,StoreConfig!O91,"") ->  | E86: =IF($B$2=StoreConfig!C91,StoreConfig!E91,"") ->  | F86: =IF($B$2=StoreConfig!C91,RIGHT(StoreConfig!J91,LEN(StoreConfig!J91)-FIND("|",StoreConfig!J91)),"") ->  | G86: =IFERROR(VLOOKUP(--IF($B$2=StoreConfig!C91,LEFT(StoreConfig!J91,FIND("|",StoreConfig!J91)-1),""),$Q$4:$R$20,2,FALSE),"") ->  | H86: =IF($B$2=StoreConfig!C91,LEFT(StoreConfig!G91,FIND("#",StoreConfig!G91)-1),"") ->  | I86: =IF($B$2=StoreConfig!C91,RIGHT(StoreConfig!G91,LEN(StoreConfig!G91)-FIND("#",StoreConfig!G91)),"") ->  | J86: =IF($B$2=StoreConfig!C91,IF(StoreConfig!L91=0,"不限购",StoreConfig!L91&"次"),"") -> 
D87: =IF($B$2=StoreConfig!C92,StoreConfig!O92,"") ->  | E87: =IF($B$2=StoreConfig!C92,StoreConfig!E92,"") ->  | F87: =IF($B$2=StoreConfig!C92,RIGHT(StoreConfig!J92,LEN(StoreConfig!J92)-FIND("|",StoreConfig!J92)),"") ->  | G87: =IFERROR(VLOOKUP(--IF($B$2=StoreConfig!C92,LEFT(StoreConfig!J92,FIND("|",StoreConfig!J92)-1),""),$Q$4:$R$20,2,FALSE),"") ->  | H87: =IF($B$2=StoreConfig!C92,LEFT(StoreConfig!G92,FIND("#",StoreConfig!G92)-1),"") ->  | I87: =IF($B$2=StoreConfig!C92,RIGHT(StoreConfig!G92,LEN(StoreConfig!G92)-FIND("#",StoreConfig!G92)),"") ->  | J87: =IF($B$2=StoreConfig!C92,IF(StoreConfig!L92=0,"不限购",StoreConfig!L92&"次"),"") -> 
D88: =IF($B$2=StoreConfig!C93,StoreConfig!O93,"") ->  | E88: =IF($B$2=StoreConfig!C93,StoreConfig!E93,"") ->  | F88: =IF($B$2=StoreConfig!C93,RIGHT(StoreConfig!J93,LEN(StoreConfig!J93)-FIND("|",StoreConfig!J93)),"") ->  | G88: =IFERROR(VLOOKUP(--IF($B$2=StoreConfig!C93,LEFT(StoreConfig!J93,FIND("|",StoreConfig!J93)-1),""),$Q$4:$R$20,2,FALSE),"") ->  | H88: =IF($B$2=StoreConfig!C93,LEFT(StoreConfig!G93,FIND("#",StoreConfig!G93)-1),"") ->  | I88: =IF($B$2=StoreConfig!C93,RIGHT(StoreConfig!G93,LEN(StoreConfig!G93)-FIND("#",StoreConfig!G93)),"") ->  | J88: =IF($B$2=StoreConfig!C93,IF(StoreConfig!L93=0,"不限购",StoreConfig!L93&"次"),"") -> 
D89: =IF($B$2=StoreConfig!C94,StoreConfig!O94,"") ->  | E89: =IF($B$2=StoreConfig!C94,StoreConfig!E94,"") ->  | F89: =IF($B$2=StoreConfig!C94,RIGHT(StoreConfig!J94,LEN(StoreConfig!J94)-FIND("|",StoreConfig!J94)),"") ->  | G89: =IFERROR(VLOOKUP(--IF($B$2=StoreConfig!C94,LEFT(StoreConfig!J94,FIND("|",StoreConfig!J94)-1),""),$Q$4:$R$20,2,FALSE),"") ->  | H89: =IF($B$2=StoreConfig!C94,LEFT(StoreConfig!G94,FIND("#",StoreConfig!G94)-1),"") ->  | I89: =IF($B$2=StoreConfig!C94,RIGHT(StoreConfig!G94,LEN(StoreConfig!G94)-FIND("#",StoreConfig!G94)),"") ->  | J89: =IF($B$2=StoreConfig!C94,IF(StoreConfig!L94=0,"不限购",StoreConfig!L94&"次"),"") -> 
D90: =IF($B$2=StoreConfig!C95,StoreConfig!O95,"") ->  | E90: =IF($B$2=StoreConfig!C95,StoreConfig!E95,"") ->  | F90: =IF($B$2=StoreConfig!C95,RIGHT(StoreConfig!J95,LEN(StoreConfig!J95)-FIND("|",StoreConfig!J95)),"") ->  | G90: =IFERROR(VLOOKUP(--IF($B$2=StoreConfig!C95,LEFT(StoreConfig!J95,FIND("|",StoreConfig!J95)-1),""),$Q$4:$R$20,2,FALSE),"") ->  | H90: =IF($B$2=StoreConfig!C95,LEFT(StoreConfig!G95,FIND("#",StoreConfig!G95)-1),"") ->  | I90: =IF($B$2=StoreConfig!C95,RIGHT(StoreConfig!G95,LEN(StoreConfig!G95)-FIND("#",StoreConfig!G95)),"") ->  | J90: =IF($B$2=StoreConfig!C95,IF(StoreConfig!L95=0,"不限购",StoreConfig!L95&"次"),"") -> 
D91: =IF($B$2=StoreConfig!C96,StoreConfig!O96,"") ->  | E91: =IF($B$2=StoreConfig!C96,StoreConfig!E96,"") ->  | F91: =IF($B$2=StoreConfig!C96,RIGHT(StoreConfig!J96,LEN(StoreConfig!J96)-FIND("|",StoreConfig!J96)),"") ->  | G91: =IFERROR(VLOOKUP(--IF($B$2=StoreConfig!C96,LEFT(StoreConfig!J96,FIND("|",StoreConfig!J96)-1),""),$Q$4:$R$20,2,FALSE),"") ->  | H91: =IF($B$2=StoreConfig!C96,LEFT(StoreConfig!G96,FIND("#",StoreConfig!G96)-1),"") ->  | I91: =IF($B$2=StoreConfig!C96,RIGHT(StoreConfig!G96,LEN(StoreConfig!G96)-FIND("#",StoreConfig!G96)),"") ->  | J91: =IF($B$2=StoreConfig!C96,IF(StoreConfig!L96=0,"不限购",StoreConfig!L96&"次"),"") -> 
D92: =IF($B$2=StoreConfig!C97,StoreConfig!O97,"") ->  | E92: =IF($B$2=StoreConfig!C97,StoreConfig!E97,"") ->  | F92: =IF($B$2=StoreConfig!C97,RIGHT(StoreConfig!J97,LEN(StoreConfig!J97)-FIND("|",StoreConfig!J97)),"") ->  | G92: =IFERROR(VLOOKUP(--IF($B$2=StoreConfig!C97,LEFT(StoreConfig!J97,FIND("|",StoreConfig!J97)-1),""),$Q$4:$R$20,2,FALSE),"") ->  | H92: =IF($B$2=StoreConfig!C97,LEFT(StoreConfig!G97,FIND("#",StoreConfig!G97)-1),"") ->  | I92: =IF($B$2=StoreConfig!C97,RIGHT(StoreConfig!G97,LEN(StoreConfig!G97)-FIND("#",StoreConfig!G97)),"") ->  | J92: =IF($B$2=StoreConfig!C97,IF(StoreConfig!L97=0,"不限购",StoreConfig!L97&"次"),"") -> 
D93: =IF($B$2=StoreConfig!C98,StoreConfig!O98,"") ->  | E93: =IF($B$2=StoreConfig!C98,StoreConfig!E98,"") ->  | F93: =IF($B$2=StoreConfig!C98,RIGHT(StoreConfig!J98,LEN(StoreConfig!J98)-FIND("|",StoreConfig!J98)),"") ->  | G93: =IFERROR(VLOOKUP(--IF($B$2=StoreConfig!C98,LEFT(StoreConfig!J98,FIND("|",StoreConfig!J98)-1),""),$Q$4:$R$20,2,FALSE),"") ->  | H93: =IF($B$2=StoreConfig!C98,LEFT(StoreConfig!G98,FIND("#",StoreConfig!G98)-1),"") ->  | I93: =IF($B$2=StoreConfig!C98,RIGHT(StoreConfig!G98,LEN(StoreConfig!G98)-FIND("#",StoreConfig!G98)),"") ->  | J93: =IF($B$2=StoreConfig!C98,IF(StoreConfig!L98=0,"不限购",StoreConfig!L98&"次"),"") -> 
D94: =IF($B$2=StoreConfig!C99,StoreConfig!O99,"") ->  | E94: =IF($B$2=StoreConfig!C99,StoreConfig!E99,"") ->  | F94: =IF($B$2=StoreConfig!C99,RIGHT(StoreConfig!J99,LEN(StoreConfig!J99)-FIND("|",StoreConfig!J99)),"") ->  | G94: =IFERROR(VLOOKUP(--IF($B$2=StoreConfig!C99,LEFT(StoreConfig!J99,FIND("|",StoreConfig!J99)-1),""),$Q$4:$R$20,2,FALSE),"") ->  | H94: =IF($B$2=StoreConfig!C99,LEFT(StoreConfig!G99,FIND("#",StoreConfig!G99)-1),"") ->  | I94: =IF($B$2=StoreConfig!C99,RIGHT(StoreConfig!G99,LEN(StoreConfig!G99)-FIND("#",StoreConfig!G99)),"") ->  | J94: =IF($B$2=StoreConfig!C99,IF(StoreConfig!L99=0,"不限购",StoreConfig!L99&"次"),"") -> 
D95: =IF($B$2=StoreConfig!C100,StoreConfig!O100,"") ->  | E95: =IF($B$2=StoreConfig!C100,StoreConfig!E100,"") ->  | F95: =IF($B$2=StoreConfig!C100,RIGHT(StoreConfig!J100,LEN(StoreConfig!J100)-FIND("|",StoreConfig!J100)),"") ->  | G95: =IFERROR(VLOOKUP(--IF($B$2=StoreConfig!C100,LEFT(StoreConfig!J100,FIND("|",StoreConfig!J100)-1),""),$Q$4:$R$20,2,FALSE),"") ->  | H95: =IF($B$2=StoreConfig!C100,LEFT(StoreConfig!G100,FIND("#",StoreConfig!G100)-1),"") ->  | I95: =IF($B$2=StoreConfig!C100,RIGHT(StoreConfig!G100,LEN(StoreConfig!G100)-FIND("#",StoreConfig!G100)),"") ->  | J95: =IF($B$2=StoreConfig!C100,IF(StoreConfig!L100=0,"不限购",StoreConfig!L100&"次"),"") -> 
D96: =IF($B$2=StoreConfig!C101,StoreConfig!O101,"") ->  | E96: =IF($B$2=StoreConfig!C101,StoreConfig!E101,"") ->  | F96: =IF($B$2=StoreConfig!C101,RIGHT(StoreConfig!J101,LEN(StoreConfig!J101)-FIND("|",StoreConfig!J101)),"") ->  | G96: =IFERROR(VLOOKUP(--IF($B$2=StoreConfig!C101,LEFT(StoreConfig!J101,FIND("|",StoreConfig!J101)-1),""),$Q$4:$R$20,2,FALSE),"") ->  | H96: =IF($B$2=StoreConfig!C101,LEFT(StoreConfig!G101,FIND("#",StoreConfig!G101)-1),"") ->  | I96: =IF($B$2=StoreConfig!C101,RIGHT(StoreConfig!G101,LEN(StoreConfig!G101)-FIND("#",StoreConfig!G101)),"") ->  | J96: =IF($B$2=StoreConfig!C101,IF(StoreConfig!L101=0,"不限购",StoreConfig!L101&"次"),"") -> 
D97: =IF($B$2=StoreConfig!C102,StoreConfig!O102,"") ->  | E97: =IF($B$2=StoreConfig!C102,StoreConfig!E102,"") ->  | F97: =IF($B$2=StoreConfig!C102,RIGHT(StoreConfig!J102,LEN(StoreConfig!J102)-FIND("|",StoreConfig!J102)),"") ->  | G97: =IFERROR(VLOOKUP(--IF($B$2=StoreConfig!C102,LEFT(StoreConfig!J102,FIND("|",StoreConfig!J102)-1),""),$Q$4:$R$20,2,FALSE),"") ->  | H97: =IF($B$2=StoreConfig!C102,LEFT(StoreConfig!G102,FIND("#",StoreConfig!G102)-1),"") ->  | I97: =IF($B$2=StoreConfig!C102,RIGHT(StoreConfig!G102,LEN(StoreConfig!G102)-FIND("#",StoreConfig!G102)),"") ->  | J97: =IF($B$2=StoreConfig!C102,IF(StoreConfig!L102=0,"不限购",StoreConfig!L102&"次"),"") -> 
D98: =IF($B$2=StoreConfig!C103,StoreConfig!O103,"") ->  | E98: =IF($B$2=StoreConfig!C103,StoreConfig!E103,"") ->  | F98: =IF($B$2=StoreConfig!C103,RIGHT(StoreConfig!J103,LEN(StoreConfig!J103)-FIND("|",StoreConfig!J103)),"") ->  | G98: =IFERROR(VLOOKUP(--IF($B$2=StoreConfig!C103,LEFT(StoreConfig!J103,FIND("|",StoreConfig!J103)-1),""),$Q$4:$R$20,2,FALSE),"") ->  | H98: =IF($B$2=StoreConfig!C103,LEFT(StoreConfig!G103,FIND("#",StoreConfig!G103)-1),"") ->  | I98: =IF($B$2=StoreConfig!C103,RIGHT(StoreConfig!G103,LEN(StoreConfig!G103)-FIND("#",StoreConfig!G103)),"") ->  | J98: =IF($B$2=StoreConfig!C103,IF(StoreConfig!L103=0,"不限购",StoreConfig!L103&"次"),"") -> 
D99: =IF($B$2=StoreConfig!C104,StoreConfig!O104,"") ->  | E99: =IF($B$2=StoreConfig!C104,StoreConfig!E104,"") ->  | F99: =IF($B$2=StoreConfig!C104,RIGHT(StoreConfig!J104,LEN(StoreConfig!J104)-FIND("|",StoreConfig!J104)),"") ->  | G99: =IFERROR(VLOOKUP(--IF($B$2=StoreConfig!C104,LEFT(StoreConfig!J104,FIND("|",StoreConfig!J104)-1),""),$Q$4:$R$20,2,FALSE),"") ->  | H99: =IF($B$2=StoreConfig!C104,LEFT(StoreConfig!G104,FIND("#",StoreConfig!G104)-1),"") ->  | I99: =IF($B$2=StoreConfig!C104,RIGHT(StoreConfig!G104,LEN(StoreConfig!G104)-FIND("#",StoreConfig!G104)),"") ->  | J99: =IF($B$2=StoreConfig!C104,IF(StoreConfig!L104=0,"不限购",StoreConfig!L104&"次"),"") -> 
D100: =IF($B$2=StoreConfig!C105,StoreConfig!O105,"") ->  | E100: =IF($B$2=StoreConfig!C105,StoreConfig!E105,"") ->  | F100: =IF($B$2=StoreConfig!C105,RIGHT(StoreConfig!J105,LEN(StoreConfig!J105)-FIND("|",StoreConfig!J105)),"") ->  | G100: =IFERROR(VLOOKUP(--IF($B$2=StoreConfig!C105,LEFT(StoreConfig!J105,FIND("|",StoreConfig!J105)-1),""),$Q$4:$R$20,2,FALSE),"") ->  | H100: =IF($B$2=StoreConfig!C105,LEFT(StoreConfig!G105,FIND("#",StoreConfig!G105)-1),"") ->  | I100: =IF($B$2=StoreConfig!C105,RIGHT(StoreConfig!G105,LEN(StoreConfig!G105)-FIND("#",StoreConfig!G105)),"") ->  | J100: =IF($B$2=StoreConfig!C105,IF(StoreConfig!L105=0,"不限购",StoreConfig!L105&"次"),"") -> 
D101: =IF($B$2=StoreConfig!C106,StoreConfig!O106,"") ->  | E101: =IF($B$2=StoreConfig!C106,StoreConfig!E106,"") ->  | F101: =IF($B$2=StoreConfig!C106,RIGHT(StoreConfig!J106,LEN(StoreConfig!J106)-FIND("|",StoreConfig!J106)),"") ->  | G101: =IFERROR(VLOOKUP(--IF($B$2=StoreConfig!C106,LEFT(StoreConfig!J106,FIND("|",StoreConfig!J106)-1),""),$Q$4:$R$20,2,FALSE),"") ->  | H101: =IF($B$2=StoreConfig!C106,LEFT(StoreConfig!G106,FIND("#",StoreConfig!G106)-1),"") ->  | I101: =IF($B$2=StoreConfig!C106,RIGHT(StoreConfig!G106,LEN(StoreConfig!G106)-FIND("#",StoreConfig!G106)),"") ->  | J101: =IF($B$2=StoreConfig!C106,IF(StoreConfig!L106=0,"不限购",StoreConfig!L106&"次"),"") -> 
D102: =IF($B$2=StoreConfig!C107,StoreConfig!O107,"") ->  | E102: =IF($B$2=StoreConfig!C107,StoreConfig!E107,"") ->  | F102: =IF($B$2=StoreConfig!C107,RIGHT(StoreConfig!J107,LEN(StoreConfig!J107)-FIND("|",StoreConfig!J107)),"") ->  | G102: =IFERROR(VLOOKUP(--IF($B$2=StoreConfig!C107,LEFT(StoreConfig!J107,FIND("|",StoreConfig!J107)-1),""),$Q$4:$R$20,2,FALSE),"") ->  | H102: =IF($B$2=StoreConfig!C107,LEFT(StoreConfig!G107,FIND("#",StoreConfig!G107)-1),"") ->  | I102: =IF($B$2=StoreConfig!C107,RIGHT(StoreConfig!G107,LEN(StoreConfig!G107)-FIND("#",StoreConfig!G107)),"") ->  | J102: =IF($B$2=StoreConfig!C107,IF(StoreConfig!L107=0,"不限购",StoreConfig!L107&"次"),"") -> 
D103: =IF($B$2=StoreConfig!C108,StoreConfig!O108,"") ->  | E103: =IF($B$2=StoreConfig!C108,StoreConfig!E108,"") ->  | F103: =IF($B$2=StoreConfig!C108,RIGHT(StoreConfig!J108,LEN(StoreConfig!J108)-FIND("|",StoreConfig!J108)),"") ->  | G103: =IFERROR(VLOOKUP(--IF($B$2=StoreConfig!C108,LEFT(StoreConfig!J108,FIND("|",StoreConfig!J108)-1),""),$Q$4:$R$20,2,FALSE),"") ->  | H103: =IF($B$2=StoreConfig!C108,LEFT(StoreConfig!G108,FIND("#",StoreConfig!G108)-1),"") ->  | I103: =IF($B$2=StoreConfig!C108,RIGHT(StoreConfig!G108,LEN(StoreConfig!G108)-FIND("#",StoreConfig!G108)),"") ->  | J103: =IF($B$2=StoreConfig!C108,IF(StoreConfig!L108=0,"不限购",StoreConfig!L108&"次"),"") -> 
D104: =IF($B$2=StoreConfig!C109,StoreConfig!O109,"") ->  | E104: =IF($B$2=StoreConfig!C109,StoreConfig!E109,"") ->  | F104: =IF($B$2=StoreConfig!C109,RIGHT(StoreConfig!J109,LEN(StoreConfig!J109)-FIND("|",StoreConfig!J109)),"") ->  | G104: =IFERROR(VLOOKUP(--IF($B$2=StoreConfig!C109,LEFT(StoreConfig!J109,FIND("|",StoreConfig!J109)-1),""),$Q$4:$R$20,2,FALSE),"") ->  | H104: =IF($B$2=StoreConfig!C109,LEFT(StoreConfig!G109,FIND("#",StoreConfig!G109)-1),"") ->  | I104: =IF($B$2=StoreConfig!C109,RIGHT(StoreConfig!G109,LEN(StoreConfig!G109)-FIND("#",StoreConfig!G109)),"") ->  | J104: =IF($B$2=StoreConfig!C109,IF(StoreConfig!L109=0,"不限购",StoreConfig!L109&"次"),"") -> 
D105: =IF($B$2=StoreConfig!C110,StoreConfig!O110,"") ->  | E105: =IF($B$2=StoreConfig!C110,StoreConfig!E110,"") ->  | F105: =IF($B$2=StoreConfig!C110,RIGHT(StoreConfig!J110,LEN(StoreConfig!J110)-FIND("|",StoreConfig!J110)),"") ->  | G105: =IFERROR(VLOOKUP(--IF($B$2=StoreConfig!C110,LEFT(StoreConfig!J110,FIND("|",StoreConfig!J110)-1),""),$Q$4:$R$20,2,FALSE),"") ->  | H105: =IF($B$2=StoreConfig!C110,LEFT(StoreConfig!G110,FIND("#",StoreConfig!G110)-1),"") ->  | I105: =IF($B$2=StoreConfig!C110,RIGHT(StoreConfig!G110,LEN(StoreConfig!G110)-FIND("#",StoreConfig!G110)),"") ->  | J105: =IF($B$2=StoreConfig!C110,IF(StoreConfig!L110=0,"不限购",StoreConfig!L110&"次"),"") -> 
D106: =IF($B$2=StoreConfig!C111,StoreConfig!O111,"") ->  | E106: =IF($B$2=StoreConfig!C111,StoreConfig!E111,"") ->  | F106: =IF($B$2=StoreConfig!C111,RIGHT(StoreConfig!J111,LEN(StoreConfig!J111)-FIND("|",StoreConfig!J111)),"") ->  | G106: =IFERROR(VLOOKUP(--IF($B$2=StoreConfig!C111,LEFT(StoreConfig!J111,FIND("|",StoreConfig!J111)-1),""),$Q$4:$R$20,2,FALSE),"") ->  | H106: =IF($B$2=StoreConfig!C111,LEFT(StoreConfig!G111,FIND("#",StoreConfig!G111)-1),"") ->  | I106: =IF($B$2=StoreConfig!C111,RIGHT(StoreConfig!G111,LEN(StoreConfig!G111)-FIND("#",StoreConfig!G111)),"") ->  | J106: =IF($B$2=StoreConfig!C111,IF(StoreConfig!L111=0,"不限购",StoreConfig!L111&"次"),"") -> 
D107: =IF($B$2=StoreConfig!C112,StoreConfig!O112,"") ->  | E107: =IF($B$2=StoreConfig!C112,StoreConfig!E112,"") ->  | F107: =IF($B$2=StoreConfig!C112,RIGHT(StoreConfig!J112,LEN(StoreConfig!J112)-FIND("|",StoreConfig!J112)),"") ->  | G107: =IFERROR(VLOOKUP(--IF($B$2=StoreConfig!C112,LEFT(StoreConfig!J112,FIND("|",StoreConfig!J112)-1),""),$Q$4:$R$20,2,FALSE),"") ->  | H107: =IF($B$2=StoreConfig!C112,LEFT(StoreConfig!G112,FIND("#",StoreConfig!G112)-1),"") ->  | I107: =IF($B$2=StoreConfig!C112,RIGHT(StoreConfig!G112,LEN(StoreConfig!G112)-FIND("#",StoreConfig!G112)),"") ->  | J107: =IF($B$2=StoreConfig!C112,IF(StoreConfig!L112=0,"不限购",StoreConfig!L112&"次"),"") -> 
D108: =IF($B$2=StoreConfig!C113,StoreConfig!O113,"") ->  | E108: =IF($B$2=StoreConfig!C113,StoreConfig!E113,"") ->  | F108: =IF($B$2=StoreConfig!C113,RIGHT(StoreConfig!J113,LEN(StoreConfig!J113)-FIND("|",StoreConfig!J113)),"") ->  | G108: =IFERROR(VLOOKUP(--IF($B$2=StoreConfig!C113,LEFT(StoreConfig!J113,FIND("|",StoreConfig!J113)-1),""),$Q$4:$R$20,2,FALSE),"") ->  | H108: =IF($B$2=StoreConfig!C113,LEFT(StoreConfig!G113,FIND("#",StoreConfig!G113)-1),"") ->  | I108: =IF($B$2=StoreConfig!C113,RIGHT(StoreConfig!G113,LEN(StoreConfig!G113)-FIND("#",StoreConfig!G113)),"") ->  | J108: =IF($B$2=StoreConfig!C113,IF(StoreConfig!L113=0,"不限购",StoreConfig!L113&"次"),"") -> 
D109: =IF($B$2=StoreConfig!C114,StoreConfig!O114,"") ->  | E109: =IF($B$2=StoreConfig!C114,StoreConfig!E114,"") ->  | F109: =IF($B$2=StoreConfig!C114,RIGHT(StoreConfig!J114,LEN(StoreConfig!J114)-FIND("|",StoreConfig!J114)),"") ->  | G109: =IFERROR(VLOOKUP(--IF($B$2=StoreConfig!C114,LEFT(StoreConfig!J114,FIND("|",StoreConfig!J114)-1),""),$Q$4:$R$20,2,FALSE),"") ->  | H109: =IF($B$2=StoreConfig!C114,LEFT(StoreConfig!G114,FIND("#",StoreConfig!G114)-1),"") ->  | I109: =IF($B$2=StoreConfig!C114,RIGHT(StoreConfig!G114,LEN(StoreConfig!G114)-FIND("#",StoreConfig!G114)),"") ->  | J109: =IF($B$2=StoreConfig!C114,IF(StoreConfig!L114=0,"不限购",StoreConfig!L114&"次"),"") -> 
D110: =IF($B$2=StoreConfig!C115,StoreConfig!O115,"") ->  | E110: =IF($B$2=StoreConfig!C115,StoreConfig!E115,"") ->  | F110: =IF($B$2=StoreConfig!C115,RIGHT(StoreConfig!J115,LEN(StoreConfig!J115)-FIND("|",StoreConfig!J115)),"") ->  | G110: =IFERROR(VLOOKUP(--IF($B$2=StoreConfig!C115,LEFT(StoreConfig!J115,FIND("|",StoreConfig!J115)-1),""),$Q$4:$R$20,2,FALSE),"") ->  | H110: =IF($B$2=StoreConfig!C115,LEFT(StoreConfig!G115,FIND("#",StoreConfig!G115)-1),"") ->  | I110: =IF($B$2=StoreConfig!C115,RIGHT(StoreConfig!G115,LEN(StoreConfig!G115)-FIND("#",StoreConfig!G115)),"") ->  | J110: =IF($B$2=StoreConfig!C115,IF(StoreConfig!L115=0,"不限购",StoreConfig!L115&"次"),"") -> 
D111: =IF($B$2=StoreConfig!C116,StoreConfig!O116,"") ->  | E111: =IF($B$2=StoreConfig!C116,StoreConfig!E116,"") ->  | F111: =IF($B$2=StoreConfig!C116,RIGHT(StoreConfig!J116,LEN(StoreConfig!J116)-FIND("|",StoreConfig!J116)),"") ->  | G111: =IFERROR(VLOOKUP(--IF($B$2=StoreConfig!C116,LEFT(StoreConfig!J116,FIND("|",StoreConfig!J116)-1),""),$Q$4:$R$20,2,FALSE),"") ->  | H111: =IF($B$2=StoreConfig!C116,LEFT(StoreConfig!G116,FIND("#",StoreConfig!G116)-1),"") ->  | I111: =IF($B$2=StoreConfig!C116,RIGHT(StoreConfig!G116,LEN(StoreConfig!G116)-FIND("#",StoreConfig!G116)),"") ->  | J111: =IF($B$2=StoreConfig!C116,IF(StoreConfig!L116=0,"不限购",StoreConfig!L116&"次"),"") -> 
D112: =IF($B$2=StoreConfig!C117,StoreConfig!O117,"") ->  | E112: =IF($B$2=StoreConfig!C117,StoreConfig!E117,"") ->  | F112: =IF($B$2=StoreConfig!C117,RIGHT(StoreConfig!J117,LEN(StoreConfig!J117)-FIND("|",StoreConfig!J117)),"") ->  | G112: =IFERROR(VLOOKUP(--IF($B$2=StoreConfig!C117,LEFT(StoreConfig!J117,FIND("|",StoreConfig!J117)-1),""),$Q$4:$R$20,2,FALSE),"") ->  | H112: =IF($B$2=StoreConfig!C117,LEFT(StoreConfig!G117,FIND("#",StoreConfig!G117)-1),"") ->  | I112: =IF($B$2=StoreConfig!C117,RIGHT(StoreConfig!G117,LEN(StoreConfig!G117)-FIND("#",StoreConfig!G117)),"") ->  | J112: =IF($B$2=StoreConfig!C117,IF(StoreConfig!L117=0,"不限购",StoreConfig!L117&"次"),"") -> 
D113: =IF($B$2=StoreConfig!C118,StoreConfig!O118,"") ->  | E113: =IF($B$2=StoreConfig!C118,StoreConfig!E118,"") ->  | F113: =IF($B$2=StoreConfig!C118,RIGHT(StoreConfig!J118,LEN(StoreConfig!J118)-FIND("|",StoreConfig!J118)),"") ->  | G113: =IFERROR(VLOOKUP(--IF($B$2=StoreConfig!C118,LEFT(StoreConfig!J118,FIND("|",StoreConfig!J118)-1),""),$Q$4:$R$20,2,FALSE),"") ->  | H113: =IF($B$2=StoreConfig!C118,LEFT(StoreConfig!G118,FIND("#",StoreConfig!G118)-1),"") ->  | I113: =IF($B$2=StoreConfig!C118,RIGHT(StoreConfig!G118,LEN(StoreConfig!G118)-FIND("#",StoreConfig!G118)),"") ->  | J113: =IF($B$2=StoreConfig!C118,IF(StoreConfig!L118=0,"不限购",StoreConfig!L118&"次"),"") -> 
D114: =IF($B$2=StoreConfig!C119,StoreConfig!O119,"") ->  | E114: =IF($B$2=StoreConfig!C119,StoreConfig!E119,"") ->  | F114: =IF($B$2=StoreConfig!C119,RIGHT(StoreConfig!J119,LEN(StoreConfig!J119)-FIND("|",StoreConfig!J119)),"") ->  | G114: =IFERROR(VLOOKUP(--IF($B$2=StoreConfig!C119,LEFT(StoreConfig!J119,FIND("|",StoreConfig!J119)-1),""),$Q$4:$R$20,2,FALSE),"") ->  | H114: =IF($B$2=StoreConfig!C119,LEFT(StoreConfig!G119,FIND("#",StoreConfig!G119)-1),"") ->  | I114: =IF($B$2=StoreConfig!C119,RIGHT(StoreConfig!G119,LEN(StoreConfig!G119)-FIND("#",StoreConfig!G119)),"") ->  | J114: =IF($B$2=StoreConfig!C119,IF(StoreConfig!L119=0,"不限购",StoreConfig!L119&"次"),"") -> 
D115: =IF($B$2=StoreConfig!C120,StoreConfig!O120,"") ->  | E115: =IF($B$2=StoreConfig!C120,StoreConfig!E120,"") ->  | F115: =IF($B$2=StoreConfig!C120,RIGHT(StoreConfig!J120,LEN(StoreConfig!J120)-FIND("|",StoreConfig!J120)),"") ->  | G115: =IFERROR(VLOOKUP(--IF($B$2=StoreConfig!C120,LEFT(StoreConfig!J120,FIND("|",StoreConfig!J120)-1),""),$Q$4:$R$20,2,FALSE),"") ->  | H115: =IF($B$2=StoreConfig!C120,LEFT(StoreConfig!G120,FIND("#",StoreConfig!G120)-1),"") ->  | I115: =IF($B$2=StoreConfig!C120,RIGHT(StoreConfig!G120,LEN(StoreConfig!G120)-FIND("#",StoreConfig!G120)),"") ->  | J115: =IF($B$2=StoreConfig!C120,IF(StoreConfig!L120=0,"不限购",StoreConfig!L120&"次"),"") -> 
D116: =IF($B$2=StoreConfig!C121,StoreConfig!O121,"") ->  | E116: =IF($B$2=StoreConfig!C121,StoreConfig!E121,"") ->  | F116: =IF($B$2=StoreConfig!C121,RIGHT(StoreConfig!J121,LEN(StoreConfig!J121)-FIND("|",StoreConfig!J121)),"") ->  | G116: =IFERROR(VLOOKUP(--IF($B$2=StoreConfig!C121,LEFT(StoreConfig!J121,FIND("|",StoreConfig!J121)-1),""),$Q$4:$R$20,2,FALSE),"") ->  | H116: =IF($B$2=StoreConfig!C121,LEFT(StoreConfig!G121,FIND("#",StoreConfig!G121)-1),"") ->  | I116: =IF($B$2=StoreConfig!C121,RIGHT(StoreConfig!G121,LEN(StoreConfig!G121)-FIND("#",StoreConfig!G121)),"") ->  | J116: =IF($B$2=StoreConfig!C121,IF(StoreConfig!L121=0,"不限购",StoreConfig!L121&"次"),"") -> 
D117: =IF($B$2=StoreConfig!C122,StoreConfig!O122,"") ->  | E117: =IF($B$2=StoreConfig!C122,StoreConfig!E122,"") ->  | F117: =IF($B$2=StoreConfig!C122,RIGHT(StoreConfig!J122,LEN(StoreConfig!J122)-FIND("|",StoreConfig!J122)),"") ->  | G117: =IFERROR(VLOOKUP(--IF($B$2=StoreConfig!C122,LEFT(StoreConfig!J122,FIND("|",StoreConfig!J122)-1),""),$Q$4:$R$20,2,FALSE),"") ->  | H117: =IF($B$2=StoreConfig!C122,LEFT(StoreConfig!G122,FIND("#",StoreConfig!G122)-1),"") ->  | I117: =IF($B$2=StoreConfig!C122,RIGHT(StoreConfig!G122,LEN(StoreConfig!G122)-FIND("#",StoreConfig!G122)),"") ->  | J117: =IF($B$2=StoreConfig!C122,IF(StoreConfig!L122=0,"不限购",StoreConfig!L122&"次"),"") -> 
D118: =IF($B$2=StoreConfig!C123,StoreConfig!O123,"") ->  | E118: =IF($B$2=StoreConfig!C123,StoreConfig!E123,"") ->  | F118: =IF($B$2=StoreConfig!C123,RIGHT(StoreConfig!J123,LEN(StoreConfig!J123)-FIND("|",StoreConfig!J123)),"") ->  | G118: =IFERROR(VLOOKUP(--IF($B$2=StoreConfig!C123,LEFT(StoreConfig!J123,FIND("|",StoreConfig!J123)-1),""),$Q$4:$R$20,2,FALSE),"") ->  | H118: =IF($B$2=StoreConfig!C123,LEFT(StoreConfig!G123,FIND("#",StoreConfig!G123)-1),"") ->  | I118: =IF($B$2=StoreConfig!C123,RIGHT(StoreConfig!G123,LEN(StoreConfig!G123)-FIND("#",StoreConfig!G123)),"") ->  | J118: =IF($B$2=StoreConfig!C123,IF(StoreConfig!L123=0,"不限购",StoreConfig!L123&"次"),"") -> 
D119: =IF($B$2=StoreConfig!C124,StoreConfig!O124,"") ->  | E119: =IF($B$2=StoreConfig!C124,StoreConfig!E124,"") ->  | F119: =IF($B$2=StoreConfig!C124,RIGHT(StoreConfig!J124,LEN(StoreConfig!J124)-FIND("|",StoreConfig!J124)),"") ->  | G119: =IFERROR(VLOOKUP(--IF($B$2=StoreConfig!C124,LEFT(StoreConfig!J124,FIND("|",StoreConfig!J124)-1),""),$Q$4:$R$20,2,FALSE),"") ->  | H119: =IF($B$2=StoreConfig!C124,LEFT(StoreConfig!G124,FIND("#",StoreConfig!G124)-1),"") ->  | I119: =IF($B$2=StoreConfig!C124,RIGHT(StoreConfig!G124,LEN(StoreConfig!G124)-FIND("#",StoreConfig!G124)),"") ->  | J119: =IF($B$2=StoreConfig!C124,IF(StoreConfig!L124=0,"不限购",StoreConfig!L124&"次"),"") -> 
D120: =IF($B$2=StoreConfig!C125,StoreConfig!O125,"") ->  | E120: =IF($B$2=StoreConfig!C125,StoreConfig!E125,"") ->  | F120: =IF($B$2=StoreConfig!C125,RIGHT(StoreConfig!J125,LEN(StoreConfig!J125)-FIND("|",StoreConfig!J125)),"") ->  | G120: =IFERROR(VLOOKUP(--IF($B$2=StoreConfig!C125,LEFT(StoreConfig!J125,FIND("|",StoreConfig!J125)-1),""),$Q$4:$R$20,2,FALSE),"") ->  | H120: =IF($B$2=StoreConfig!C125,LEFT(StoreConfig!G125,FIND("#",StoreConfig!G125)-1),"") ->  | I120: =IF($B$2=StoreConfig!C125,RIGHT(StoreConfig!G125,LEN(StoreConfig!G125)-FIND("#",StoreConfig!G125)),"") ->  | J120: =IF($B$2=StoreConfig!C125,IF(StoreConfig!L125=0,"不限购",StoreConfig!L125&"次"),"") -> 
D121: =IF($B$2=StoreConfig!C126,StoreConfig!O126,"") ->  | E121: =IF($B$2=StoreConfig!C126,StoreConfig!E126,"") ->  | F121: =IF($B$2=StoreConfig!C126,RIGHT(StoreConfig!J126,LEN(StoreConfig!J126)-FIND("|",StoreConfig!J126)),"") ->  | G121: =IFERROR(VLOOKUP(--IF($B$2=StoreConfig!C126,LEFT(StoreConfig!J126,FIND("|",StoreConfig!J126)-1),""),$Q$4:$R$20,2,FALSE),"") ->  | H121: =IF($B$2=StoreConfig!C126,LEFT(StoreConfig!G126,FIND("#",StoreConfig!G126)-1),"") ->  | I121: =IF($B$2=StoreConfig!C126,RIGHT(StoreConfig!G126,LEN(StoreConfig!G126)-FIND("#",StoreConfig!G126)),"") ->  | J121: =IF($B$2=StoreConfig!C126,IF(StoreConfig!L126=0,"不限购",StoreConfig!L126&"次"),"") -> 
D122: =IF($B$2=StoreConfig!C127,StoreConfig!O127,"") ->  | E122: =IF($B$2=StoreConfig!C127,StoreConfig!E127,"") ->  | F122: =IF($B$2=StoreConfig!C127,RIGHT(StoreConfig!J127,LEN(StoreConfig!J127)-FIND("|",StoreConfig!J127)),"") ->  | G122: =IFERROR(VLOOKUP(--IF($B$2=StoreConfig!C127,LEFT(StoreConfig!J127,FIND("|",StoreConfig!J127)-1),""),$Q$4:$R$20,2,FALSE),"") ->  | H122: =IF($B$2=StoreConfig!C127,LEFT(StoreConfig!G127,FIND("#",StoreConfig!G127)-1),"") ->  | I122: =IF($B$2=StoreConfig!C127,RIGHT(StoreConfig!G127,LEN(StoreConfig!G127)-FIND("#",StoreConfig!G127)),"") ->  | J122: =IF($B$2=StoreConfig!C127,IF(StoreConfig!L127=0,"不限购",StoreConfig!L127&"次"),"") -> 
D123: =IF($B$2=StoreConfig!C128,StoreConfig!O128,"") ->  | E123: =IF($B$2=StoreConfig!C128,StoreConfig!E128,"") ->  | F123: =IF($B$2=StoreConfig!C128,RIGHT(StoreConfig!J128,LEN(StoreConfig!J128)-FIND("|",StoreConfig!J128)),"") ->  | G123: =IFERROR(VLOOKUP(--IF($B$2=StoreConfig!C128,LEFT(StoreConfig!J128,FIND("|",StoreConfig!J128)-1),""),$Q$4:$R$20,2,FALSE),"") ->  | H123: =IF($B$2=StoreConfig!C128,LEFT(StoreConfig!G128,FIND("#",StoreConfig!G128)-1),"") ->  | I123: =IF($B$2=StoreConfig!C128,RIGHT(StoreConfig!G128,LEN(StoreConfig!G128)-FIND("#",StoreConfig!G128)),"") ->  | J123: =IF($B$2=StoreConfig!C128,IF(StoreConfig!L128=0,"不限购",StoreConfig!L128&"次"),"") -> 
D124: =IF($B$2=StoreConfig!C129,StoreConfig!O129,"") ->  | E124: =IF($B$2=StoreConfig!C129,StoreConfig!E129,"") ->  | F124: =IF($B$2=StoreConfig!C129,RIGHT(StoreConfig!J129,LEN(StoreConfig!J129)-FIND("|",StoreConfig!J129)),"") ->  | G124: =IFERROR(VLOOKUP(--IF($B$2=StoreConfig!C129,LEFT(StoreConfig!J129,FIND("|",StoreConfig!J129)-1),""),$Q$4:$R$20,2,FALSE),"") ->  | H124: =IF($B$2=StoreConfig!C129,LEFT(StoreConfig!G129,FIND("#",StoreConfig!G129)-1),"") ->  | I124: =IF($B$2=StoreConfig!C129,RIGHT(StoreConfig!G129,LEN(StoreConfig!G129)-FIND("#",StoreConfig!G129)),"") ->  | J124: =IF($B$2=StoreConfig!C129,IF(StoreConfig!L129=0,"不限购",StoreConfig!L129&"次"),"") -> 
D125: =IF($B$2=StoreConfig!C130,StoreConfig!O130,"") ->  | E125: =IF($B$2=StoreConfig!C130,StoreConfig!E130,"") ->  | F125: =IF($B$2=StoreConfig!C130,RIGHT(StoreConfig!J130,LEN(StoreConfig!J130)-FIND("|",StoreConfig!J130)),"") ->  | G125: =IFERROR(VLOOKUP(--IF($B$2=StoreConfig!C130,LEFT(StoreConfig!J130,FIND("|",StoreConfig!J130)-1),""),$Q$4:$R$20,2,FALSE),"") ->  | H125: =IF($B$2=StoreConfig!C130,LEFT(StoreConfig!G130,FIND("#",StoreConfig!G130)-1),"") ->  | I125: =IF($B$2=StoreConfig!C130,RIGHT(StoreConfig!G130,LEN(StoreConfig!G130)-FIND("#",StoreConfig!G130)),"") ->  | J125: =IF($B$2=StoreConfig!C130,IF(StoreConfig!L130=0,"不限购",StoreConfig!L130&"次"),"") -> 
D126: =IF($B$2=StoreConfig!C131,StoreConfig!O131,"") ->  | E126: =IF($B$2=StoreConfig!C131,StoreConfig!E131,"") ->  | F126: =IF($B$2=StoreConfig!C131,RIGHT(StoreConfig!J131,LEN(StoreConfig!J131)-FIND("|",StoreConfig!J131)),"") ->  | G126: =IFERROR(VLOOKUP(--IF($B$2=StoreConfig!C131,LEFT(StoreConfig!J131,FIND("|",StoreConfig!J131)-1),""),$Q$4:$R$20,2,FALSE),"") ->  | H126: =IF($B$2=StoreConfig!C131,LEFT(StoreConfig!G131,FIND("#",StoreConfig!G131)-1),"") ->  | I126: =IF($B$2=StoreConfig!C131,RIGHT(StoreConfig!G131,LEN(StoreConfig!G131)-FIND("#",StoreConfig!G131)),"") ->  | J126: =IF($B$2=StoreConfig!C131,IF(StoreConfig!L131=0,"不限购",StoreConfig!L131&"次"),"") -> 
D127: =IF($B$2=StoreConfig!C132,StoreConfig!O132,"") ->  | E127: =IF($B$2=StoreConfig!C132,StoreConfig!E132,"") ->  | F127: =IF($B$2=StoreConfig!C132,RIGHT(StoreConfig!J132,LEN(StoreConfig!J132)-FIND("|",StoreConfig!J132)),"") ->  | G127: =IFERROR(VLOOKUP(--IF($B$2=StoreConfig!C132,LEFT(StoreConfig!J132,FIND("|",StoreConfig!J132)-1),""),$Q$4:$R$20,2,FALSE),"") ->  | H127: =IF($B$2=StoreConfig!C132,LEFT(StoreConfig!G132,FIND("#",StoreConfig!G132)-1),"") ->  | I127: =IF($B$2=StoreConfig!C132,RIGHT(StoreConfig!G132,LEN(StoreConfig!G132)-FIND("#",StoreConfig!G132)),"") ->  | J127: =IF($B$2=StoreConfig!C132,IF(StoreConfig!L132=0,"不限购",StoreConfig!L132&"次"),"") -> 
D128: =IF($B$2=StoreConfig!C133,StoreConfig!O133,"") ->  | E128: =IF($B$2=StoreConfig!C133,StoreConfig!E133,"") ->  | F128: =IF($B$2=StoreConfig!C133,RIGHT(StoreConfig!J133,LEN(StoreConfig!J133)-FIND("|",StoreConfig!J133)),"") ->  | G128: =IFERROR(VLOOKUP(--IF($B$2=StoreConfig!C133,LEFT(StoreConfig!J133,FIND("|",StoreConfig!J133)-1),""),$Q$4:$R$20,2,FALSE),"") ->  | H128: =IF($B$2=StoreConfig!C133,LEFT(StoreConfig!G133,FIND("#",StoreConfig!G133)-1),"") ->  | I128: =IF($B$2=StoreConfig!C133,RIGHT(StoreConfig!G133,LEN(StoreConfig!G133)-FIND("#",StoreConfig!G133)),"") ->  | J128: =IF($B$2=StoreConfig!C133,IF(StoreConfig!L133=0,"不限购",StoreConfig!L133&"次"),"") -> 
D129: =IF($B$2=StoreConfig!C134,StoreConfig!O134,"") ->  | E129: =IF($B$2=StoreConfig!C134,StoreConfig!E134,"") ->  | F129: =IF($B$2=StoreConfig!C134,RIGHT(StoreConfig!J134,LEN(StoreConfig!J134)-FIND("|",StoreConfig!J134)),"") ->  | G129: =IFERROR(VLOOKUP(--IF($B$2=StoreConfig!C134,LEFT(StoreConfig!J134,FIND("|",StoreConfig!J134)-1),""),$Q$4:$R$20,2,FALSE),"") ->  | H129: =IF($B$2=StoreConfig!C134,LEFT(StoreConfig!G134,FIND("#",StoreConfig!G134)-1),"") ->  | I129: =IF($B$2=StoreConfig!C134,RIGHT(StoreConfig!G134,LEN(StoreConfig!G134)-FIND("#",StoreConfig!G134)),"") ->  | J129: =IF($B$2=StoreConfig!C134,IF(StoreConfig!L134=0,"不限购",StoreConfig!L134&"次"),"") -> 
D130: =IF($B$2=StoreConfig!C135,StoreConfig!O135,"") ->  | E130: =IF($B$2=StoreConfig!C135,StoreConfig!E135,"") ->  | F130: =IF($B$2=StoreConfig!C135,RIGHT(StoreConfig!J135,LEN(StoreConfig!J135)-FIND("|",StoreConfig!J135)),"") ->  | G130: =IFERROR(VLOOKUP(--IF($B$2=StoreConfig!C135,LEFT(StoreConfig!J135,FIND("|",StoreConfig!J135)-1),""),$Q$4:$R$20,2,FALSE),"") ->  | H130: =IF($B$2=StoreConfig!C135,LEFT(StoreConfig!G135,FIND("#",StoreConfig!G135)-1),"") ->  | I130: =IF($B$2=StoreConfig!C135,RIGHT(StoreConfig!G135,LEN(StoreConfig!G135)-FIND("#",StoreConfig!G135)),"") ->  | J130: =IF($B$2=StoreConfig!C135,IF(StoreConfig!L135=0,"不限购",StoreConfig!L135&"次"),"") -> 
D131: =IF($B$2=StoreConfig!C136,StoreConfig!O136,"") ->  | E131: =IF($B$2=StoreConfig!C136,StoreConfig!E136,"") ->  | F131: =IF($B$2=StoreConfig!C136,RIGHT(StoreConfig!J136,LEN(StoreConfig!J136)-FIND("|",StoreConfig!J136)),"") ->  | G131: =IFERROR(VLOOKUP(--IF($B$2=StoreConfig!C136,LEFT(StoreConfig!J136,FIND("|",StoreConfig!J136)-1),""),$Q$4:$R$20,2,FALSE),"") ->  | H131: =IF($B$2=StoreConfig!C136,LEFT(StoreConfig!G136,FIND("#",StoreConfig!G136)-1),"") ->  | I131: =IF($B$2=StoreConfig!C136,RIGHT(StoreConfig!G136,LEN(StoreConfig!G136)-FIND("#",StoreConfig!G136)),"") ->  | J131: =IF($B$2=StoreConfig!C136,IF(StoreConfig!L136=0,"不限购",StoreConfig!L136&"次"),"") -> 
D132: =IF($B$2=StoreConfig!C137,StoreConfig!O137,"") ->  | E132: =IF($B$2=StoreConfig!C137,StoreConfig!E137,"") ->  | F132: =IF($B$2=StoreConfig!C137,RIGHT(StoreConfig!J137,LEN(StoreConfig!J137)-FIND("|",StoreConfig!J137)),"") ->  | G132: =IFERROR(VLOOKUP(--IF($B$2=StoreConfig!C137,LEFT(StoreConfig!J137,FIND("|",StoreConfig!J137)-1),""),$Q$4:$R$20,2,FALSE),"") ->  | H132: =IF($B$2=StoreConfig!C137,LEFT(StoreConfig!G137,FIND("#",StoreConfig!G137)-1),"") ->  | I132: =IF($B$2=StoreConfig!C137,RIGHT(StoreConfig!G137,LEN(StoreConfig!G137)-FIND("#",StoreConfig!G137)),"") ->  | J132: =IF($B$2=StoreConfig!C137,IF(StoreConfig!L137=0,"不限购",StoreConfig!L137&"次"),"") -> 
D133: =IF($B$2=StoreConfig!C138,StoreConfig!O138,"") ->  | E133: =IF($B$2=StoreConfig!C138,StoreConfig!E138,"") ->  | F133: =IF($B$2=StoreConfig!C138,RIGHT(StoreConfig!J138,LEN(StoreConfig!J138)-FIND("|",StoreConfig!J138)),"") ->  | G133: =IFERROR(VLOOKUP(--IF($B$2=StoreConfig!C138,LEFT(StoreConfig!J138,FIND("|",StoreConfig!J138)-1),""),$Q$4:$R$20,2,FALSE),"") ->  | H133: =IF($B$2=StoreConfig!C138,LEFT(StoreConfig!G138,FIND("#",StoreConfig!G138)-1),"") ->  | I133: =IF($B$2=StoreConfig!C138,RIGHT(StoreConfig!G138,LEN(StoreConfig!G138)-FIND("#",StoreConfig!G138)),"") ->  | J133: =IF($B$2=StoreConfig!C138,IF(StoreConfig!L138=0,"不限购",StoreConfig!L138&"次"),"") -> 
D134: =IF($B$2=StoreConfig!C139,StoreConfig!O139,"") ->  | E134: =IF($B$2=StoreConfig!C139,StoreConfig!E139,"") ->  | F134: =IF($B$2=StoreConfig!C139,RIGHT(StoreConfig!J139,LEN(StoreConfig!J139)-FIND("|",StoreConfig!J139)),"") ->  | G134: =IFERROR(VLOOKUP(--IF($B$2=StoreConfig!C139,LEFT(StoreConfig!J139,FIND("|",StoreConfig!J139)-1),""),$Q$4:$R$20,2,FALSE),"") ->  | H134: =IF($B$2=StoreConfig!C139,LEFT(StoreConfig!G139,FIND("#",StoreConfig!G139)-1),"") ->  | I134: =IF($B$2=StoreConfig!C139,RIGHT(StoreConfig!G139,LEN(StoreConfig!G139)-FIND("#",StoreConfig!G139)),"") ->  | J134: =IF($B$2=StoreConfig!C139,IF(StoreConfig!L139=0,"不限购",StoreConfig!L139&"次"),"") -> 
D135: =IF($B$2=StoreConfig!C140,StoreConfig!O140,"") ->  | E135: =IF($B$2=StoreConfig!C140,StoreConfig!E140,"") ->  | F135: =IF($B$2=StoreConfig!C140,RIGHT(StoreConfig!J140,LEN(StoreConfig!J140)-FIND("|",StoreConfig!J140)),"") ->  | G135: =IFERROR(VLOOKUP(--IF($B$2=StoreConfig!C140,LEFT(StoreConfig!J140,FIND("|",StoreConfig!J140)-1),""),$Q$4:$R$20,2,FALSE),"") ->  | H135: =IF($B$2=StoreConfig!C140,LEFT(StoreConfig!G140,FIND("#",StoreConfig!G140)-1),"") ->  | I135: =IF($B$2=StoreConfig!C140,RIGHT(StoreConfig!G140,LEN(StoreConfig!G140)-FIND("#",StoreConfig!G140)),"") ->  | J135: =IF($B$2=StoreConfig!C140,IF(StoreConfig!L140=0,"不限购",StoreConfig!L140&"次"),"") -> 
D136: =IF($B$2=StoreConfig!C141,StoreConfig!O141,"") ->  | E136: =IF($B$2=StoreConfig!C141,StoreConfig!E141,"") ->  | F136: =IF($B$2=StoreConfig!C141,RIGHT(StoreConfig!J141,LEN(StoreConfig!J141)-FIND("|",StoreConfig!J141)),"") ->  | G136: =IFERROR(VLOOKUP(--IF($B$2=StoreConfig!C141,LEFT(StoreConfig!J141,FIND("|",StoreConfig!J141)-1),""),$Q$4:$R$20,2,FALSE),"") ->  | H136: =IF($B$2=StoreConfig!C141,LEFT(StoreConfig!G141,FIND("#",StoreConfig!G141)-1),"") ->  | I136: =IF($B$2=StoreConfig!C141,RIGHT(StoreConfig!G141,LEN(StoreConfig!G141)-FIND("#",StoreConfig!G141)),"") ->  | J136: =IF($B$2=StoreConfig!C141,IF(StoreConfig!L141=0,"不限购",StoreConfig!L141&"次"),"") -> 
D137: =IF($B$2=StoreConfig!C142,StoreConfig!O142,"") ->  | E137: =IF($B$2=StoreConfig!C142,StoreConfig!E142,"") ->  | F137: =IF($B$2=StoreConfig!C142,RIGHT(StoreConfig!J142,LEN(StoreConfig!J142)-FIND("|",StoreConfig!J142)),"") ->  | G137: =IFERROR(VLOOKUP(--IF($B$2=StoreConfig!C142,LEFT(StoreConfig!J142,FIND("|",StoreConfig!J142)-1),""),$Q$4:$R$20,2,FALSE),"") ->  | H137: =IF($B$2=StoreConfig!C142,LEFT(StoreConfig!G142,FIND("#",StoreConfig!G142)-1),"") ->  | I137: =IF($B$2=StoreConfig!C142,RIGHT(StoreConfig!G142,LEN(StoreConfig!G142)-FIND("#",StoreConfig!G142)),"") ->  | J137: =IF($B$2=StoreConfig!C142,IF(StoreConfig!L142=0,"不限购",StoreConfig!L142&"次"),"") -> 
D138: =IF($B$2=StoreConfig!C143,StoreConfig!O143,"") ->  | E138: =IF($B$2=StoreConfig!C143,StoreConfig!E143,"") ->  | F138: =IF($B$2=StoreConfig!C143,RIGHT(StoreConfig!J143,LEN(StoreConfig!J143)-FIND("|",StoreConfig!J143)),"") ->  | G138: =IFERROR(VLOOKUP(--IF($B$2=StoreConfig!C143,LEFT(StoreConfig!J143,FIND("|",StoreConfig!J143)-1),""),$Q$4:$R$20,2,FALSE),"") ->  | H138: =IF($B$2=StoreConfig!C143,LEFT(StoreConfig!G143,FIND("#",StoreConfig!G143)-1),"") ->  | I138: =IF($B$2=StoreConfig!C143,RIGHT(StoreConfig!G143,LEN(StoreConfig!G143)-FIND("#",StoreConfig!G143)),"") ->  | J138: =IF($B$2=StoreConfig!C143,IF(StoreConfig!L143=0,"不限购",StoreConfig!L143&"次"),"") -> 
D139: =IF($B$2=StoreConfig!C144,StoreConfig!O144,"") ->  | E139: =IF($B$2=StoreConfig!C144,StoreConfig!E144,"") ->  | F139: =IF($B$2=StoreConfig!C144,RIGHT(StoreConfig!J144,LEN(StoreConfig!J144)-FIND("|",StoreConfig!J144)),"") ->  | G139: =IFERROR(VLOOKUP(--IF($B$2=StoreConfig!C144,LEFT(StoreConfig!J144,FIND("|",StoreConfig!J144)-1),""),$Q$4:$R$20,2,FALSE),"") ->  | H139: =IF($B$2=StoreConfig!C144,LEFT(StoreConfig!G144,FIND("#",StoreConfig!G144)-1),"") ->  | I139: =IF($B$2=StoreConfig!C144,RIGHT(StoreConfig!G144,LEN(StoreConfig!G144)-FIND("#",StoreConfig!G144)),"") ->  | J139: =IF($B$2=StoreConfig!C144,IF(StoreConfig!L144=0,"不限购",StoreConfig!L144&"次"),"") -> 
D140: =IF($B$2=StoreConfig!C145,StoreConfig!O145,"") ->  | E140: =IF($B$2=StoreConfig!C145,StoreConfig!E145,"") ->  | F140: =IF($B$2=StoreConfig!C145,RIGHT(StoreConfig!J145,LEN(StoreConfig!J145)-FIND("|",StoreConfig!J145)),"") ->  | G140: =IFERROR(VLOOKUP(--IF($B$2=StoreConfig!C145,LEFT(StoreConfig!J145,FIND("|",StoreConfig!J145)-1),""),$Q$4:$R$20,2,FALSE),"") ->  | H140: =IF($B$2=StoreConfig!C145,LEFT(StoreConfig!G145,FIND("#",StoreConfig!G145)-1),"") ->  | I140: =IF($B$2=StoreConfig!C145,RIGHT(StoreConfig!G145,LEN(StoreConfig!G145)-FIND("#",StoreConfig!G145)),"") ->  | J140: =IF($B$2=StoreConfig!C145,IF(StoreConfig!L145=0,"不限购",StoreConfig!L145&"次"),"") -> 
D141: =IF($B$2=StoreConfig!C146,StoreConfig!O146,"") ->  | E141: =IF($B$2=StoreConfig!C146,StoreConfig!E146,"") ->  | F141: =IF($B$2=StoreConfig!C146,RIGHT(StoreConfig!J146,LEN(StoreConfig!J146)-FIND("|",StoreConfig!J146)),"") ->  | G141: =IFERROR(VLOOKUP(--IF($B$2=StoreConfig!C146,LEFT(StoreConfig!J146,FIND("|",StoreConfig!J146)-1),""),$Q$4:$R$20,2,FALSE),"") ->  | H141: =IF($B$2=StoreConfig!C146,LEFT(StoreConfig!G146,FIND("#",StoreConfig!G146)-1),"") ->  | I141: =IF($B$2=StoreConfig!C146,RIGHT(StoreConfig!G146,LEN(StoreConfig!G146)-FIND("#",StoreConfig!G146)),"") ->  | J141: =IF($B$2=StoreConfig!C146,IF(StoreConfig!L146=0,"不限购",StoreConfig!L146&"次"),"") -> 
D142: =IF($B$2=StoreConfig!C147,StoreConfig!O147,"") ->  | E142: =IF($B$2=StoreConfig!C147,StoreConfig!E147,"") ->  | F142: =IF($B$2=StoreConfig!C147,RIGHT(StoreConfig!J147,LEN(StoreConfig!J147)-FIND("|",StoreConfig!J147)),"") ->  | G142: =IFERROR(VLOOKUP(--IF($B$2=StoreConfig!C147,LEFT(StoreConfig!J147,FIND("|",StoreConfig!J147)-1),""),$Q$4:$R$20,2,FALSE),"") ->  | H142: =IF($B$2=StoreConfig!C147,LEFT(StoreConfig!G147,FIND("#",StoreConfig!G147)-1),"") ->  | I142: =IF($B$2=StoreConfig!C147,RIGHT(StoreConfig!G147,LEN(StoreConfig!G147)-FIND("#",StoreConfig!G147)),"") ->  | J142: =IF($B$2=StoreConfig!C147,IF(StoreConfig!L147=0,"不限购",StoreConfig!L147&"次"),"") -> 
D143: =IF($B$2=StoreConfig!C148,StoreConfig!O148,"") ->  | E143: =IF($B$2=StoreConfig!C148,StoreConfig!E148,"") ->  | F143: =IF($B$2=StoreConfig!C148,RIGHT(StoreConfig!J148,LEN(StoreConfig!J148)-FIND("|",StoreConfig!J148)),"") ->  | G143: =IFERROR(VLOOKUP(--IF($B$2=StoreConfig!C148,LEFT(StoreConfig!J148,FIND("|",StoreConfig!J148)-1),""),$Q$4:$R$20,2,FALSE),"") ->  | H143: =IF($B$2=StoreConfig!C148,LEFT(StoreConfig!G148,FIND("#",StoreConfig!G148)-1),"") ->  | I143: =IF($B$2=StoreConfig!C148,RIGHT(StoreConfig!G148,LEN(StoreConfig!G148)-FIND("#",StoreConfig!G148)),"") ->  | J143: =IF($B$2=StoreConfig!C148,IF(StoreConfig!L148=0,"不限购",StoreConfig!L148&"次"),"") -> 
D144: =IF($B$2=StoreConfig!C150,StoreConfig!O150,"") ->  | E144: =IF($B$2=StoreConfig!C150,StoreConfig!E150,"") ->  | F144: =IF($B$2=StoreConfig!C150,RIGHT(StoreConfig!J150,LEN(StoreConfig!J150)-FIND("|",StoreConfig!J150)),"") ->  | G144: =IFERROR(VLOOKUP(--IF($B$2=StoreConfig!C150,LEFT(StoreConfig!J150,FIND("|",StoreConfig!J150)-1),""),$Q$4:$R$20,2,FALSE),"") ->  | H144: =IF($B$2=StoreConfig!C150,LEFT(StoreConfig!G150,FIND("#",StoreConfig!G150)-1),"") ->  | I144: =IF($B$2=StoreConfig!C150,RIGHT(StoreConfig!G150,LEN(StoreConfig!G150)-FIND("#",StoreConfig!G150)),"") ->  | J144: =IF($B$2=StoreConfig!C150,IF(StoreConfig!L150=0,"不限购",StoreConfig!L150&"次"),"") -> 
D145: =IF($B$2=StoreConfig!C151,StoreConfig!O151,"") ->  | E145: =IF($B$2=StoreConfig!C151,StoreConfig!E151,"") ->  | F145: =IF($B$2=StoreConfig!C151,RIGHT(StoreConfig!J151,LEN(StoreConfig!J151)-FIND("|",StoreConfig!J151)),"") ->  | G145: =IFERROR(VLOOKUP(--IF($B$2=StoreConfig!C151,LEFT(StoreConfig!J151,FIND("|",StoreConfig!J151)-1),""),$Q$4:$R$20,2,FALSE),"") ->  | H145: =IF($B$2=StoreConfig!C151,LEFT(StoreConfig!G151,FIND("#",StoreConfig!G151)-1),"") ->  | I145: =IF($B$2=StoreConfig!C151,RIGHT(StoreConfig!G151,LEN(StoreConfig!G151)-FIND("#",StoreConfig!G151)),"") ->  | J145: =IF($B$2=StoreConfig!C151,IF(StoreConfig!L151=0,"不限购",StoreConfig!L151&"次"),"") -> 
D146: =IF($B$2=StoreConfig!C152,StoreConfig!O152,"") ->  | E146: =IF($B$2=StoreConfig!C152,StoreConfig!E152,"") ->  | F146: =IF($B$2=StoreConfig!C152,RIGHT(StoreConfig!J152,LEN(StoreConfig!J152)-FIND("|",StoreConfig!J152)),"") ->  | G146: =IFERROR(VLOOKUP(--IF($B$2=StoreConfig!C152,LEFT(StoreConfig!J152,FIND("|",StoreConfig!J152)-1),""),$Q$4:$R$20,2,FALSE),"") ->  | H146: =IF($B$2=StoreConfig!C152,LEFT(StoreConfig!G152,FIND("#",StoreConfig!G152)-1),"") ->  | I146: =IF($B$2=StoreConfig!C152,RIGHT(StoreConfig!G152,LEN(StoreConfig!G152)-FIND("#",StoreConfig!G152)),"") ->  | J146: =IF($B$2=StoreConfig!C152,IF(StoreConfig!L152=0,"不限购",StoreConfig!L152&"次"),"") -> 
D147: =IF($B$2=StoreConfig!C153,StoreConfig!O153,"") ->  | E147: =IF($B$2=StoreConfig!C153,StoreConfig!E153,"") ->  | F147: =IF($B$2=StoreConfig!C153,RIGHT(StoreConfig!J153,LEN(StoreConfig!J153)-FIND("|",StoreConfig!J153)),"") ->  | G147: =IFERROR(VLOOKUP(--IF($B$2=StoreConfig!C153,LEFT(StoreConfig!J153,FIND("|",StoreConfig!J153)-1),""),$Q$4:$R$20,2,FALSE),"") ->  | H147: =IF($B$2=StoreConfig!C153,LEFT(StoreConfig!G153,FIND("#",StoreConfig!G153)-1),"") ->  | I147: =IF($B$2=StoreConfig!C153,RIGHT(StoreConfig!G153,LEN(StoreConfig!G153)-FIND("#",StoreConfig!G153)),"") ->  | J147: =IF($B$2=StoreConfig!C153,IF(StoreConfig!L153=0,"不限购",StoreConfig!L153&"次"),"") -> 
D148: =IF($B$2=StoreConfig!C154,StoreConfig!O154,"") ->  | E148: =IF($B$2=StoreConfig!C154,StoreConfig!E154,"") ->  | F148: =IF($B$2=StoreConfig!C154,RIGHT(StoreConfig!J154,LEN(StoreConfig!J154)-FIND("|",StoreConfig!J154)),"") ->  | G148: =IFERROR(VLOOKUP(--IF($B$2=StoreConfig!C154,LEFT(StoreConfig!J154,FIND("|",StoreConfig!J154)-1),""),$Q$4:$R$20,2,FALSE),"") ->  | H148: =IF($B$2=StoreConfig!C154,LEFT(StoreConfig!G154,FIND("#",StoreConfig!G154)-1),"") ->  | I148: =IF($B$2=StoreConfig!C154,RIGHT(StoreConfig!G154,LEN(StoreConfig!G154)-FIND("#",StoreConfig!G154)),"") ->  | J148: =IF($B$2=StoreConfig!C154,IF(StoreConfig!L154=0,"不限购",StoreConfig!L154&"次"),"") -> 
D149: =IF($B$2=StoreConfig!C155,StoreConfig!O155,"") ->  | E149: =IF($B$2=StoreConfig!C155,StoreConfig!E155,"") ->  | F149: =IF($B$2=StoreConfig!C155,RIGHT(StoreConfig!J155,LEN(StoreConfig!J155)-FIND("|",StoreConfig!J155)),"") ->  | G149: =IFERROR(VLOOKUP(--IF($B$2=StoreConfig!C155,LEFT(StoreConfig!J155,FIND("|",StoreConfig!J155)-1),""),$Q$4:$R$20,2,FALSE),"") ->  | H149: =IF($B$2=StoreConfig!C155,LEFT(StoreConfig!G155,FIND("#",StoreConfig!G155)-1),"") ->  | I149: =IF($B$2=StoreConfig!C155,RIGHT(StoreConfig!G155,LEN(StoreConfig!G155)-FIND("#",StoreConfig!G155)),"") ->  | J149: =IF($B$2=StoreConfig!C155,IF(StoreConfig!L155=0,"不限购",StoreConfig!L155&"次"),"") -> 
D150: =IF($B$2=StoreConfig!C156,StoreConfig!O156,"") ->  | E150: =IF($B$2=StoreConfig!C156,StoreConfig!E156,"") ->  | F150: =IF($B$2=StoreConfig!C156,RIGHT(StoreConfig!J156,LEN(StoreConfig!J156)-FIND("|",StoreConfig!J156)),"") ->  | G150: =IFERROR(VLOOKUP(--IF($B$2=StoreConfig!C156,LEFT(StoreConfig!J156,FIND("|",StoreConfig!J156)-1),""),$Q$4:$R$20,2,FALSE),"") ->  | H150: =IF($B$2=StoreConfig!C156,LEFT(StoreConfig!G156,FIND("#",StoreConfig!G156)-1),"") ->  | I150: =IF($B$2=StoreConfig!C156,RIGHT(StoreConfig!G156,LEN(StoreConfig!G156)-FIND("#",StoreConfig!G156)),"") ->  | J150: =IF($B$2=StoreConfig!C156,IF(StoreConfig!L156=0,"不限购",StoreConfig!L156&"次"),"") -> 
D151: =IF($B$2=StoreConfig!C157,StoreConfig!O157,"") ->  | E151: =IF($B$2=StoreConfig!C157,StoreConfig!E157,"") ->  | F151: =IF($B$2=StoreConfig!C157,RIGHT(StoreConfig!J157,LEN(StoreConfig!J157)-FIND("|",StoreConfig!J157)),"") ->  | G151: =IFERROR(VLOOKUP(--IF($B$2=StoreConfig!C157,LEFT(StoreConfig!J157,FIND("|",StoreConfig!J157)-1),""),$Q$4:$R$20,2,FALSE),"") ->  | H151: =IF($B$2=StoreConfig!C157,LEFT(StoreConfig!G157,FIND("#",StoreConfig!G157)-1),"") ->  | I151: =IF($B$2=StoreConfig!C157,RIGHT(StoreConfig!G157,LEN(StoreConfig!G157)-FIND("#",StoreConfig!G157)),"") ->  | J151: =IF($B$2=StoreConfig!C157,IF(StoreConfig!L157=0,"不限购",StoreConfig!L157&"次"),"") -> 
D152: =IF($B$2=StoreConfig!C158,StoreConfig!O158,"") ->  | E152: =IF($B$2=StoreConfig!C158,StoreConfig!E158,"") ->  | F152: =IF($B$2=StoreConfig!C158,RIGHT(StoreConfig!J158,LEN(StoreConfig!J158)-FIND("|",StoreConfig!J158)),"") ->  | G152: =IFERROR(VLOOKUP(--IF($B$2=StoreConfig!C158,LEFT(StoreConfig!J158,FIND("|",StoreConfig!J158)-1),""),$Q$4:$R$20,2,FALSE),"") ->  | H152: =IF($B$2=StoreConfig!C158,LEFT(StoreConfig!G158,FIND("#",StoreConfig!G158)-1),"") ->  | I152: =IF($B$2=StoreConfig!C158,RIGHT(StoreConfig!G158,LEN(StoreConfig!G158)-FIND("#",StoreConfig!G158)),"") ->  | J152: =IF($B$2=StoreConfig!C158,IF(StoreConfig!L158=0,"不限购",StoreConfig!L158&"次"),"") -> 
D153: =IF($B$2=StoreConfig!C159,StoreConfig!O159,"") ->  | E153: =IF($B$2=StoreConfig!C159,StoreConfig!E159,"") ->  | F153: =IF($B$2=StoreConfig!C159,RIGHT(StoreConfig!J159,LEN(StoreConfig!J159)-FIND("|",StoreConfig!J159)),"") ->  | G153: =IFERROR(VLOOKUP(--IF($B$2=StoreConfig!C159,LEFT(StoreConfig!J159,FIND("|",StoreConfig!J159)-1),""),$Q$4:$R$20,2,FALSE),"") ->  | H153: =IF($B$2=StoreConfig!C159,LEFT(StoreConfig!G159,FIND("#",StoreConfig!G159)-1),"") ->  | I153: =IF($B$2=StoreConfig!C159,RIGHT(StoreConfig!G159,LEN(StoreConfig!G159)-FIND("#",StoreConfig!G159)),"") ->  | J153: =IF($B$2=StoreConfig!C159,IF(StoreConfig!L159=0,"不限购",StoreConfig!L159&"次"),"") -> 
D154: =IF($B$2=StoreConfig!C160,StoreConfig!O160,"") ->  | E154: =IF($B$2=StoreConfig!C160,StoreConfig!E160,"") ->  | F154: =IF($B$2=StoreConfig!C160,RIGHT(StoreConfig!J160,LEN(StoreConfig!J160)-FIND("|",StoreConfig!J160)),"") ->  | G154: =IFERROR(VLOOKUP(--IF($B$2=StoreConfig!C160,LEFT(StoreConfig!J160,FIND("|",StoreConfig!J160)-1),""),$Q$4:$R$20,2,FALSE),"") ->  | H154: =IF($B$2=StoreConfig!C160,LEFT(StoreConfig!G160,FIND("#",StoreConfig!G160)-1),"") ->  | I154: =IF($B$2=StoreConfig!C160,RIGHT(StoreConfig!G160,LEN(StoreConfig!G160)-FIND("#",StoreConfig!G160)),"") ->  | J154: =IF($B$2=StoreConfig!C160,IF(StoreConfig!L160=0,"不限购",StoreConfig!L160&"次"),"") -> 
D155: =IF($B$2=StoreConfig!C161,StoreConfig!O161,"") ->  | E155: =IF($B$2=StoreConfig!C161,StoreConfig!E161,"") ->  | F155: =IF($B$2=StoreConfig!C161,RIGHT(StoreConfig!J161,LEN(StoreConfig!J161)-FIND("|",StoreConfig!J161)),"") ->  | G155: =IFERROR(VLOOKUP(--IF($B$2=StoreConfig!C161,LEFT(StoreConfig!J161,FIND("|",StoreConfig!J161)-1),""),$Q$4:$R$20,2,FALSE),"") ->  | H155: =IF($B$2=StoreConfig!C161,LEFT(StoreConfig!G161,FIND("#",StoreConfig!G161)-1),"") ->  | I155: =IF($B$2=StoreConfig!C161,RIGHT(StoreConfig!G161,LEN(StoreConfig!G161)-FIND("#",StoreConfig!G161)),"") ->  | J155: =IF($B$2=StoreConfig!C161,IF(StoreConfig!L161=0,"不限购",StoreConfig!L161&"次"),"") -> 
D156: =IF($B$2=StoreConfig!C162,StoreConfig!O162,"") ->  | E156: =IF($B$2=StoreConfig!C162,StoreConfig!E162,"") ->  | F156: =IF($B$2=StoreConfig!C162,RIGHT(StoreConfig!J162,LEN(StoreConfig!J162)-FIND("|",StoreConfig!J162)),"") ->  | G156: =IFERROR(VLOOKUP(--IF($B$2=StoreConfig!C162,LEFT(StoreConfig!J162,FIND("|",StoreConfig!J162)-1),""),$Q$4:$R$20,2,FALSE),"") ->  | H156: =IF($B$2=StoreConfig!C162,LEFT(StoreConfig!G162,FIND("#",StoreConfig!G162)-1),"") ->  | I156: =IF($B$2=StoreConfig!C162,RIGHT(StoreConfig!G162,LEN(StoreConfig!G162)-FIND("#",StoreConfig!G162)),"") ->  | J156: =IF($B$2=StoreConfig!C162,IF(StoreConfig!L162=0,"不限购",StoreConfig!L162&"次"),"") -> 
D157: =IF($B$2=StoreConfig!C163,StoreConfig!O163,"") ->  | E157: =IF($B$2=StoreConfig!C163,StoreConfig!E163,"") ->  | F157: =IF($B$2=StoreConfig!C163,RIGHT(StoreConfig!J163,LEN(StoreConfig!J163)-FIND("|",StoreConfig!J163)),"") ->  | G157: =IFERROR(VLOOKUP(--IF($B$2=StoreConfig!C163,LEFT(StoreConfig!J163,FIND("|",StoreConfig!J163)-1),""),$Q$4:$R$20,2,FALSE),"") ->  | H157: =IF($B$2=StoreConfig!C163,LEFT(StoreConfig!G163,FIND("#",StoreConfig!G163)-1),"") ->  | I157: =IF($B$2=StoreConfig!C163,RIGHT(StoreConfig!G163,LEN(StoreConfig!G163)-FIND("#",StoreConfig!G163)),"") ->  | J157: =IF($B$2=StoreConfig!C163,IF(StoreConfig!L163=0,"不限购",StoreConfig!L163&"次"),"") -> 
D158: =IF($B$2=StoreConfig!C164,StoreConfig!O164,"") ->  | E158: =IF($B$2=StoreConfig!C164,StoreConfig!E164,"") ->  | F158: =IF($B$2=StoreConfig!C164,RIGHT(StoreConfig!J164,LEN(StoreConfig!J164)-FIND("|",StoreConfig!J164)),"") ->  | G158: =IFERROR(VLOOKUP(--IF($B$2=StoreConfig!C164,LEFT(StoreConfig!J164,FIND("|",StoreConfig!J164)-1),""),$Q$4:$R$20,2,FALSE),"") ->  | H158: =IF($B$2=StoreConfig!C164,LEFT(StoreConfig!G164,FIND("#",StoreConfig!G164)-1),"") ->  | I158: =IF($B$2=StoreConfig!C164,RIGHT(StoreConfig!G164,LEN(StoreConfig!G164)-FIND("#",StoreConfig!G164)),"") ->  | J158: =IF($B$2=StoreConfig!C164,IF(StoreConfig!L164=0,"不限购",StoreConfig!L164&"次"),"") -> 
D159: =IF($B$2=StoreConfig!C165,StoreConfig!O165,"") ->  | E159: =IF($B$2=StoreConfig!C165,StoreConfig!E165,"") ->  | F159: =IF($B$2=StoreConfig!C165,RIGHT(StoreConfig!J165,LEN(StoreConfig!J165)-FIND("|",StoreConfig!J165)),"") ->  | G159: =IFERROR(VLOOKUP(--IF($B$2=StoreConfig!C165,LEFT(StoreConfig!J165,FIND("|",StoreConfig!J165)-1),""),$Q$4:$R$20,2,FALSE),"") ->  | H159: =IF($B$2=StoreConfig!C165,LEFT(StoreConfig!G165,FIND("#",StoreConfig!G165)-1),"") ->  | I159: =IF($B$2=StoreConfig!C165,RIGHT(StoreConfig!G165,LEN(StoreConfig!G165)-FIND("#",StoreConfig!G165)),"") ->  | J159: =IF($B$2=StoreConfig!C165,IF(StoreConfig!L165=0,"不限购",StoreConfig!L165&"次"),"") -> 
D160: =IF($B$2=StoreConfig!C166,StoreConfig!O166,"") ->  | E160: =IF($B$2=StoreConfig!C166,StoreConfig!E166,"") ->  | F160: =IF($B$2=StoreConfig!C166,RIGHT(StoreConfig!J166,LEN(StoreConfig!J166)-FIND("|",StoreConfig!J166)),"") ->  | G160: =IFERROR(VLOOKUP(--IF($B$2=StoreConfig!C166,LEFT(StoreConfig!J166,FIND("|",StoreConfig!J166)-1),""),$Q$4:$R$20,2,FALSE),"") ->  | H160: =IF($B$2=StoreConfig!C166,LEFT(StoreConfig!G166,FIND("#",StoreConfig!G166)-1),"") ->  | I160: =IF($B$2=StoreConfig!C166,RIGHT(StoreConfig!G166,LEN(StoreConfig!G166)-FIND("#",StoreConfig!G166)),"") ->  | J160: =IF($B$2=StoreConfig!C166,IF(StoreConfig!L166=0,"不限购",StoreConfig!L166&"次"),"") -> 
D161: =IF($B$2=StoreConfig!C167,StoreConfig!O167,"") ->  | E161: =IF($B$2=StoreConfig!C167,StoreConfig!E167,"") ->  | F161: =IF($B$2=StoreConfig!C167,RIGHT(StoreConfig!J167,LEN(StoreConfig!J167)-FIND("|",StoreConfig!J167)),"") ->  | G161: =IFERROR(VLOOKUP(--IF($B$2=StoreConfig!C167,LEFT(StoreConfig!J167,FIND("|",StoreConfig!J167)-1),""),$Q$4:$R$20,2,FALSE),"") ->  | H161: =IF($B$2=StoreConfig!C167,LEFT(StoreConfig!G167,FIND("#",StoreConfig!G167)-1),"") ->  | I161: =IF($B$2=StoreConfig!C167,RIGHT(StoreConfig!G167,LEN(StoreConfig!G167)-FIND("#",StoreConfig!G167)),"") ->  | J161: =IF($B$2=StoreConfig!C167,IF(StoreConfig!L167=0,"不限购",StoreConfig!L167&"次"),"") -> 
D162: =IF($B$2=StoreConfig!C168,StoreConfig!O168,"") ->  | E162: =IF($B$2=StoreConfig!C168,StoreConfig!E168,"") ->  | F162: =IF($B$2=StoreConfig!C168,RIGHT(StoreConfig!J168,LEN(StoreConfig!J168)-FIND("|",StoreConfig!J168)),"") ->  | G162: =IFERROR(VLOOKUP(--IF($B$2=StoreConfig!C168,LEFT(StoreConfig!J168,FIND("|",StoreConfig!J168)-1),""),$Q$4:$R$20,2,FALSE),"") ->  | H162: =IF($B$2=StoreConfig!C168,LEFT(StoreConfig!G168,FIND("#",StoreConfig!G168)-1),"") ->  | I162: =IF($B$2=StoreConfig!C168,RIGHT(StoreConfig!G168,LEN(StoreConfig!G168)-FIND("#",StoreConfig!G168)),"") ->  | J162: =IF($B$2=StoreConfig!C168,IF(StoreConfig!L168=0,"不限购",StoreConfig!L168&"次"),"") -> 
D163: =IF($B$2=StoreConfig!C169,StoreConfig!O169,"") ->  | E163: =IF($B$2=StoreConfig!C169,StoreConfig!E169,"") ->  | F163: =IF($B$2=StoreConfig!C169,RIGHT(StoreConfig!J169,LEN(StoreConfig!J169)-FIND("|",StoreConfig!J169)),"") ->  | G163: =IFERROR(VLOOKUP(--IF($B$2=StoreConfig!C169,LEFT(StoreConfig!J169,FIND("|",StoreConfig!J169)-1),""),$Q$4:$R$20,2,FALSE),"") ->  | H163: =IF($B$2=StoreConfig!C169,LEFT(StoreConfig!G169,FIND("#",StoreConfig!G169)-1),"") ->  | I163: =IF($B$2=StoreConfig!C169,RIGHT(StoreConfig!G169,LEN(StoreConfig!G169)-FIND("#",StoreConfig!G169)),"") ->  | J163: =IF($B$2=StoreConfig!C169,IF(StoreConfig!L169=0,"不限购",StoreConfig!L169&"次"),"") -> 
D164: =IF($B$2=StoreConfig!C170,StoreConfig!O170,"") ->  | E164: =IF($B$2=StoreConfig!C170,StoreConfig!E170,"") ->  | F164: =IF($B$2=StoreConfig!C170,RIGHT(StoreConfig!J170,LEN(StoreConfig!J170)-FIND("|",StoreConfig!J170)),"") ->  | G164: =IFERROR(VLOOKUP(--IF($B$2=StoreConfig!C170,LEFT(StoreConfig!J170,FIND("|",StoreConfig!J170)-1),""),$Q$4:$R$20,2,FALSE),"") ->  | H164: =IF($B$2=StoreConfig!C170,LEFT(StoreConfig!G170,FIND("#",StoreConfig!G170)-1),"") ->  | I164: =IF($B$2=StoreConfig!C170,RIGHT(StoreConfig!G170,LEN(StoreConfig!G170)-FIND("#",StoreConfig!G170)),"") ->  | J164: =IF($B$2=StoreConfig!C170,IF(StoreConfig!L170=0,"不限购",StoreConfig!L170&"次"),"") -> 
D165: =IF($B$2=StoreConfig!C171,StoreConfig!O171,"") ->  | E165: =IF($B$2=StoreConfig!C171,StoreConfig!E171,"") ->  | F165: =IF($B$2=StoreConfig!C171,RIGHT(StoreConfig!J171,LEN(StoreConfig!J171)-FIND("|",StoreConfig!J171)),"") ->  | G165: =IFERROR(VLOOKUP(--IF($B$2=StoreConfig!C171,LEFT(StoreConfig!J171,FIND("|",StoreConfig!J171)-1),""),$Q$4:$R$20,2,FALSE),"") ->  | H165: =IF($B$2=StoreConfig!C171,LEFT(StoreConfig!G171,FIND("#",StoreConfig!G171)-1),"") ->  | I165: =IF($B$2=StoreConfig!C171,RIGHT(StoreConfig!G171,LEN(StoreConfig!G171)-FIND("#",StoreConfig!G171)),"") ->  | J165: =IF($B$2=StoreConfig!C171,IF(StoreConfig!L171=0,"不限购",StoreConfig!L171&"次"),"") -> 
D166: =IF($B$2=StoreConfig!C172,StoreConfig!O172,"") ->  | E166: =IF($B$2=StoreConfig!C172,StoreConfig!E172,"") ->  | F166: =IF($B$2=StoreConfig!C172,RIGHT(StoreConfig!J172,LEN(StoreConfig!J172)-FIND("|",StoreConfig!J172)),"") ->  | G166: =IFERROR(VLOOKUP(--IF($B$2=StoreConfig!C172,LEFT(StoreConfig!J172,FIND("|",StoreConfig!J172)-1),""),$Q$4:$R$20,2,FALSE),"") ->  | H166: =IF($B$2=StoreConfig!C172,LEFT(StoreConfig!G172,FIND("#",StoreConfig!G172)-1),"") ->  | I166: =IF($B$2=StoreConfig!C172,RIGHT(StoreConfig!G172,LEN(StoreConfig!G172)-FIND("#",StoreConfig!G172)),"") ->  | J166: =IF($B$2=StoreConfig!C172,IF(StoreConfig!L172=0,"不限购",StoreConfig!L172&"次"),"") -> 
D167: =IF($B$2=StoreConfig!C173,StoreConfig!O173,"") ->  | E167: =IF($B$2=StoreConfig!C173,StoreConfig!E173,"") ->  | F167: =IF($B$2=StoreConfig!C173,RIGHT(StoreConfig!J173,LEN(StoreConfig!J173)-FIND("|",StoreConfig!J173)),"") ->  | G167: =IFERROR(VLOOKUP(--IF($B$2=StoreConfig!C173,LEFT(StoreConfig!J173,FIND("|",StoreConfig!J173)-1),""),$Q$4:$R$20,2,FALSE),"") ->  | H167: =IF($B$2=StoreConfig!C173,LEFT(StoreConfig!G173,FIND("#",StoreConfig!G173)-1),"") ->  | I167: =IF($B$2=StoreConfig!C173,RIGHT(StoreConfig!G173,LEN(StoreConfig!G173)-FIND("#",StoreConfig!G173)),"") ->  | J167: =IF($B$2=StoreConfig!C173,IF(StoreConfig!L173=0,"不限购",StoreConfig!L173&"次"),"") -> 
D168: =IF($B$2=StoreConfig!C174,StoreConfig!O174,"") ->  | E168: =IF($B$2=StoreConfig!C174,StoreConfig!E174,"") ->  | F168: =IF($B$2=StoreConfig!C174,RIGHT(StoreConfig!J174,LEN(StoreConfig!J174)-FIND("|",StoreConfig!J174)),"") ->  | G168: =IFERROR(VLOOKUP(--IF($B$2=StoreConfig!C174,LEFT(StoreConfig!J174,FIND("|",StoreConfig!J174)-1),""),$Q$4:$R$20,2,FALSE),"") ->  | H168: =IF($B$2=StoreConfig!C174,LEFT(StoreConfig!G174,FIND("#",StoreConfig!G174)-1),"") ->  | I168: =IF($B$2=StoreConfig!C174,RIGHT(StoreConfig!G174,LEN(StoreConfig!G174)-FIND("#",StoreConfig!G174)),"") ->  | J168: =IF($B$2=StoreConfig!C174,IF(StoreConfig!L174=0,"不限购",StoreConfig!L174&"次"),"") -> 
D169: =IF($B$2=StoreConfig!C175,StoreConfig!O175,"") ->  | E169: =IF($B$2=StoreConfig!C175,StoreConfig!E175,"") ->  | F169: =IF($B$2=StoreConfig!C175,RIGHT(StoreConfig!J175,LEN(StoreConfig!J175)-FIND("|",StoreConfig!J175)),"") ->  | G169: =IFERROR(VLOOKUP(--IF($B$2=StoreConfig!C175,LEFT(StoreConfig!J175,FIND("|",StoreConfig!J175)-1),""),$Q$4:$R$20,2,FALSE),"") ->  | H169: =IF($B$2=StoreConfig!C175,LEFT(StoreConfig!G175,FIND("#",StoreConfig!G175)-1),"") ->  | I169: =IF($B$2=StoreConfig!C175,RIGHT(StoreConfig!G175,LEN(StoreConfig!G175)-FIND("#",StoreConfig!G175)),"") ->  | J169: =IF($B$2=StoreConfig!C175,IF(StoreConfig!L175=0,"不限购",StoreConfig!L175&"次"),"") -> 
D170: =IF($B$2=StoreConfig!C176,StoreConfig!O176,"") ->  | E170: =IF($B$2=StoreConfig!C176,StoreConfig!E176,"") ->  | F170: =IF($B$2=StoreConfig!C176,RIGHT(StoreConfig!J176,LEN(StoreConfig!J176)-FIND("|",StoreConfig!J176)),"") ->  | G170: =IFERROR(VLOOKUP(--IF($B$2=StoreConfig!C176,LEFT(StoreConfig!J176,FIND("|",StoreConfig!J176)-1),""),$Q$4:$R$20,2,FALSE),"") ->  | H170: =IF($B$2=StoreConfig!C176,LEFT(StoreConfig!G176,FIND("#",StoreConfig!G176)-1),"") ->  | I170: =IF($B$2=StoreConfig!C176,RIGHT(StoreConfig!G176,LEN(StoreConfig!G176)-FIND("#",StoreConfig!G176)),"") ->  | J170: =IF($B$2=StoreConfig!C176,IF(StoreConfig!L176=0,"不限购",StoreConfig!L176&"次"),"") -> 
D171: =IF($B$2=StoreConfig!C177,StoreConfig!O177,"") ->  | E171: =IF($B$2=StoreConfig!C177,StoreConfig!E177,"") ->  | F171: =IF($B$2=StoreConfig!C177,RIGHT(StoreConfig!J177,LEN(StoreConfig!J177)-FIND("|",StoreConfig!J177)),"") ->  | G171: =IFERROR(VLOOKUP(--IF($B$2=StoreConfig!C177,LEFT(StoreConfig!J177,FIND("|",StoreConfig!J177)-1),""),$Q$4:$R$20,2,FALSE),"") ->  | H171: =IF($B$2=StoreConfig!C177,LEFT(StoreConfig!G177,FIND("#",StoreConfig!G177)-1),"") ->  | I171: =IF($B$2=StoreConfig!C177,RIGHT(StoreConfig!G177,LEN(StoreConfig!G177)-FIND("#",StoreConfig!G177)),"") ->  | J171: =IF($B$2=StoreConfig!C177,IF(StoreConfig!L177=0,"不限购",StoreConfig!L177&"次"),"") -> 
D172: =IF($B$2=StoreConfig!C178,StoreConfig!O178,"") ->  | E172: =IF($B$2=StoreConfig!C178,StoreConfig!E178,"") ->  | F172: =IF($B$2=StoreConfig!C178,RIGHT(StoreConfig!J178,LEN(StoreConfig!J178)-FIND("|",StoreConfig!J178)),"") ->  | G172: =IFERROR(VLOOKUP(--IF($B$2=StoreConfig!C178,LEFT(StoreConfig!J178,FIND("|",StoreConfig!J178)-1),""),$Q$4:$R$20,2,FALSE),"") ->  | H172: =IF($B$2=StoreConfig!C178,LEFT(StoreConfig!G178,FIND("#",StoreConfig!G178)-1),"") ->  | I172: =IF($B$2=StoreConfig!C178,RIGHT(StoreConfig!G178,LEN(StoreConfig!G178)-FIND("#",StoreConfig!G178)),"") ->  | J172: =IF($B$2=StoreConfig!C178,IF(StoreConfig!L178=0,"不限购",StoreConfig!L178&"次"),"") -> 
D173: =IF($B$2=StoreConfig!C179,StoreConfig!O179,"") ->  | E173: =IF($B$2=StoreConfig!C179,StoreConfig!E179,"") ->  | F173: =IF($B$2=StoreConfig!C179,RIGHT(StoreConfig!J179,LEN(StoreConfig!J179)-FIND("|",StoreConfig!J179)),"") ->  | G173: =IFERROR(VLOOKUP(--IF($B$2=StoreConfig!C179,LEFT(StoreConfig!J179,FIND("|",StoreConfig!J179)-1),""),$Q$4:$R$20,2,FALSE),"") ->  | H173: =IF($B$2=StoreConfig!C179,LEFT(StoreConfig!G179,FIND("#",StoreConfig!G179)-1),"") ->  | I173: =IF($B$2=StoreConfig!C179,RIGHT(StoreConfig!G179,LEN(StoreConfig!G179)-FIND("#",StoreConfig!G179)),"") ->  | J173: =IF($B$2=StoreConfig!C179,IF(StoreConfig!L179=0,"不限购",StoreConfig!L179&"次"),"") -> 
D174: =IF($B$2=StoreConfig!C180,StoreConfig!O180,"") ->  | E174: =IF($B$2=StoreConfig!C180,StoreConfig!E180,"") ->  | F174: =IF($B$2=StoreConfig!C180,RIGHT(StoreConfig!J180,LEN(StoreConfig!J180)-FIND("|",StoreConfig!J180)),"") ->  | G174: =IFERROR(VLOOKUP(--IF($B$2=StoreConfig!C180,LEFT(StoreConfig!J180,FIND("|",StoreConfig!J180)-1),""),$Q$4:$R$20,2,FALSE),"") ->  | H174: =IF($B$2=StoreConfig!C180,LEFT(StoreConfig!G180,FIND("#",StoreConfig!G180)-1),"") ->  | I174: =IF($B$2=StoreConfig!C180,RIGHT(StoreConfig!G180,LEN(StoreConfig!G180)-FIND("#",StoreConfig!G180)),"") ->  | J174: =IF($B$2=StoreConfig!C180,IF(StoreConfig!L180=0,"不限购",StoreConfig!L180&"次"),"") -> 
D175: =IF($B$2=StoreConfig!C181,StoreConfig!O181,"") ->  | E175: =IF($B$2=StoreConfig!C181,StoreConfig!E181,"") ->  | F175: =IF($B$2=StoreConfig!C181,RIGHT(StoreConfig!J181,LEN(StoreConfig!J181)-FIND("|",StoreConfig!J181)),"") ->  | G175: =IFERROR(VLOOKUP(--IF($B$2=StoreConfig!C181,LEFT(StoreConfig!J181,FIND("|",StoreConfig!J181)-1),""),$Q$4:$R$20,2,FALSE),"") ->  | H175: =IF($B$2=StoreConfig!C181,LEFT(StoreConfig!G181,FIND("#",StoreConfig!G181)-1),"") ->  | I175: =IF($B$2=StoreConfig!C181,RIGHT(StoreConfig!G181,LEN(StoreConfig!G181)-FIND("#",StoreConfig!G181)),"") ->  | J175: =IF($B$2=StoreConfig!C181,IF(StoreConfig!L181=0,"不限购",StoreConfig!L181&"次"),"") -> 
D176: =IF($B$2=StoreConfig!C182,StoreConfig!O182,"") ->  | E176: =IF($B$2=StoreConfig!C182,StoreConfig!E182,"") ->  | F176: =IF($B$2=StoreConfig!C182,RIGHT(StoreConfig!J182,LEN(StoreConfig!J182)-FIND("|",StoreConfig!J182)),"") ->  | G176: =IFERROR(VLOOKUP(--IF($B$2=StoreConfig!C182,LEFT(StoreConfig!J182,FIND("|",StoreConfig!J182)-1),""),$Q$4:$R$20,2,FALSE),"") ->  | H176: =IF($B$2=StoreConfig!C182,LEFT(StoreConfig!G182,FIND("#",StoreConfig!G182)-1),"") ->  | I176: =IF($B$2=StoreConfig!C182,RIGHT(StoreConfig!G182,LEN(StoreConfig!G182)-FIND("#",StoreConfig!G182)),"") ->  | J176: =IF($B$2=StoreConfig!C182,IF(StoreConfig!L182=0,"不限购",StoreConfig!L182&"次"),"") -> 
D177: =IF($B$2=StoreConfig!C183,StoreConfig!O183,"") ->  | E177: =IF($B$2=StoreConfig!C183,StoreConfig!E183,"") ->  | F177: =IF($B$2=StoreConfig!C183,RIGHT(StoreConfig!J183,LEN(StoreConfig!J183)-FIND("|",StoreConfig!J183)),"") ->  | G177: =IFERROR(VLOOKUP(--IF($B$2=StoreConfig!C183,LEFT(StoreConfig!J183,FIND("|",StoreConfig!J183)-1),""),$Q$4:$R$20,2,FALSE),"") ->  | H177: =IF($B$2=StoreConfig!C183,LEFT(StoreConfig!G183,FIND("#",StoreConfig!G183)-1),"") ->  | I177: =IF($B$2=StoreConfig!C183,RIGHT(StoreConfig!G183,LEN(StoreConfig!G183)-FIND("#",StoreConfig!G183)),"") ->  | J177: =IF($B$2=StoreConfig!C183,IF(StoreConfig!L183=0,"不限购",StoreConfig!L183&"次"),"") -> 
D178: =IF($B$2=StoreConfig!C184,StoreConfig!O184,"") ->  | E178: =IF($B$2=StoreConfig!C184,StoreConfig!E184,"") ->  | F178: =IF($B$2=StoreConfig!C184,RIGHT(StoreConfig!J184,LEN(StoreConfig!J184)-FIND("|",StoreConfig!J184)),"") ->  | G178: =IFERROR(VLOOKUP(--IF($B$2=StoreConfig!C184,LEFT(StoreConfig!J184,FIND("|",StoreConfig!J184)-1),""),$Q$4:$R$20,2,FALSE),"") ->  | H178: =IF($B$2=StoreConfig!C184,LEFT(StoreConfig!G184,FIND("#",StoreConfig!G184)-1),"") ->  | I178: =IF($B$2=StoreConfig!C184,RIGHT(StoreConfig!G184,LEN(StoreConfig!G184)-FIND("#",StoreConfig!G184)),"") ->  | J178: =IF($B$2=StoreConfig!C184,IF(StoreConfig!L184=0,"不限购",StoreConfig!L184&"次"),"") -> 
D179: =IF($B$2=StoreConfig!C185,StoreConfig!O185,"") ->  | E179: =IF($B$2=StoreConfig!C185,StoreConfig!E185,"") ->  | F179: =IF($B$2=StoreConfig!C185,RIGHT(StoreConfig!J185,LEN(StoreConfig!J185)-FIND("|",StoreConfig!J185)),"") ->  | G179: =IFERROR(VLOOKUP(--IF($B$2=StoreConfig!C185,LEFT(StoreConfig!J185,FIND("|",StoreConfig!J185)-1),""),$Q$4:$R$20,2,FALSE),"") ->  | H179: =IF($B$2=StoreConfig!C185,LEFT(StoreConfig!G185,FIND("#",StoreConfig!G185)-1),"") ->  | I179: =IF($B$2=StoreConfig!C185,RIGHT(StoreConfig!G185,LEN(StoreConfig!G185)-FIND("#",StoreConfig!G185)),"") ->  | J179: =IF($B$2=StoreConfig!C185,IF(StoreConfig!L185=0,"不限购",StoreConfig!L185&"次"),"") -> 
D180: =IF($B$2=StoreConfig!C186,StoreConfig!O186,"") ->  | E180: =IF($B$2=StoreConfig!C186,StoreConfig!E186,"") ->  | F180: =IF($B$2=StoreConfig!C186,RIGHT(StoreConfig!J186,LEN(StoreConfig!J186)-FIND("|",StoreConfig!J186)),"") ->  | G180: =IFERROR(VLOOKUP(--IF($B$2=StoreConfig!C186,LEFT(StoreConfig!J186,FIND("|",StoreConfig!J186)-1),""),$Q$4:$R$20,2,FALSE),"") ->  | H180: =IF($B$2=StoreConfig!C186,LEFT(StoreConfig!G186,FIND("#",StoreConfig!G186)-1),"") ->  | I180: =IF($B$2=StoreConfig!C186,RIGHT(StoreConfig!G186,LEN(StoreConfig!G186)-FIND("#",StoreConfig!G186)),"") ->  | J180: =IF($B$2=StoreConfig!C186,IF(StoreConfig!L186=0,"不限购",StoreConfig!L186&"次"),"") -> 
D181: =IF($B$2=StoreConfig!C187,StoreConfig!O187,"") ->  | E181: =IF($B$2=StoreConfig!C187,StoreConfig!E187,"") ->  | F181: =IF($B$2=StoreConfig!C187,RIGHT(StoreConfig!J187,LEN(StoreConfig!J187)-FIND("|",StoreConfig!J187)),"") ->  | G181: =IFERROR(VLOOKUP(--IF($B$2=StoreConfig!C187,LEFT(StoreConfig!J187,FIND("|",StoreConfig!J187)-1),""),$Q$4:$R$20,2,FALSE),"") ->  | H181: =IF($B$2=StoreConfig!C187,LEFT(StoreConfig!G187,FIND("#",StoreConfig!G187)-1),"") ->  | I181: =IF($B$2=StoreConfig!C187,RIGHT(StoreConfig!G187,LEN(StoreConfig!G187)-FIND("#",StoreConfig!G187)),"") ->  | J181: =IF($B$2=StoreConfig!C187,IF(StoreConfig!L187=0,"不限购",StoreConfig!L187&"次"),"") -> 
D182: =IF($B$2=StoreConfig!C188,StoreConfig!O188,"") ->  | E182: =IF($B$2=StoreConfig!C188,StoreConfig!E188,"") ->  | F182: =IF($B$2=StoreConfig!C188,RIGHT(StoreConfig!J188,LEN(StoreConfig!J188)-FIND("|",StoreConfig!J188)),"") ->  | G182: =IFERROR(VLOOKUP(--IF($B$2=StoreConfig!C188,LEFT(StoreConfig!J188,FIND("|",StoreConfig!J188)-1),""),$Q$4:$R$20,2,FALSE),"") ->  | H182: =IF($B$2=StoreConfig!C188,LEFT(StoreConfig!G188,FIND("#",StoreConfig!G188)-1),"") ->  | I182: =IF($B$2=StoreConfig!C188,RIGHT(StoreConfig!G188,LEN(StoreConfig!G188)-FIND("#",StoreConfig!G188)),"") ->  | J182: =IF($B$2=StoreConfig!C188,IF(StoreConfig!L188=0,"不限购",StoreConfig!L188&"次"),"") -> 
D183: =IF($B$2=StoreConfig!C189,StoreConfig!O189,"") ->  | E183: =IF($B$2=StoreConfig!C189,StoreConfig!E189,"") ->  | F183: =IF($B$2=StoreConfig!C189,RIGHT(StoreConfig!J189,LEN(StoreConfig!J189)-FIND("|",StoreConfig!J189)),"") ->  | G183: =IFERROR(VLOOKUP(--IF($B$2=StoreConfig!C189,LEFT(StoreConfig!J189,FIND("|",StoreConfig!J189)-1),""),$Q$4:$R$20,2,FALSE),"") ->  | H183: =IF($B$2=StoreConfig!C189,LEFT(StoreConfig!G189,FIND("#",StoreConfig!G189)-1),"") ->  | I183: =IF($B$2=StoreConfig!C189,RIGHT(StoreConfig!G189,LEN(StoreConfig!G189)-FIND("#",StoreConfig!G189)),"") ->  | J183: =IF($B$2=StoreConfig!C189,IF(StoreConfig!L189=0,"不限购",StoreConfig!L189&"次"),"") -> 
D184: =IF($B$2=StoreConfig!C190,StoreConfig!O190,"") ->  | E184: =IF($B$2=StoreConfig!C190,StoreConfig!E190,"") ->  | F184: =IF($B$2=StoreConfig!C190,RIGHT(StoreConfig!J190,LEN(StoreConfig!J190)-FIND("|",StoreConfig!J190)),"") ->  | G184: =IFERROR(VLOOKUP(--IF($B$2=StoreConfig!C190,LEFT(StoreConfig!J190,FIND("|",StoreConfig!J190)-1),""),$Q$4:$R$20,2,FALSE),"") ->  | H184: =IF($B$2=StoreConfig!C190,LEFT(StoreConfig!G190,FIND("#",StoreConfig!G190)-1),"") ->  | I184: =IF($B$2=StoreConfig!C190,RIGHT(StoreConfig!G190,LEN(StoreConfig!G190)-FIND("#",StoreConfig!G190)),"") ->  | J184: =IF($B$2=StoreConfig!C190,IF(StoreConfig!L190=0,"不限购",StoreConfig!L190&"次"),"") -> 
D185: =IF($B$2=StoreConfig!C191,StoreConfig!O191,"") ->  | E185: =IF($B$2=StoreConfig!C191,StoreConfig!E191,"") ->  | F185: =IF($B$2=StoreConfig!C191,RIGHT(StoreConfig!J191,LEN(StoreConfig!J191)-FIND("|",StoreConfig!J191)),"") ->  | G185: =IFERROR(VLOOKUP(--IF($B$2=StoreConfig!C191,LEFT(StoreConfig!J191,FIND("|",StoreConfig!J191)-1),""),$Q$4:$R$20,2,FALSE),"") ->  | H185: =IF($B$2=StoreConfig!C191,LEFT(StoreConfig!G191,FIND("#",StoreConfig!G191)-1),"") ->  | I185: =IF($B$2=StoreConfig!C191,RIGHT(StoreConfig!G191,LEN(StoreConfig!G191)-FIND("#",StoreConfig!G191)),"") ->  | J185: =IF($B$2=StoreConfig!C191,IF(StoreConfig!L191=0,"不限购",StoreConfig!L191&"次"),"") -> 
D186: =IF($B$2=StoreConfig!C192,StoreConfig!O192,"") ->  | E186: =IF($B$2=StoreConfig!C192,StoreConfig!E192,"") ->  | F186: =IF($B$2=StoreConfig!C192,RIGHT(StoreConfig!J192,LEN(StoreConfig!J192)-FIND("|",StoreConfig!J192)),"") ->  | G186: =IFERROR(VLOOKUP(--IF($B$2=StoreConfig!C192,LEFT(StoreConfig!J192,FIND("|",StoreConfig!J192)-1),""),$Q$4:$R$20,2,FALSE),"") ->  | H186: =IF($B$2=StoreConfig!C192,LEFT(StoreConfig!G192,FIND("#",StoreConfig!G192)-1),"") ->  | I186: =IF($B$2=StoreConfig!C192,RIGHT(StoreConfig!G192,LEN(StoreConfig!G192)-FIND("#",StoreConfig!G192)),"") ->  | J186: =IF($B$2=StoreConfig!C192,IF(StoreConfig!L192=0,"不限购",StoreConfig!L192&"次"),"") -> 
D187: =IF($B$2=StoreConfig!C193,StoreConfig!O193,"") ->  | E187: =IF($B$2=StoreConfig!C193,StoreConfig!E193,"") ->  | F187: =IF($B$2=StoreConfig!C193,RIGHT(StoreConfig!J193,LEN(StoreConfig!J193)-FIND("|",StoreConfig!J193)),"") ->  | G187: =IFERROR(VLOOKUP(--IF($B$2=StoreConfig!C193,LEFT(StoreConfig!J193,FIND("|",StoreConfig!J193)-1),""),$Q$4:$R$20,2,FALSE),"") ->  | H187: =IF($B$2=StoreConfig!C193,LEFT(StoreConfig!G193,FIND("#",StoreConfig!G193)-1),"") ->  | I187: =IF($B$2=StoreConfig!C193,RIGHT(StoreConfig!G193,LEN(StoreConfig!G193)-FIND("#",StoreConfig!G193)),"") ->  | J187: =IF($B$2=StoreConfig!C193,IF(StoreConfig!L193=0,"不限购",StoreConfig!L193&"次"),"") -> 
D188: =IF($B$2=StoreConfig!C194,StoreConfig!O194,"") ->  | E188: =IF($B$2=StoreConfig!C194,StoreConfig!E194,"") ->  | F188: =IF($B$2=StoreConfig!C194,RIGHT(StoreConfig!J194,LEN(StoreConfig!J194)-FIND("|",StoreConfig!J194)),"") ->  | G188: =IFERROR(VLOOKUP(--IF($B$2=StoreConfig!C194,LEFT(StoreConfig!J194,FIND("|",StoreConfig!J194)-1),""),$Q$4:$R$20,2,FALSE),"") ->  | H188: =IF($B$2=StoreConfig!C194,LEFT(StoreConfig!G194,FIND("#",StoreConfig!G194)-1),"") ->  | I188: =IF($B$2=StoreConfig!C194,RIGHT(StoreConfig!G194,LEN(StoreConfig!G194)-FIND("#",StoreConfig!G194)),"") ->  | J188: =IF($B$2=StoreConfig!C194,IF(StoreConfig!L194=0,"不限购",StoreConfig!L194&"次"),"") -> 
D189: =IF($B$2=StoreConfig!C195,StoreConfig!O195,"") ->  | E189: =IF($B$2=StoreConfig!C195,StoreConfig!E195,"") ->  | F189: =IF($B$2=StoreConfig!C195,RIGHT(StoreConfig!J195,LEN(StoreConfig!J195)-FIND("|",StoreConfig!J195)),"") ->  | G189: =IFERROR(VLOOKUP(--IF($B$2=StoreConfig!C195,LEFT(StoreConfig!J195,FIND("|",StoreConfig!J195)-1),""),$Q$4:$R$20,2,FALSE),"") ->  | H189: =IF($B$2=StoreConfig!C195,LEFT(StoreConfig!G195,FIND("#",StoreConfig!G195)-1),"") ->  | I189: =IF($B$2=StoreConfig!C195,RIGHT(StoreConfig!G195,LEN(StoreConfig!G195)-FIND("#",StoreConfig!G195)),"") ->  | J189: =IF($B$2=StoreConfig!C195,IF(StoreConfig!L195=0,"不限购",StoreConfig!L195&"次"),"") -> 
D190: =IF($B$2=StoreConfig!C196,StoreConfig!O196,"") ->  | E190: =IF($B$2=StoreConfig!C196,StoreConfig!E196,"") ->  | F190: =IF($B$2=StoreConfig!C196,RIGHT(StoreConfig!J196,LEN(StoreConfig!J196)-FIND("|",StoreConfig!J196)),"") ->  | G190: =IFERROR(VLOOKUP(--IF($B$2=StoreConfig!C196,LEFT(StoreConfig!J196,FIND("|",StoreConfig!J196)-1),""),$Q$4:$R$20,2,FALSE),"") ->  | H190: =IF($B$2=StoreConfig!C196,LEFT(StoreConfig!G196,FIND("#",StoreConfig!G196)-1),"") ->  | I190: =IF($B$2=StoreConfig!C196,RIGHT(StoreConfig!G196,LEN(StoreConfig!G196)-FIND("#",StoreConfig!G196)),"") ->  | J190: =IF($B$2=StoreConfig!C196,IF(StoreConfig!L196=0,"不限购",StoreConfig!L196&"次"),"") -> 
D191: =IF($B$2=StoreConfig!C197,StoreConfig!O197,"") ->  | E191: =IF($B$2=StoreConfig!C197,StoreConfig!E197,"") ->  | F191: =IF($B$2=StoreConfig!C197,RIGHT(StoreConfig!J197,LEN(StoreConfig!J197)-FIND("|",StoreConfig!J197)),"") ->  | G191: =IFERROR(VLOOKUP(--IF($B$2=StoreConfig!C197,LEFT(StoreConfig!J197,FIND("|",StoreConfig!J197)-1),""),$Q$4:$R$20,2,FALSE),"") ->  | H191: =IF($B$2=StoreConfig!C197,LEFT(StoreConfig!G197,FIND("#",StoreConfig!G197)-1),"") ->  | I191: =IF($B$2=StoreConfig!C197,RIGHT(StoreConfig!G197,LEN(StoreConfig!G197)-FIND("#",StoreConfig!G197)),"") ->  | J191: =IF($B$2=StoreConfig!C197,IF(StoreConfig!L197=0,"不限购",StoreConfig!L197&"次"),"") -> 
D192: =IF($B$2=StoreConfig!C198,StoreConfig!O198,"") ->  | E192: =IF($B$2=StoreConfig!C198,StoreConfig!E198,"") ->  | F192: =IF($B$2=StoreConfig!C198,RIGHT(StoreConfig!J198,LEN(StoreConfig!J198)-FIND("|",StoreConfig!J198)),"") ->  | G192: =IFERROR(VLOOKUP(--IF($B$2=StoreConfig!C198,LEFT(StoreConfig!J198,FIND("|",StoreConfig!J198)-1),""),$Q$4:$R$20,2,FALSE),"") ->  | H192: =IF($B$2=StoreConfig!C198,LEFT(StoreConfig!G198,FIND("#",StoreConfig!G198)-1),"") ->  | I192: =IF($B$2=StoreConfig!C198,RIGHT(StoreConfig!G198,LEN(StoreConfig!G198)-FIND("#",StoreConfig!G198)),"") ->  | J192: =IF($B$2=StoreConfig!C198,IF(StoreConfig!L198=0,"不限购",StoreConfig!L198&"次"),"") -> 
D193: =IF($B$2=StoreConfig!C199,StoreConfig!O199,"") ->  | E193: =IF($B$2=StoreConfig!C199,StoreConfig!E199,"") ->  | F193: =IF($B$2=StoreConfig!C199,RIGHT(StoreConfig!J199,LEN(StoreConfig!J199)-FIND("|",StoreConfig!J199)),"") ->  | G193: =IFERROR(VLOOKUP(--IF($B$2=StoreConfig!C199,LEFT(StoreConfig!J199,FIND("|",StoreConfig!J199)-1),""),$Q$4:$R$20,2,FALSE),"") ->  | H193: =IF($B$2=StoreConfig!C199,LEFT(StoreConfig!G199,FIND("#",StoreConfig!G199)-1),"") ->  | I193: =IF($B$2=StoreConfig!C199,RIGHT(StoreConfig!G199,LEN(StoreConfig!G199)-FIND("#",StoreConfig!G199)),"") ->  | J193: =IF($B$2=StoreConfig!C199,IF(StoreConfig!L199=0,"不限购",StoreConfig!L199&"次"),"") -> 
D194: =IF($B$2=StoreConfig!C200,StoreConfig!O200,"") ->  | E194: =IF($B$2=StoreConfig!C200,StoreConfig!E200,"") ->  | F194: =IF($B$2=StoreConfig!C200,RIGHT(StoreConfig!J200,LEN(StoreConfig!J200)-FIND("|",StoreConfig!J200)),"") ->  | G194: =IFERROR(VLOOKUP(--IF($B$2=StoreConfig!C200,LEFT(StoreConfig!J200,FIND("|",StoreConfig!J200)-1),""),$Q$4:$R$20,2,FALSE),"") ->  | H194: =IF($B$2=StoreConfig!C200,LEFT(StoreConfig!G200,FIND("#",StoreConfig!G200)-1),"") ->  | I194: =IF($B$2=StoreConfig!C200,RIGHT(StoreConfig!G200,LEN(StoreConfig!G200)-FIND("#",StoreConfig!G200)),"") ->  | J194: =IF($B$2=StoreConfig!C200,IF(StoreConfig!L200=0,"不限购",StoreConfig!L200&"次"),"") -> 
D195: =IF($B$2=StoreConfig!C201,StoreConfig!O201,"") ->  | E195: =IF($B$2=StoreConfig!C201,StoreConfig!E201,"") ->  | F195: =IF($B$2=StoreConfig!C201,RIGHT(StoreConfig!J201,LEN(StoreConfig!J201)-FIND("|",StoreConfig!J201)),"") ->  | G195: =IFERROR(VLOOKUP(--IF($B$2=StoreConfig!C201,LEFT(StoreConfig!J201,FIND("|",StoreConfig!J201)-1),""),$Q$4:$R$20,2,FALSE),"") ->  | H195: =IF($B$2=StoreConfig!C201,LEFT(StoreConfig!G201,FIND("#",StoreConfig!G201)-1),"") ->  | I195: =IF($B$2=StoreConfig!C201,RIGHT(StoreConfig!G201,LEN(StoreConfig!G201)-FIND("#",StoreConfig!G201)),"") ->  | J195: =IF($B$2=StoreConfig!C201,IF(StoreConfig!L201=0,"不限购",StoreConfig!L201&"次"),"") -> 
D196: =IF($B$2=StoreConfig!C202,StoreConfig!O202,"") ->  | E196: =IF($B$2=StoreConfig!C202,StoreConfig!E202,"") ->  | F196: =IF($B$2=StoreConfig!C202,RIGHT(StoreConfig!J202,LEN(StoreConfig!J202)-FIND("|",StoreConfig!J202)),"") ->  | G196: =IFERROR(VLOOKUP(--IF($B$2=StoreConfig!C202,LEFT(StoreConfig!J202,FIND("|",StoreConfig!J202)-1),""),$Q$4:$R$20,2,FALSE),"") ->  | H196: =IF($B$2=StoreConfig!C202,LEFT(StoreConfig!G202,FIND("#",StoreConfig!G202)-1),"") ->  | I196: =IF($B$2=StoreConfig!C202,RIGHT(StoreConfig!G202,LEN(StoreConfig!G202)-FIND("#",StoreConfig!G202)),"") ->  | J196: =IF($B$2=StoreConfig!C202,IF(StoreConfig!L202=0,"不限购",StoreConfig!L202&"次"),"") -> 
D197: =IF($B$2=StoreConfig!C203,StoreConfig!O203,"") ->  | E197: =IF($B$2=StoreConfig!C203,StoreConfig!E203,"") ->  | F197: =IF($B$2=StoreConfig!C203,RIGHT(StoreConfig!J203,LEN(StoreConfig!J203)-FIND("|",StoreConfig!J203)),"") ->  | G197: =IFERROR(VLOOKUP(--IF($B$2=StoreConfig!C203,LEFT(StoreConfig!J203,FIND("|",StoreConfig!J203)-1),""),$Q$4:$R$20,2,FALSE),"") ->  | H197: =IF($B$2=StoreConfig!C203,LEFT(StoreConfig!G203,FIND("#",StoreConfig!G203)-1),"") ->  | I197: =IF($B$2=StoreConfig!C203,RIGHT(StoreConfig!G203,LEN(StoreConfig!G203)-FIND("#",StoreConfig!G203)),"") ->  | J197: =IF($B$2=StoreConfig!C203,IF(StoreConfig!L203=0,"不限购",StoreConfig!L203&"次"),"") -> 
D198: =IF($B$2=StoreConfig!C204,StoreConfig!O204,"") ->  | E198: =IF($B$2=StoreConfig!C204,StoreConfig!E204,"") ->  | F198: =IF($B$2=StoreConfig!C204,RIGHT(StoreConfig!J204,LEN(StoreConfig!J204)-FIND("|",StoreConfig!J204)),"") ->  | G198: =IFERROR(VLOOKUP(--IF($B$2=StoreConfig!C204,LEFT(StoreConfig!J204,FIND("|",StoreConfig!J204)-1),""),$Q$4:$R$20,2,FALSE),"") ->  | H198: =IF($B$2=StoreConfig!C204,LEFT(StoreConfig!G204,FIND("#",StoreConfig!G204)-1),"") ->  | I198: =IF($B$2=StoreConfig!C204,RIGHT(StoreConfig!G204,LEN(StoreConfig!G204)-FIND("#",StoreConfig!G204)),"") ->  | J198: =IF($B$2=StoreConfig!C204,IF(StoreConfig!L204=0,"不限购",StoreConfig!L204&"次"),"") -> 
D199: =IF($B$2=StoreConfig!C205,StoreConfig!O205,"") ->  | E199: =IF($B$2=StoreConfig!C205,StoreConfig!E205,"") ->  | F199: =IF($B$2=StoreConfig!C205,RIGHT(StoreConfig!J205,LEN(StoreConfig!J205)-FIND("|",StoreConfig!J205)),"") ->  | G199: =IFERROR(VLOOKUP(--IF($B$2=StoreConfig!C205,LEFT(StoreConfig!J205,FIND("|",StoreConfig!J205)-1),""),$Q$4:$R$20,2,FALSE),"") ->  | H199: =IF($B$2=StoreConfig!C205,LEFT(StoreConfig!G205,FIND("#",StoreConfig!G205)-1),"") ->  | I199: =IF($B$2=StoreConfig!C205,RIGHT(StoreConfig!G205,LEN(StoreConfig!G205)-FIND("#",StoreConfig!G205)),"") ->  | J199: =IF($B$2=StoreConfig!C205,IF(StoreConfig!L205=0,"不限购",StoreConfig!L205&"次"),"") -> 
D200: =IF($B$2=StoreConfig!C206,StoreConfig!O206,"") ->  | E200: =IF($B$2=StoreConfig!C206,StoreConfig!E206,"") ->  | F200: =IF($B$2=StoreConfig!C206,RIGHT(StoreConfig!J206,LEN(StoreConfig!J206)-FIND("|",StoreConfig!J206)),"") ->  | G200: =IFERROR(VLOOKUP(--IF($B$2=StoreConfig!C206,LEFT(StoreConfig!J206,FIND("|",StoreConfig!J206)-1),""),$Q$4:$R$20,2,FALSE),"") ->  | H200: =IF($B$2=StoreConfig!C206,LEFT(StoreConfig!G206,FIND("#",StoreConfig!G206)-1),"") ->  | I200: =IF($B$2=StoreConfig!C206,RIGHT(StoreConfig!G206,LEN(StoreConfig!G206)-FIND("#",StoreConfig!G206)),"") ->  | J200: =IF($B$2=StoreConfig!C206,IF(StoreConfig!L206=0,"不限购",StoreConfig!L206&"次"),"") -> 
D201: =IF($B$2=StoreConfig!C207,StoreConfig!O207,"") ->  | E201: =IF($B$2=StoreConfig!C207,StoreConfig!E207,"") ->  | F201: =IF($B$2=StoreConfig!C207,RIGHT(StoreConfig!J207,LEN(StoreConfig!J207)-FIND("|",StoreConfig!J207)),"") ->  | G201: =IFERROR(VLOOKUP(--IF($B$2=StoreConfig!C207,LEFT(StoreConfig!J207,FIND("|",StoreConfig!J207)-1),""),$Q$4:$R$20,2,FALSE),"") ->  | H201: =IF($B$2=StoreConfig!C207,LEFT(StoreConfig!G207,FIND("#",StoreConfig!G207)-1),"") ->  | I201: =IF($B$2=StoreConfig!C207,RIGHT(StoreConfig!G207,LEN(StoreConfig!G207)-FIND("#",StoreConfig!G207)),"") ->  | J201: =IF($B$2=StoreConfig!C207,IF(StoreConfig!L207=0,"不限购",StoreConfig!L207&"次"),"") -> 
... 1438 more rows

Sheet Sheet4
I1: Cost | Q1: Goods
I2: mut,int#int,2 | Q2: mut,int | R2: int,2
I3: 2 | Q3: 2
I4: 购买道具 | J4: 价格公式（ax^3+bx^2+cx+d) | Q4: 物品id | R4: 数量
I5: null | Q5: null
K6: |0#0#0# | L6: # | M6: |
D8: 26 | E8: 15385 | F8: 3250 | H8: 4 | I8: 26 | J8: 5000 | K8: =D8&$K$6&E8 -> 26|0#0#0#15385 | Q8: 11011 | R8: 50
D9: 26 | E9: 15385 | F9: 3250 | H9: 4 | I9: 26 | J9: 5000 | K9: 26|0#0#0#15385 | Q9: 11023 | R9: 50
D10: 26 | E10: 15385 | F10: 3250 | H10: 4 | I10: 26 | J10: 5000 | K10: 26|0#0#0#15385 | Q10: 11001 | R10: 50
D11: 26 | E11: 15385 | F11: 3250 | H11: 4 | I11: 26 | J11: 5000 | K11: 26|0#0#0#15385 | Q11: 11026 | R11: 50
D12: 26 | E12: 12308 | F12: 2600 | H12: 4 | I12: 26 | J12: 4000 | K12: 26|0#0#0#12308 | Q12: 11002 | R12: 50
D13: 26 | E13: 12308 | F13: 2600 | H13: 4 | I13: 26 | J13: 4000 | K13: 26|0#0#0#12308 | Q13: 11015 | R13: 50
D14: 26 | E14: 12308 | F14: 2600 | H14: 4 | I14: 26 | J14: 4000 | K14: 26|0#0#0#12308 | Q14: 11017 | R14: 50
D15: 26 | E15: 12308 | F15: 2600 | H15: 4 | I15: 26 | J15: 4000 | K15: 26|0#0#0#12308 | Q15: 11042 | R15: 50
D16: 26 | E16: 7692 | F16: 1625 | H16: 4 | I16: 26 | J16: 2500 | K16: 26|0#0#0#7692 | Q16: 11045 | R16: 50
D17: 26 | E17: 7692 | F17: 1625 | H17: 4 | I17: 26 | J17: 2500 | K17: 26|0#0#0#7692 | Q17: 11030 | R17: 50
D18: 26 | E18: 7692 | F18: 1625 | H18: 4 | I18: 26 | J18: 2500 | K18: 26|0#0#0#7692 | Q18: 11036 | R18: 50
D19: 26 | E19: 7692 | F19: 1625 | H19: 4 | I19: 26 | J19: 2500 | K19: 26|0#0#0#7692 | Q19: 11038 | R19: 50
C20: 不要了 | D20: 25 | F20: 40000 | H20: 不动 | I20: 25 | J20: 200 | K20: =StoreConfig!J20 -> 25|0#0#0#200 | Q20: 90001 | R20: 1
C21: 不要了 | D21: 25 | F21: 40000 | H21: 不动 | I21: 25 | J21: 200 | K21: =StoreConfig!J21 -> 25|0#0#0#200 | Q21: 90002 | R21: 1
C22: 不要了 | D22: 25 | F22: 40000 | H22: 不动 | I22: 25 | J22: 200 | K22: =StoreConfig!J22 -> 25|0#0#0#200 | Q22: 90003 | R22: 1
C23: 不要了 | D23: 25 | F23: 40000 | H23: 不动 | I23: 25 | J23: 200 | K23: =StoreConfig!J23 -> 25|0#0#0#200 | Q23: 90004 | R23: 1
C24: 不要了 | D24: 25 | F24: 40000 | H24: 不动 | I24: 25 | J24: 200 | K24: =StoreConfig!J24 -> 25|0#0#0#200 | Q24: 90005 | R24: 1
C25: 不要了 | D25: 25 | F25: 40000 | H25: 不动 | I25: 25 | J25: 200 | K25: =StoreConfig!J25 -> 25|0#0#0#200 | Q25: 90001 | R25: 1
C26: 不要了 | D26: 25 | F26: 40000 | H26: 不动 | I26: 25 | J26: 200 | K26: =StoreConfig!J26 -> 25|0#0#0#200 | Q26: 90002 | R26: 1
C27: 不要了 | D27: 25 | F27: 40000 | H27: 不动 | I27: 25 | J27: 200 | K27: =StoreConfig!J27 -> 25|0#0#0#200 | Q27: 90003 | R27: 1
C28: 不要了 | D28: 25 | F28: 40000 | H28: 不动 | I28: 25 | J28: 200 | K28: =StoreConfig!J28 -> 25|0#0#0#200 | Q28: 90004 | R28: 1
C29: 不要了 | D29: 25 | F29: 40000 | H29: 不动 | I29: 25 | J29: 200 | K29: =StoreConfig!J29 -> 25|0#0#0#200 | Q29: 90005 | R29: 1
C30: 不要了 | D30: 25 | F30: 300000 | H30: 不动 | I30: 25 | J30: 1500 | K30: =StoreConfig!J30 -> 25|0#0#0#1500 | Q30: 90201 | R30: 1
C31: 不要了 | D31: 25 | F31: 300000 | H31: 不动 | I31: 25 | J31: 1500 | K31: =StoreConfig!J31 -> 25|0#0#0#1500 | Q31: 90202 | R31: 1
C32: 不要了 | D32: 25 | F32: 300000 | H32: 不动 | I32: 25 | J32: 1500 | K32: =StoreConfig!J32 -> 25|0#0#0#1500 | Q32: 90203 | R32: 1
C33: 不要了 | D33: 25 | F33: 300000 | H33: 不动 | I33: 25 | J33: 1500 | K33: =StoreConfig!J33 -> 25|0#0#0#1500 | Q33: 90204 | R33: 1
C34: 不要了 | D34: 25 | F34: 300000 | H34: 不动 | I34: 25 | J34: 1500 | K34: =StoreConfig!J34 -> 25|0#0#0#1500 | Q34: 90205 | R34: 1
C35: 不要了 | D35: 25 | F35: 300000 | H35: 不动 | I35: 25 | J35: 1500 | K35: =StoreConfig!J35 -> 25|0#0#0#1500 | Q35: 90201 | R35: 1
C36: 不要了 | D36: 25 | F36: 300000 | H36: 不动 | I36: 25 | J36: 1500 | K36: =StoreConfig!J36 -> 25|0#0#0#1500 | Q36: 90202 | R36: 1
C37: 不要了 | D37: 25 | F37: 300000 | H37: 不动 | I37: 25 | J37: 1500 | K37: =StoreConfig!J37 -> 25|0#0#0#1500 | Q37: 90203 | R37: 1
C38: 不要了 | D38: 25 | F38: 300000 | H38: 不动 | I38: 25 | J38: 1500 | K38: =StoreConfig!J38 -> 25|0#0#0#1500 | Q38: 90204 | R38: 1
C39: 不要了 | D39: 25 | F39: 300000 | H39: 不动 | I39: 25 | J39: 1500 | K39: =StoreConfig!J39 -> 25|0#0#0#1500 | Q39: 90205 | R39: 1
C40: 不要了 | D40: 25 | F40: 120000 | H40: 不动 | I40: 25 | J40: 600 | K40: =StoreConfig!J40 -> 25|0#0#0#600 | Q40: 60095 | R40: 1
C41: 不要了 | D41: 25 | F41: 120000 | H41: 不动 | I41: 25 | J41: 600 | K41: =StoreConfig!J41 -> 25|0#0#0#600 | Q41: 60098 | R41: 1
C42: 不要了 | D42: 25 | E42: 4 | F42: 480000 | H42: 不动 | I42: 25 | J42: 2400 | K42: =StoreConfig!J42 -> 25|0#0#0#2400 | Q42: 60101 | R42: 1
C43: 不要了 | D43: 25 | F43: 480000 | H43: 不动 | I43: 25 | J43: 2400 | K43: =StoreConfig!J43 -> 25|0#0#0#2400 | Q43: 60106 | R43: 1
C44: 不要了 | D44: 25 | F44: 480000 | H44: 不动 | I44: 25 | J44: 2400 | K44: =StoreConfig!J44 -> 25|0#0#0#2400 | Q44: 60111 | R44: 1
C45: 不要了 | D45: 25 | F45: 480000 | H45: 不动 | I45: 25 | J45: 2400 | K45: =StoreConfig!J45 -> 25|0#0#0#2400 | Q45: 60116 | R45: 1
C46: 不要了 | D46: 25 | F46: 480000 | H46: 不动 | I46: 25 | J46: 2400 | K46: =StoreConfig!J46 -> 25|0#0#0#2400 | Q46: 60121 | R46: 1
C47: 不要了 | D47: 25 | E47: 4 | F47: 480000 | H47: 不动 | I47: 25 | J47: 2400 | K47: =StoreConfig!J47 -> 25|0#0#0#2400 | Q47: 60126 | R47: 1
C48: 不要了 | D48: 25 | F48: 480000 | H48: 不动 | I48: 25 | J48: 2400 | K48: =StoreConfig!J48 -> 25|0#0#0#2400 | Q48: 60131 | R48: 1
C49: 不要了 | D49: 25 | E49: 4 | F49: 480000 | H49: 不动 | I49: 25 | J49: 2400 | K49: =StoreConfig!J49 -> 25|0#0#0#2400 | Q49: 60136 | R49: 1
C50: 不要了 | D50: 25 | E50: 4 | F50: 480000 | H50: 不动 | I50: 25 | J50: 2400 | K50: =StoreConfig!J50 -> 25|0#0#0#2400 | Q50: 60141 | R50: 1
C51: 不要了 | D51: 25 | F51: 480000 | H51: 不动 | I51: 25 | J51: 2400 | K51: =StoreConfig!J51 -> 25|0#0#0#2400 | Q51: 60146 | R51: 1
C52: 不要了 | D52: 25 | F52: 480000 | H52: 不动 | I52: 25 | J52: 2400 | K52: =StoreConfig!J52 -> 25|0#0#0#2400 | Q52: 60151 | R52: 1
C53: 不要了 | D53: 25 | F53: 480000 | H53: 不动 | I53: 25 | J53: 2400 | K53: =StoreConfig!J53 -> 25|0#0#0#2400 | Q53: 3007 | R53: 1
C54: 不要了 | D54: 25 | F54: 480000 | H54: 不动 | I54: 25 | J54: 2400 | K54: =StoreConfig!J54 -> 25|0#0#0#2400 | Q54: 3008 | R54: 1
C55: 不要了 | D55: 25 | F55: 480000 | H55: 不动 | I55: 25 | J55: 2400 | K55: =StoreConfig!J55 -> 25|0#0#0#2400 | Q55: 3009 | R55: 1
C56: 不要了 | D56: 25 | F56: 480000 | H56: 不动 | I56: 25 | J56: 2400 | K56: =StoreConfig!J56 -> 25|0#0#0#2400 | Q56: 3010 | R56: 1
C57: 不要了 | D57: 25 | F57: 480000 | H57: 不动 | I57: 25 | J57: 2400 | K57: =StoreConfig!J57 -> 25|0#0#0#2400 | Q57: 3011 | R57: 1
C58: 不要了 | D58: 25 | F58: 480000 | H58: 不动 | I58: 25 | J58: 2400 | K58: =StoreConfig!J58 -> 25|0#0#0#2400 | Q58: 3012 | R58: 1
C59: 不要了 | D59: 25 | F59: 480000 | H59: 不动 | I59: 25 | J59: 2400 | K59: =StoreConfig!J59 -> 25|0#0#0#2400 | Q59: 3013 | R59: 1
C60: 不要了 | D60: 25 | F60: 480000 | H60: 不动 | I60: 25 | J60: 2400 | K60: =StoreConfig!J60 -> 25|0#0#0#2400 | Q60: 3014 | R60: 1
C61: 不要了 | D61: 25 | F61: 480000 | H61: 不动 | I61: 25 | J61: 2400 | K61: =StoreConfig!J61 -> 25|0#0#0#2400 | Q61: 3015 | R61: 1
C62: 不要了 | D62: 25 | F62: 480000 | H62: 不动 | I62: 25 | J62: 2400 | K62: =StoreConfig!J62 -> 25|0#0#0#2400 | Q62: 3016 | R62: 1
C63: 不要了 | D63: 25 | F63: 480000 | H63: 不动 | I63: 25 | J63: 2400 | K63: =StoreConfig!J63 -> 25|0#0#0#2400 | Q63: 3017 | R63: 1
C64: 不要了 | D64: 25 | F64: 480000 | H64: 不动 | I64: 25 | J64: 2400 | K64: =StoreConfig!J64 -> 25|0#0#0#2400 | Q64: 3018 | R64: 1
C65: 不要了 | D65: 24 | F65: 75 | H65: 不动 | I65: 24 | J65: 60 | K65: =StoreConfig!J65 -> 24|0#0#0#60 | Q65: 6001 | R65: 1
C66: 不要了 | D66: 24 | F66: 75 | H66: 不动 | I66: 24 | J66: 60 | K66: =StoreConfig!J66 -> 24|0#0#0#60 | Q66: 6002 | R66: 1
C67: 不要了 | D67: 24 | F67: 75 | H67: 不动 | I67: 24 | J67: 60 | K67: =StoreConfig!J67 -> 24|0#0#0#60 | Q67: 6003 | R67: 1
C68: 不要了 | D68: 24 | F68: 75 | H68: 不动 | I68: 24 | J68: 60 | K68: =StoreConfig!J68 -> 24|0#0#0#60 | Q68: 6004 | R68: 1
C69: 不要了 | D69: 24 | F69: 75 | H69: 不动 | I69: 24 | J69: 60 | K69: =StoreConfig!J69 -> 24|0#0#0#60 | Q69: 6005 | R69: 1
C70: 不要了 | D70: 24 | F70: 75 | H70: 不动 | I70: 24 | J70: 60 | K70: =StoreConfig!J70 -> 24|0#0#0#60 | Q70: 6006 | R70: 1
C71: 不要了 | D71: 24 | F71: 75 | H71: 不动 | I71: 24 | J71: 60 | K71: =StoreConfig!J71 -> 24|0#0#0#60 | Q71: 6007 | R71: 1
C72: 不要了 | D72: 24 | F72: 75 | H72: 不动 | I72: 24 | J72: 60 | K72: =StoreConfig!J72 -> 24|0#0#0#60 | Q72: 6008 | R72: 1
C73: 不要了 | D73: 24 | F73: 75 | H73: 不动 | I73: 24 | J73: 60 | K73: =StoreConfig!J73 -> 24|0#0#0#60 | Q73: 6009 | R73: 1
C74: 不要了 | D74: 24 | F74: 75 | H74: 不动 | I74: 24 | J74: 60 | K74: =StoreConfig!J74 -> 24|0#0#0#60 | Q74: 6010 | R74: 1
C75: 不要了 | D75: 24 | F75: 75 | H75: 不动 | I75: 24 | J75: 60 | K75: =StoreConfig!J75 -> 24|0#0#0#60 | Q75: 6011 | R75: 1
C76: 不要了 | D76: 24 | F76: 75 | H76: 不动 | I76: 24 | J76: 60 | K76: =StoreConfig!J76 -> 24|0#0#0#60 | Q76: 6012 | R76: 1
C77: 不要了 | D77: 24 | F77: 225 | H77: 不动 | I77: 24 | J77: 180 | K77: =StoreConfig!J77 -> 24|0#0#0#180 | Q77: 6025 | R77: 1
C78: 不要了 | D78: 24 | F78: 225 | H78: 不动 | I78: 24 | J78: 180 | K78: =StoreConfig!J78 -> 24|0#0#0#180 | Q78: 6026 | R78: 1
C79: 不要了 | D79: 24 | F79: 225 | H79: 不动 | I79: 24 | J79: 180 | K79: =StoreConfig!J79 -> 24|0#0#0#180 | Q79: 6027 | R79: 1
C80: 不要了 | D80: 24 | F80: 225 | H80: 不动 | I80: 24 | J80: 180 | K80: =StoreConfig!J80 -> 24|0#0#0#180 | Q80: 6028 | R80: 1
C81: 不要了 | D81: 24 | F81: 225 | H81: 不动 | I81: 24 | J81: 180 | K81: =StoreConfig!J81 -> 24|0#0#0#180 | Q81: 6029 | R81: 1
C82: 不要了 | D82: 24 | F82: 225 | H82: 不动 | I82: 24 | J82: 180 | K82: =StoreConfig!J82 -> 24|0#0#0#180 | Q82: 6030 | R82: 1
C83: 不要了 | D83: 24 | F83: 225 | H83: 不动 | I83: 24 | J83: 180 | K83: =StoreConfig!J83 -> 24|0#0#0#180 | Q83: 6031 | R83: 1
C84: 不要了 | D84: 24 | F84: 225 | H84: 不动 | I84: 24 | J84: 180 | K84: =StoreConfig!J84 -> 24|0#0#0#180 | Q84: 6032 | R84: 1
C85: 不要了 | D85: 24 | F85: 18.75 | H85: 不动 | I85: 24 | J85: 15 | K85: =StoreConfig!J85 -> 24|0#0#0#15 | Q85: 5 | R85: 150
C86: 不要了 | D86: 22 | F86: 缺少价值对比 | H86: 不动 | I86: 22 | J86: 55 | K86: =StoreConfig!J86 -> 22|0#0#0#55 | Q86: 6001 | R86: 1
C87: 不要了 | D87: 22 | F87: 缺少价值对比 | H87: 不动 | I87: 22 | J87: 55 | K87: =StoreConfig!J87 -> 22|0#0#0#55 | Q87: 6002 | R87: 1
C88: 不要了 | D88: 22 | F88: 缺少价值对比 | H88: 不动 | I88: 22 | J88: 55 | K88: =StoreConfig!J88 -> 22|0#0#0#55 | Q88: 6003 | R88: 1
C89: 不要了 | D89: 22 | F89: 缺少价值对比 | H89: 不动 | I89: 22 | J89: 55 | K89: =StoreConfig!J89 -> 22|0#0#0#55 | Q89: 6004 | R89: 1
C90: 不要了 | D90: 22 | F90: 缺少价值对比 | H90: 不动 | I90: 22 | J90: 55 | K90: =StoreConfig!J90 -> 22|0#0#0#55 | Q90: 6005 | R90: 1
C91: 不要了 | D91: 22 | F91: 缺少价值对比 | H91: 不动 | I91: 22 | J91: 55 | K91: =StoreConfig!J91 -> 22|0#0#0#55 | Q91: 6006 | R91: 1
C92: 不要了 | D92: 22 | F92: 缺少价值对比 | H92: 不动 | I92: 22 | J92: 55 | K92: =StoreConfig!J92 -> 22|0#0#0#55 | Q92: 6007 | R92: 1
C93: 不要了 | D93: 22 | F93: 缺少价值对比 | H93: 不动 | I93: 22 | J93: 55 | K93: =StoreConfig!J93 -> 22|0#0#0#55 | Q93: 6008 | R93: 1
C94: 不要了 | D94: 22 | F94: 缺少价值对比 | H94: 不动 | I94: 22 | J94: 55 | K94: =StoreConfig!J94 -> 22|0#0#0#55 | Q94: 6009 | R94: 1
C95: 不要了 | D95: 22 | F95: 缺少价值对比 | H95: 不动 | I95: 22 | J95: 55 | K95: =StoreConfig!J95 -> 22|0#0#0#55 | Q95: 6010 | R95: 1
C96: 不要了 | D96: 22 | F96: 缺少价值对比 | H96: 不动 | I96: 22 | J96: 55 | K96: =StoreConfig!J96 -> 22|0#0#0#55 | Q96: 6011 | R96: 1
C97: 不要了 | D97: 22 | F97: 缺少价值对比 | H97: 不动 | I97: 22 | J97: 55 | K97: =StoreConfig!J97 -> 22|0#0#0#55 | Q97: 6012 | R97: 1
C98: 不要了 | D98: 22 | F98: 缺少价值对比 | H98: 不动 | I98: 22 | J98: 180 | K98: =StoreConfig!J98 -> 22|0#0#0#180 | Q98: 6013 | R98: 1
C99: 不要了 | D99: 22 | F99: 缺少价值对比 | H99: 不动 | I99: 22 | J99: 180 | K99: =StoreConfig!J99 -> 22|0#0#0#180 | Q99: 6014 | R99: 1
C100: 不要了 | D100: 22 | F100: 缺少价值对比 | H100: 不动 | I100: 22 | J100: 180 | K100: =StoreConfig!J100 -> 22|0#0#0#180 | Q100: 6015 | R100: 1
C101: 不要了 | D101: 22 | F101: 缺少价值对比 | H101: 不动 | I101: 22 | J101: 180 | K101: =StoreConfig!J101 -> 22|0#0#0#180 | Q101: 6016 | R101: 1
C102: 不要了 | D102: 22 | F102: 缺少价值对比 | H102: 不动 | I102: 22 | J102: 180 | K102: =StoreConfig!J102 -> 22|0#0#0#180 | Q102: 6017 | R102: 1
C103: 不要了 | D103: 22 | F103: 缺少价值对比 | H103: 不动 | I103: 22 | J103: 180 | K103: =StoreConfig!J103 -> 22|0#0#0#180 | Q103: 6018 | R103: 1
C104: 不要了 | D104: 22 | F104: 缺少价值对比 | H104: 不动 | I104: 22 | J104: 180 | K104: =StoreConfig!J104 -> 22|0#0#0#180 | Q104: 6019 | R104: 1
C105: 不要了 | D105: 22 | F105: 缺少价值对比 | H105: 不动 | I105: 22 | J105: 180 | K105: =StoreConfig!J105 -> 22|0#0#0#180 | Q105: 6020 | R105: 1
C106: 不要了 | D106: 22 | F106: 缺少价值对比 | H106: 不动 | I106: 22 | J106: 180 | K106: =StoreConfig!J106 -> 22|0#0#0#180 | Q106: 6021 | R106: 1
C107: 不要了 | D107: 22 | F107: 缺少价值对比 | H107: 不动 | I107: 22 | J107: 180 | K107: =StoreConfig!J107 -> 22|0#0#0#180 | Q107: 6022 | R107: 1
C108: 不要了 | D108: 22 | F108: 缺少价值对比 | H108: 不动 | I108: 22 | J108: 180 | K108: =StoreConfig!J108 -> 22|0#0#0#180 | Q108: 6023 | R108: 1
C109: 不要了 | D109: 22 | F109: 缺少价值对比 | H109: 不动 | I109: 22 | J109: 180 | K109: =StoreConfig!J109 -> 22|0#0#0#180 | Q109: 6024 | R109: 1
C110: 不要了 | D110: 22 | F110: 缺少价值对比 | H110: 不动 | I110: 22 | J110: 180 | K110: =StoreConfig!J110 -> 22|0#0#0#180 | Q110: 6025 | R110: 1
C111: 不要了 | D111: 22 | F111: 缺少价值对比 | H111: 不动 | I111: 22 | J111: 180 | K111: =StoreConfig!J111 -> 22|0#0#0#180 | Q111: 6026 | R111: 1
C112: 不要了 | D112: 22 | F112: 缺少价值对比 | H112: 不动 | I112: 22 | J112: 180 | K112: =StoreConfig!J112 -> 22|0#0#0#180 | Q112: 6027 | R112: 1
C113: 不要了 | D113: 22 | F113: 缺少价值对比 | H113: 不动 | I113: 22 | J113: 180 | K113: =StoreConfig!J113 -> 22|0#0#0#180 | Q113: 6028 | R113: 1
C114: 不要了 | D114: 22 | F114: 缺少价值对比 | H114: 不动 | I114: 22 | J114: 180 | K114: =StoreConfig!J114 -> 22|0#0#0#180 | Q114: 6029 | R114: 1
C115: 不要了 | D115: 22 | F115: 缺少价值对比 | H115: 不动 | I115: 22 | J115: 180 | K115: =StoreConfig!J115 -> 22|0#0#0#180 | Q115: 6030 | R115: 1
C116: 不要了 | D116: 22 | F116: 缺少价值对比 | H116: 不动 | I116: 22 | J116: 180 | K116: =StoreConfig!J116 -> 22|0#0#0#180 | Q116: 6031 | R116: 1
C117: 不要了 | D117: 22 | F117: 缺少价值对比 | H117: 不动 | I117: 22 | J117: 180 | K117: =StoreConfig!J117 -> 22|0#0#0#180 | Q117: 6032 | R117: 1
C118: 不要了 | D118: 22 | F118: 缺少价值对比 | H118: 不动 | I118: 22 | J118: 10 | K118: =StoreConfig!J118 -> 22|0#0#0#10 | Q118: 5 | R118: 100
C119: 不处理 | D119: 16 | E119: 250 | F119: 250 | H119: 不动 | I119: 16 | J119: 250 | K119: =StoreConfig!J119 -> 16|0#0#0#250 | Q119: 19 | R119: 1
C120: 不处理 | D120: 16 | E120: 2500 | F120: 2250 | H120: 9 | I120: 16 | J120: 2250 | K120: =StoreConfig!J120 -> 16|0#0#0#2500 | Q120: 19 | R120: 10
C121: 不处理 | D121: 16 | F121: 100 | H121: 不动 | I121: 16 | J121: 100 | K121: =StoreConfig!J121 -> 16|0#0#0#100 | P121: =R121*50 -> 100 | Q121: 60 | R121: 2
C122: 不处理 | D122: 16 | F122: 880 | H122: 不动 | I122: 16 | J122: 880 | K122: =StoreConfig!J122 -> 16|0#0#0#250 | P122: 250 | Q122: 60 | R122: 5
C123: 不处理 | D123: 16 | E123: 5 | F123: 0 | H123: 0 | I123: 16 | J123: 0 | K123: =StoreConfig!J123 -> 16|0#0#0#0 | Q123: 14 | R123: 25000
C124: 不处理 | D124: 16 | F124: 缺少价值对比 | H124: 不动 | I124: 16 | J124: 50#50#100#100#150#200#300#400#500 | K124: =StoreConfig!J124 -> 16|50#50#100#100#150#200#300#400#500 | Q124: 2 | R124: 100
C125: 不处理 | D125: 16 | E125: 20 | F125: 20 | H125: 不动 | I125: 16 | J125: 20 | K125: =StoreConfig!J125 -> 16|0#0#0#20 | Q125: 23 | R125: 1
C126: 不处理 | D126: 47 | F126: 缺少价值对比 | H126: 不动 | I126: 47 | J126: 1 | K126: =StoreConfig!J126 -> 47|0#0#0#1 | Q126: 0 | R126: 0
C127: 不处理 | D127: 16 | F127: 缺少价值对比 | H127: 不动 | I127: 16 | J127: 0#0#20#20 | K127: =StoreConfig!J127 -> 16|0#0#20#20 | Q127: 27 | R127: 1
C128: 不处理 | D128: 16 | F128: 缺少价值对比 | H128: 不动 | I128: 16 | J128: 0#0#150#100 | K128: =StoreConfig!J128 -> 16|0#0#150#100 | Q128: 28 | R128: 1
C129: 不处理 | D129: 16 | F129: 缺少价值对比 | H129: 不动 | I129: 16 | J129: 0#200#400#400#600#600#1000 | K129: =StoreConfig!J129 -> 16|0#200#400#400#600#600#1000 | Q129: 0 | R129: 0
C130: 不处理 | D130: 16 | F130: 缺少价值对比 | H130: 不动 | I130: 16 | J130: 20#20#40#40#60#80#100#120#160#200 | K130: =StoreConfig!J130 -> 16|20#20#40#40#60#80#100#120#160#200 | Q130: 44 | R130: 1
C131: 不处理 | D131: 15 | F131: 缺少价值对比 | H131: 不动 | I131: 16 | J131: 1 | K131: =StoreConfig!J131 -> 16|0#0#0#1 | Q131: 16 | R131: 10
C132: 不处理 | D132: 15 | F132: 缺少价值对比 | H132: 不动 | I132: 16 | J132: 30 | K132: =StoreConfig!J132 -> 16|0#0#0#30 | Q132: 46 | R132: 1
C133: 不处理 | D133: 16 | F133: 缺少价值对比 | H133: 不动 | I133: 16 | J133: 50#100#200#200#200#200#200#200#200#200#200 | K133: =StoreConfig!J133 -> 16|50#100#200#200#200#200#200#200#200#200#200 | Q133: 0 | R133: 0
C134: 不处理 | D134: 16 | F134: 缺少价值对比 | H134: 不动 | I134: 16 | J134: 0#0#100#150 | K134: =StoreConfig!J134 -> 16|0#0#100#150 | Q134: 1 | R134: 100
C135: 不处理 | D135: 16 | F135: 20 | H135: 不动 | I135: 16 | J135: 20 | K135: =StoreConfig!J135 -> 16|0#0#0#20 | Q135: 53 | R135: 1
C136: 不处理 | D136: 16 | F136: 500 | H136: 不动 | I136: 16 | J136: 500 | K136: =StoreConfig!J136 -> 16|0#0#0#500 | Q136: 64 | R136: 1
C137: 不处理 | D137: 16 | F137: 100 | H137: 不动 | I137: 16 | J137: 100 | K137: =StoreConfig!J137 -> 16|0#0#0#100 | Q137: 0 | R137: 0
C138: 不处理 | D138: 16 | F138: 缺少价值对比 | H138: 不动 | I138: 16 | J138: 0#0#10#10 | K138: =StoreConfig!J138 -> 16|0#0#10#10 | Q138: 0 | R138: 0
C139: 不处理 | D139: 16 | F139: 50 | H139: 不动 | I139: 16 | J139: 50 | K139: =StoreConfig!J139 -> 16|0#0#0#50 | Q139: 90 | R139: 0
C140: 不处理 | D140: 16 | F140: 50 | H140: 不动 | I140: 16 | J140: 50 | K140: =StoreConfig!J140 -> 16|0#0#0#50 | Q140: 90 | R140: 0
C141: 不处理 | D141: 16 | F141: 50 | H141: 不动 | I141: 16 | J141: 50 | K141: =StoreConfig!J141 -> 16|0#0#0#50 | Q141: 90 | R141: 0
C142: 不处理 | D142: 16 | F142: 50 | H142: 不动 | I142: 16 | J142: 50 | K142: =StoreConfig!J142 -> 16|0#0#0#50 | Q142: 90 | R142: 0
C143: 不处理 | D143: 16 | F143: 50 | H143: 不动 | I143: 16 | J143: 50 | K143: =StoreConfig!J143 -> 16|0#0#0#50 | Q143: 90 | R143: 0
C144: 不要了 | D144: 16 | E144: 10 | F144: 20 | H144: 不动 | I144: 16 | J144: 20 | K144: =StoreConfig!J144 -> 16|0#0#0#20 | Q144: 14 | R144: 50000
C145: 不要了 | D145: 16 | E145: 25 | F145: 50 | H145: 不动 | I145: 16 | J145: 50 | K145: =StoreConfig!J145 -> 16|0#0#0#50 | Q145: 14 | R145: 125000
C146: 不处理 | D146: 16 | F146: 缺少价值对比 | H146: 不动 | I146: 16 | J146: 300#500#800#1000 | K146: =StoreConfig!J146 -> 16|300#500#800#1000 | Q146: 0 | R146: 0
C147: 不处理 | D147: 16 | F147: 100 | H147: 不动 | I147: 16 | J147: 100 | K147: =StoreConfig!J147 -> 16|0#0#0#100 | Q147: 31 | R147: 1
C148: 不处理 | D148: 16 | F148: 50 | H148: 不动 | I148: 16 | J148: 50 | K148: =StoreConfig!J148 -> 16|50#100#200#200#200#200#200#200 | Q148: 71 | R148: 0
C149: 不要了 | D149: 16 | E149: 100 | F149: 100 | H149: 不动 | I149: 16 | J149: 100 | K149: =StoreConfig!J150 -> 16|0#0#0#100 | Q149: 3 | R149: 100000
C150: 不要了 | D150: 16 | E150: 200 | F150: 200 | H150: 不动 | I150: 16 | J150: 200 | K150: =StoreConfig!J151 -> 16|0#0#0#200 | Q150: 3 | R150: 200000
C151: 不要了 | D151: 16 | E151: 400 | F151: 400 | H151: 不动 | I151: 16 | J151: 400 | K151: =StoreConfig!J152 -> 16|0#0#0#400 | Q151: 3 | R151: 400000
C152: 不要了 | D152: 16 | E152: 2500 | F152: 2500 | H152: 不动 | I152: 16 | J152: 2500 | K152: =StoreConfig!J153 -> 16|0#0#0#2500 | Q152: 20 | R152: 1
C153: 不要了 | D153: 16 | E153: 2500 | F153: 2500 | H153: 不动 | I153: 16 | J153: 2500 | K153: =StoreConfig!J154 -> 16|0#0#0#2500 | Q153: 20 | R153: 1
C154: 不要了 | D154: 16 | E154: 250 | F154: 250 | H154: 不动 | I154: 16 | J154: 250 | K154: =StoreConfig!J155 -> 16|0#0#0#250 | Q154: 19 | R154: 1
C155: 不要了 | D155: 16 | E155: 750 | F155: 750 | H155: 不动 | I155: 16 | J155: 750 | K155: =StoreConfig!J156 -> 16|0#0#0#750 | Q155: 19 | R155: 3
C156: 不要了 | D156: 16 | E156: 1250 | F156: 1250 | H156: 不动 | I156: 16 | J156: 1250 | K156: =StoreConfig!J157 -> 16|0#0#0#1250 | Q156: 19 | R156: 5
C157: 不要了 | D157: 16 | E157: 12 | F157: 150 | H157: 不动 | I157: 16 | J157: 150 | K157: =StoreConfig!J158 -> 16|0#0#0#150 | P157: =R157*50 -> 150 | Q157: 60 | R157: 3
C158: 不要了 | D158: 16 | E158: 20 | F158: 250 | H158: 不动 | I158: 16 | J158: 250 | K158: =StoreConfig!J159 -> 16|0#0#0#250 | P158: 250 | Q158: 60 | R158: 5
C159: 不要了 | D159: 16 | E159: 40 | F159: 500 | H159: 不动 | I159: 16 | J159: 500 | K159: =StoreConfig!J160 -> 16|0#0#0#500 | P159: 500 | Q159: 60 | R159: 10
C160: 不要了 | D160: 16 | E160: 500 | F160: 500 | H160: 不动 | I160: 16 | J160: 500 | K160: =StoreConfig!J161 -> 16|0#0#0#500 | Q160: 4 | R160: 500
C161: 不要了 | D161: 16 | E161: 1000 | F161: 1000 | H161: 不动 | I161: 16 | J161: 1000 | K161: =StoreConfig!J162 -> 16|0#0#0#1000 | Q161: 4 | R161: 1000
C162: 不要了 | D162: 16 | E162: 60 | F162: 60 | H162: 不动 | I162: 16 | J162: 60 | K162: =StoreConfig!J163 -> 16|0#0#0#60 | Q162: 23 | R162: 3
C163: 不要了 | D163: 16 | E163: 100 | F163: 100 | H163: 不动 | I163: 16 | J163: 100 | K163: =StoreConfig!J164 -> 16|0#0#0#100 | Q163: 23 | R163: 5
C164: 不要了 | D164: 16 | E164: 200 | F164: 200 | H164: 不动 | I164: 16 | J164: 200 | K164: =StoreConfig!J165 -> 16|0#0#0#200 | Q164: 23 | R164: 10
C165: 不要了 | D165: 16 | E165: 6000 | F165: 6000 | H165: 不动 | I165: 16 | J165: 6000 | K165: =StoreConfig!J166 -> 16|0#0#0#6000 | Q165: 12009 | R165: 50
C166: 不要了 | D166: 16 | E166: 6000 | F166: 6000 | H166: 不动 | I166: 16 | J166: 6000 | K166: =StoreConfig!J167 -> 16|0#0#0#6000 | Q166: 12011 | R166: 50
C167: 不要了 | D167: 16 | E167: 6000 | F167: 6000 | H167: 不动 | I167: 16 | J167: 6000 | K167: =StoreConfig!J168 -> 16|0#0#0#6000 | Q167: 12008 | R167: 50
C168: 不要了 | D168: 16 | E168: 6000 | F168: 6000 | H168: 不动 | I168: 16 | J168: 6000 | K168: =StoreConfig!J169 -> 16|0#0#0#6000 | Q168: 12010 | R168: 50
C169: 不要了 | D169: 16 | E169: 6000 | F169: 6000 | H169: 不动 | I169: 16 | J169: 6000 | K169: =StoreConfig!J170 -> 16|0#0#0#6000 | Q169: 12013 | R169: 50
C170: 不要了 | D170: 14 | E170: 500000 | F170: 100 | H170: 不动 | I170: 14 | J170: 500000 | K170: =StoreConfig!J171 -> 14|0#0#0#500000 | Q170: 3 | R170: 100000
C171: 不要了 | D171: 14 | E171: 1000000 | F171: 200 | H171: 不动 | I171: 14 | J171: 1000000 | K171: =StoreConfig!J172 -> 14|0#0#0#1000000 | Q171: 3 | R171: 200000
C172: 不要了 | D172: 14 | E172: 2000000 | F172: 400 | H172: 不动 | I172: 14 | J172: 2000000 | K172: =StoreConfig!J173 -> 14|0#0#0#2000000 | Q172: 3 | R172: 400000
C173: 不要了 | D173: 14 | E173: 300000 | F173: 60 | H173: 不动 | I173: 14 | J173: 300000 | K173: =StoreConfig!J174 -> 14|0#0#0#300000 | Q173: 23 | R173: 3
C174: 不要了 | D174: 14 | E174: 500000 | F174: 100 | H174: 不动 | I174: 14 | J174: 500000 | K174: =StoreConfig!J175 -> 14|0#0#0#500000 | Q174: 23 | R174: 5
C175: 不要了 | D175: 14 | E175: 1000000 | F175: 200 | H175: 不动 | I175: 14 | J175: 1000000 | K175: =StoreConfig!J176 -> 14|0#0#0#1000000 | Q175: 23 | R175: 10
C176: 不要了 | D176: 14 | E176: 2500000 | F176: 500 | H176: 不动 | I176: 14 | J176: 2500000 | K176: =StoreConfig!J177 -> 14|0#0#0#2500000 | Q176: 4 | R176: 500
C177: 不要了 | D177: 14 | E177: 5000000 | F177: 1000 | H177: 不动 | I177: 14 | J177: 5000000 | K177: =StoreConfig!J178 -> 14|0#0#0#5000000 | Q177: 4 | R177: 1000
C178: 不要了 | D178: 16 | E178: 100 | F178: 100 | H178: 不动 | I178: 16 | J178: 100 | K178: =StoreConfig!J179 -> 16|0#0#0#100 | Q178: 3 | R178: 100000
C179: 不要了 | D179: 16 | E179: 200 | F179: 200 | H179: 不动 | I179: 16 | J179: 200 | K179: =StoreConfig!J180 -> 16|0#0#0#200 | Q179: 3 | R179: 200000
C180: 不要了 | D180: 16 | E180: 400 | F180: 400 | H180: 不动 | I180: 16 | J180: 400 | K180: =StoreConfig!J181 -> 16|0#0#0#400 | Q180: 3 | R180: 400000
C181: 不要了 | D181: 16 | E181: 2500 | F181: 2500 | H181: 不动 | I181: 16 | J181: 2500 | K181: =StoreConfig!J182 -> 16|0#0#0#2500 | Q181: 20 | R181: 1
C182: 不要了 | D182: 16 | E182: 2500 | F182: 2500 | H182: 不动 | I182: 16 | J182: 2500 | K182: =StoreConfig!J183 -> 16|0#0#0#2500 | Q182: 20 | R182: 1
C183: 不要了 | D183: 16 | E183: 250 | F183: 250 | H183: 不动 | I183: 16 | J183: 250 | K183: =StoreConfig!J184 -> 16|0#0#0#250 | Q183: 19 | R183: 1
C184: 不要了 | D184: 16 | E184: 750 | F184: 750 | H184: 不动 | I184: 16 | J184: 750 | K184: =StoreConfig!J185 -> 16|0#0#0#750 | Q184: 19 | R184: 3
C185: 不要了 | D185: 16 | E185: 1250 | F185: 1250 | H185: 不动 | I185: 16 | J185: 1250 | K185: =StoreConfig!J186 -> 16|0#0#0#1250 | Q185: 19 | R185: 5
C186: 不要了 | D186: 16 | E186: 12 | F186: 150 | H186: 不动 | I186: 16 | J186: 150 | K186: =StoreConfig!J187 -> 16|0#0#0#150 | P186: =R186*50 -> 150 | Q186: 60 | R186: 3
C187: 不要了 | D187: 16 | E187: 20 | F187: 250 | H187: 不动 | I187: 16 | J187: 250 | K187: =StoreConfig!J188 -> 16|0#0#0#250 | P187: 250 | Q187: 60 | R187: 5
C188: 不要了 | D188: 16 | E188: 40 | F188: 500 | H188: 不动 | I188: 16 | J188: 500 | K188: =StoreConfig!J189 -> 16|0#0#0#500 | P188: 500 | Q188: 60 | R188: 10
C189: 不要了 | D189: 16 | E189: 500 | F189: 500 | H189: 不动 | I189: 16 | J189: 500 | K189: =StoreConfig!J190 -> 16|0#0#0#500 | Q189: 4 | R189: 500
C190: 不要了 | D190: 16 | E190: 1000 | F190: 1000 | H190: 不动 | I190: 16 | J190: 1000 | K190: =StoreConfig!J191 -> 16|0#0#0#1000 | Q190: 4 | R190: 1000
C191: 不要了 | D191: 16 | E191: 60 | F191: 60 | H191: 不动 | I191: 16 | J191: 60 | K191: =StoreConfig!J192 -> 16|0#0#0#60 | Q191: 23 | R191: 3
C192: 不要了 | D192: 16 | E192: 100 | F192: 100 | H192: 不动 | I192: 16 | J192: 100 | K192: =StoreConfig!J193 -> 16|0#0#0#100 | Q192: 23 | R192: 5
C193: 不要了 | D193: 16 | E193: 200 | F193: 200 | H193: 不动 | I193: 16 | J193: 200 | K193: =StoreConfig!J194 -> 16|0#0#0#200 | Q193: 23 | R193: 10
C194: 不要了 | D194: 16 | E194: 6000 | F194: 6000 | H194: 不动 | I194: 16 | J194: 6000 | K194: =StoreConfig!J195 -> 16|0#0#0#6000 | Q194: 12009 | R194: 50
C195: 不要了 | D195: 16 | E195: 6000 | F195: 6000 | H195: 不动 | I195: 16 | J195: 6000 | K195: =StoreConfig!J196 -> 16|0#0#0#6000 | Q195: 12011 | R195: 50
C196: 不要了 | D196: 16 | E196: 6000 | F196: 6000 | H196: 不动 | I196: 16 | J196: 6000 | K196: =StoreConfig!J197 -> 16|0#0#0#6000 | Q196: 12008 | R196: 50
C197: 不要了 | D197: 16 | E197: 6000 | F197: 6000 | H197: 不动 | I197: 16 | J197: 6000 | K197: =StoreConfig!J198 -> 16|0#0#0#6000 | Q197: 12010 | R197: 50
C198: 不要了 | D198: 16 | E198: 6000 | F198: 6000 | H198: 不动 | I198: 16 | J198: 6000 | K198: =StoreConfig!J199 -> 16|0#0#0#6000 | Q198: 12013 | R198: 50
C199: 不要了 | D199: 14 | E199: 500000 | F199: 100 | H199: 不动 | I199: 14 | J199: 500000 | K199: =StoreConfig!J200 -> 14|0#0#0#500000 | Q199: 3 | R199: 100000
C200: 不要了 | D200: 14 | E200: 1000000 | F200: 200 | H200: 不动 | I200: 14 | J200: 1000000 | K200: =StoreConfig!J201 -> 14|0#0#0#1000000 | Q200: 3 | R200: 200000
C201: 不要了 | D201: 14 | E201: 2000000 | F201: 400 | H201: 不动 | I201: 14 | J201: 2000000 | K201: =StoreConfig!J202 -> 14|0#0#0#2000000 | Q201: 3 | R201: 400000
... 1455 more rows
